Workbook

Sheet Overview

Sheet Initial Settings
A1: =C6 -> Washington EV - Business Model 3 - Walla Walla
A4: Initial Settings
A6: Scenario Name | C6: Washington EV - Business Model 3 - Walla Walla
A7: Initial Year | C7: 2015
A11: Load values from external file
A13: Save all user inputs to an external file
I26: Terminal

Sheet Market Inputs
A1: ='Initial Settings'!C6 -> Washington EV - Business Model 3 - Walla Walla
A4: Market Assumptions
F6: =+'Initial Settings'!$C$7+1 -> 2016 | G6: =F6+1 -> 2017 | H6: =G6+1 -> 2018 | I6: 2019 | J6: 2020 | K6: 2021 | L6: 2022 | M6: 2023 | N6: 2024 | O6: 2025
A8: Use traffic-derived values [1] or direct inputs [2] | E8: N
A10: Traffic-derived Utilization Values
A12: Annual average traffic volume of route in first year [# of cars] | E12: 1000000
A13: Projected annual growth rate in traffic volume [%] | E13: 0
A14: Annual average traffic volume of route [# of cars] | F14: =E12 -> 1000000 | G14: =ROUND(F14*(1+$E$13),0) -> 1000000 | H14: 1000000 | I14: 1000000 | J14: 1000000 | K14: 1000000 | L14: 1000000 | M14: 1000000 | N14: 1000000 | O14: 1000000
A15: EVs as a percentage of total registered vehicles in first year [%] | E15: 0.0065
A16: Projected annual growth rate of EVs as a percentage of total registered vehicles [%] | E16: =100/12*0.012 -> 0.1
A17: EVs as a percentage of total registered vehicles [%] | F17: =E15 -> 0.0065 | G17: =F17*(1+$E$16) -> 0.00715 | H17: 0.007865 | I17: 0.0086515 | J17: 0.00951665 | K17: 0.010468315 | L17: 0.0115151465 | M17: 0.01266666115 | N17: 0.01393332727 | O17: 0.01532665999
A18: Annual average EV traffic [# of cars] | F18: =F14*F17 -> 6500 | G18: 7150 | H18: 7865 | I18: 8651.5 | J18: 9516.65 | K18: 10468.315 | L18: 11515.1465 | M18: 12666.66115 | N18: 13933.32727 | O18: 15326.65999
A20: ="[Station Type 1] Expected number of " & 'Owner-Operator Inputs'!E10 & " sessions per car per trip" -> [Station Type 1] Expected number of DC fast charging (highway) sessions per car per trip | E20: 1
A21: ="[Station Type 1] Total number of " & 'Owner-Operator Inputs'!E10 & " sessions" -> [Station Type 1] Total number of DC fast charging (highway) sessions | F21: =ROUND(F$18*$E20,) -> 6500 | G21: 7150 | H21: 7865 | I21: 8652 | J21: 9517 | K21: 10468 | L21: 11515 | M21: 12667 | N21: 13933 | O21: 15327
A22: ="[Station Type 2] Expected number of " & 'Owner-Operator Inputs'!E73 & " sessions per car per trip" -> [Station Type 2] Expected number of Level 2 (local) sessions per car per trip | E22: 0
A23: ="[Station Type 2] Total number of " & 'Owner-Operator Inputs'!E73 & " sessions" -> [Station Type 2] Total number of Level 2 (local) sessions | F23: =ROUND(F$18*$E22,) -> 0 | G23: =ROUND(G$18*$E22,) -> 0 | H23: =ROUND(H$18*$E22,) -> 0 | I23: =ROUND(I$18*$E22,) -> 0 | J23: =ROUND(J$18*$E22,) -> 0 | K23: 0 | L23: 0 | M23: 0 | N23: 0 | O23: 0
A24: ="[Station Type 3] Expected number of " & 'Owner-Operator Inputs'!E136 & " sessions per car per trip" -> [Station Type 3] Expected number of DC fast charging (local) sessions per car per trip | E24: 0
A25: ="[Station Type 3] Total number of " & 'Owner-Operator Inputs'!E136 & " sessions" -> [Station Type 3] Total number of DC fast charging (local) sessions | F25: =ROUND(F$18*$E24,) -> 0 | G25: =ROUND(G$18*$E24,) -> 0 | H25: =ROUND(H$18*$E24,) -> 0 | I25: =ROUND(I$18*$E24,) -> 0 | J25: =ROUND(J$18*$E24,) -> 0 | K25: 0 | L25: 0 | M25: 0 | N25: 0 | O25: 0
A27: Direct Utilization Values
F29: =+'Initial Settings'!$C$7+1 -> 2016 | G29: =F29+1 -> 2017 | H29: =G29+1 -> 2018 | I29: =H29+1 -> 2019 | J29: =I29+1 -> 2020 | K29: =J29+1 -> 2021 | L29: =K29+1 -> 2022 | M29: =L29+1 -> 2023 | N29: =M29+1 -> 2024 | O29: =N29+1 -> 2025
A30: Expected annual utilization growth rate [%] | C30: ='Sensitivity Tables'!$A$9 -> 0.22 | F30: 0.22 | G30: *Sensitivity analysis variable
A31: [Station Type 1] Initial average utilization [# of charging sessions per station per year] | C31: ='Sensitivity Tables'!$A$26 -> 1200 | F31: 1200 | G31: *Sensitivity analysis variable
A32: ="[Station Type 1] Total number of " & 'Owner-Operator Inputs'!E10 & " sessions" -> [Station Type 1] Total number of DC fast charging (highway) sessions | F32: =$C$31*'Owner-Operator Inputs'!$E$21 -> 9600 | G32: =ROUND(F32*(1+$C$30),0) -> 11712 | H32: 14289 | I32: 17433 | J32: 21268 | K32: 25947 | L32: 31655 | M32: 38619 | N32: 47115 | O32: 57480
A33: [Station Type 2] Initial average utilization [# of charging sessions per station per year] | C33: ='Sensitivity Tables'!$A$43 -> 400 | F33: 400 | G33: *Sensitivity analysis variable
A34: ="[Station Type 2] Total number of " & 'Owner-Operator Inputs'!E73 & " sessions" -> [Station Type 2] Total number of Level 2 (local) sessions | F34: =$C$33*'Owner-Operator Inputs'!$E$84 -> 20000 | G34: =ROUND(F34*(1+$C$30),0) -> 24400 | H34: 29768 | I34: 36317 | J34: 44307 | K34: 54055 | L34: 65947 | M34: 80455 | N34: 98155 | O34: 119749
A35: [Station Type 3] Initial average utilization [# of charging sessions per station per year] | C35: ='Sensitivity Tables'!$A$60 -> 1200 | F35: 1200 | G35: *Sensitivity analysis variable
A36: ="[Station Type 3] Total number of " & 'Owner-Operator Inputs'!E136 & " sessions" -> [Station Type 3] Total number of DC fast charging (local) sessions | F36: =$C$35*'Owner-Operator Inputs'!$E$147 -> 2400 | G36: =ROUND(F36*(1+$C$30),0) -> 2928 | H36: 3572 | I36: 4358 | J36: 5317 | K36: 6487 | L36: 7914 | M36: 9655 | N36: 11779 | O36: 14370
A38: Summary
F40: =+'Initial Settings'!$C$7+1 -> 2016 | G40: =F40+1 -> 2017 | H40: =G40+1 -> 2018 | I40: =H40+1 -> 2019 | J40: =I40+1 -> 2020 | K40: =J40+1 -> 2021 | L40: =K40+1 -> 2022 | M40: =L40+1 -> 2023 | N40: =M40+1 -> 2024 | O40: =N40+1 -> 2025
A41: ="[Station Type 1] Total number of " & 'Owner-Operator Inputs'!E10 & " sessions" -> [Station Type 1] Total number of DC fast charging (highway) sessions | F41: =IF($E$8="Y",F21,F32) -> 9600 | G41: 11712 | H41: 14289 | I41: 17433 | J41: 21268 | K41: 25947 | L41: 31655 | M41: 38619 | N41: 47115 | O41: 57480
A42: ="[Station Type 2] Total number of " & 'Owner-Operator Inputs'!E73 & " sessions" -> [Station Type 2] Total number of Level 2 (local) sessions | F42: =IF($E$8="Y",F23,F34) -> 20000 | G42: 24400 | H42: 29768 | I42: 36317 | J42: 44307 | K42: 54055 | L42: 65947 | M42: 80455 | N42: 98155 | O42: 119749
A43: ="[Station Type 3] Total number of " & 'Owner-Operator Inputs'!E136 & " sessions" -> [Station Type 3] Total number of DC fast charging (local) sessions | F43: =IF($E$8="Y",F25,F36) -> 2400 | G43: 2928 | H43: 3572 | I43: 4358 | J43: 5317 | K43: 6487 | L43: 7914 | M43: 9655 | N43: 11779 | O43: 14370
A44: Total expected charging session per year | F44: =SUM(F41:F43) -> 32000 | G44: 39040 | H44: 47629 | I44: 58108 | J44: 70892 | K44: 86489 | L44: 105516 | M44: 128729 | N44: 157049 | O44: 191599

Sheet Owner-Operator Inputs
A1: ='Initial Settings'!$C$6 -> Washington EV - Business Model 3 - Walla Walla
A4: Charging Station Assumptions
A6: Expected equipment lifespan [years] - All equipment types | E6: 10
A8: Charging Station Assumptions - Type 1
A10: Charging station type | E10: DC fast charging (highway)
A12: Charging Station Capital Cost
A13: Equipment costs
A14: Charging station equipment cost (per station) [$] | E14: 35000
A15: Installation and siting costs
A16: Construction and equipment installation cost (per station) [$] | E16: 26000
A17: Electric utility upgrades and grid interconnection cost (per site) [$] | E17: 20000
A18: Lease and property transaction costs (per site – one-time fee) [$] | E18: 6000
A19: Host site identification and screening (per site) [$] | E19: 5000
A21: Total number of stations [#] | E21: 8
A22: Total number of sites [#] | E22: 8
A24: Total initial Type 1 station capital required [$] | E24: =((E14+E16)*E21)+((E17+E18+E19)*E22) -> 736000
A26: Annual depreciation [$] | E26: =E24/$E$6 -> 73600
F28: =+'Initial Settings'!$C$7+1 -> 2016 | G28: =F28+1 -> 2017 | H28: =G28+1 -> 2018 | I28: 2019 | J28: 2020 | K28: 2021 | L28: 2022 | M28: 2023 | N28: 2024 | O28: 2025
A29: Charging Station Utilization
A30: Maximum number of charging sessions per station [sessions/year/station] | E30: 3650
A31: Maximum number of charging sessions [sessions/year] | F31: =$E30*$E21 -> 29200 | G31: 29200 | H31: 29200 | I31: 29200 | J31: 29200 | K31: 29200 | L31: 29200 | M31: 29200 | N31: 29200 | O31: 29200
A32: Projected number of charging sessions[sessions/year] | F32: =IF(COLUMN(F$6)-COLUMN($F$6)<$E$6,MIN(F31,'Market Inputs'!F41),0) -> 9600 | G32: =IF(COLUMN(G$6)-COLUMN($F$6)<$E$6,MIN(G31,'Market Inputs'!G41),0) -> 11712 | H32: =IF(COLUMN(H$6)-COLUMN($F$6)<$E$6,MIN(H31,'Market Inputs'!H41),0) -> 14289 | I32: =IF(COLUMN(I$6)-COLUMN($F$6)<$E$6,MIN(I31,'Market Inputs'!I41),0) -> 17433 | J32: =IF(COLUMN(J$6)-COLUMN($F$6)<$E$6,MIN(J31,'Market Inputs'!J41),0) -> 21268 | K32: =IF(COLUMN(K$6)-COLUMN($F$6)<$E$6,MIN(K31,'Market Inputs'!K41),0) -> 25947 | L32: =IF(COLUMN(L$6)-COLUMN($F$6)<$E$6,MIN(L31,'Market Inputs'!L41),0) -> 29200 | M32: =IF(COLUMN(M$6)-COLUMN($F$6)<$E$6,MIN(M31,'Market Inputs'!M41),0) -> 29200 | N32: =IF(COLUMN(N$6)-COLUMN($F$6)<$E$6,MIN(N31,'Market Inputs'!N41),0) -> 29200 | O32: =IF(COLUMN(O$6)-COLUMN($F$6)<$E$6,MIN(O31,'Market Inputs'!O41),0) -> 29200
A34: Energy Usage
A35: Average charging energy per session [kWh/session] | E35: 15
A36: Energy used/sold [kWh/year] | F36: =IF(COLUMN(F$6)-COLUMN($F$6)<$E$6,F32*$E35,0) -> 144000 | G36: =IF(COLUMN(G$6)-COLUMN($F$6)<$E$6,G32*$E35,0) -> 175680 | H36: 214335 | I36: 261495 | J36: 319020 | K36: 389205 | L36: 438000 | M36: 438000 | N36: 438000 | O36: 438000
A37: Maximum power draw [kW/session] | E37: 50
A38: Average time of charging session (minutes) | E38: 30
F40: =+'Initial Settings'!$C$7+1 -> 2016 | G40: =F40+1 -> 2017 | H40: =G40+1 -> 2018 | I40: =H40+1 -> 2019 | J40: =I40+1 -> 2020 | K40: =J40+1 -> 2021 | L40: =K40+1 -> 2022 | M40: =L40+1 -> 2023 | N40: =M40+1 -> 2024 | O40: =N40+1 -> 2025
A41: Charging Station Revenue [Operating Revenue - Direct]
D42: Revenue Model Applies?
A43: Per-energy user fee [$/kWh] | D43: Y | E43: 0.5
A44: Per-energy revenue | F44: =IF($D43="Y",IF(COLUMN(F$6)-COLUMN($F$6)<$E$6,F36*$E43,0),0) -> 72000 | G44: =IF($D43="Y",IF(COLUMN(G$6)-COLUMN($F$6)<$E$6,G36*$E43,0),0) -> 87840 | H44: 107167.5 | I44: 130747.5 | J44: 159510 | K44: 194602.5 | L44: 219000 | M44: 219000 | N44: 219000 | O44: 219000
A45: Per-charge event user fee [$/session] | D45: N | E45: 10
A46: Per-charge event revenue | F46: =IF($D45="Y",IF(COLUMN(F$6)-COLUMN($F$6)<$E$6,F32*$E45,0),0) -> 0 | G46: =IF($D45="Y",IF(COLUMN(G$6)-COLUMN($F$6)<$E$6,G32*$E45,0),0) -> 0 | H46: 0 | I46: 0 | J46: 0 | K46: 0 | L46: 0 | M46: 0 | N46: 0 | O46: 0
A48: Total charging station revenue | F48: =SUM(F44:F46) -> 72000 | G48: 87840 | H48: 107167.5 | I48: 130747.5 | J48: 159510 | K48: 194602.5 | L48: 219000 | M48: 219000 | N48: 219000 | O48: 219000
F50: =+'Initial Settings'!$C$7+1 -> 2016 | G50: =F50+1 -> 2017 | H50: =G50+1 -> 2018 | I50: =H50+1 -> 2019 | J50: =I50+1 -> 2020 | K50: =J50+1 -> 2021 | L50: =K50+1 -> 2022 | M50: =L50+1 -> 2023 | N50: =M50+1 -> 2024 | O50: =N50+1 -> 2025
A51: Charging Station Operating Cost [Cost of Sales]
A52: Electricity
A53: Electricity retail price in first year [$/kWh] | E53: 0.0768
A54: Annual compounded growth rate in electricity price [%] | E54: 0.0025
A55: Electricity retail price [$/kWh] | F55: =E53 -> 0.0768 | G55: =F55*(1+$E54) -> 0.076992 | H55: 0.07718448 | I55: 0.0773774412 | J55: 0.0775708848 | K55: 0.07776481202 | L55: 0.07795922405 | M55: 0.07815412211 | N55: 0.07834950741 | O55: 0.07854538118
A56: Energy cost (based on kWh) | F56: =IF(COLUMN(F$6)-COLUMN($F$6)<$E$6,F36*F55,0) -> 11059.2 | G56: =IF(COLUMN(G$6)-COLUMN($F$6)<$E$6,G36*G55,0) -> 13525.95456 | H56: 16543.33552 | I56: 20233.81399 | J56: 24746.66367 | K56: 30266.45366 | L56: 34146.14013 | M56: 34231.50548 | N56: 34317.08425 | O56: 34402.87696
A57: Demand charge [$/kW/month] | E57: 1.26
A58: Power cost (based on kW) | F58: =IF(COLUMN(F$6)-COLUMN($F$6)<$E$6,$E21*$E37*12*$E57,0) -> 6048 | G58: =IF(COLUMN(G$6)-COLUMN($F$6)<$E$6,$E21*$E37*12*$E57,0) -> 6048 | H58: 6048 | I58: 6048 | J58: 6048 | K58: 6048 | L58: 6048 | M58: 6048 | N58: 6048 | O58: 6048
A59: Maintenance cost
A60: Annual maintenance cost as percentage of equipment value [%] | E60: 0.03
A61: Maintenance cost (annual) | F61: =IF(COLUMN(F$6)-COLUMN($F$6)<$E$6,$E60*$E14*$E21,0) -> 8400 | G61: =IF(COLUMN(G$6)-COLUMN($F$6)<$E$6,$E60*$E14*$E21,0) -> 8400 | H61: 8400 | I61: 8400 | J61: 8400 | K61: 8400 | L61: 8400 | M61: 8400 | N61: 8400 | O61: 8400
A62: Host site lease or access cost
A63: Host site lease or access cost (average per site/year) [$] | E63: 1200
A64: Host site lease or access cost (annual) | F64: =IF(COLUMN(F$6)-COLUMN($F$6)<$E$6,$E63*$E22,0) -> 9600 | G64: =IF(COLUMN(G$6)-COLUMN($F$6)<$E$6,$E63*$E22,0) -> 9600 | H64: 9600 | I64: 9600 | J64: 9600 | K64: 9600 | L64: 9600 | M64: 9600 | N64: 9600 | O64: 9600
A66: Total charging operating cost | F66: =SUM(F56:F64) -> 35107.2 | G66: 37573.95456 | H66: 40591.33552 | I66: 44281.81399 | J66: 48794.66367 | K66: 54314.45366 | L66: 58194.14013 | M66: 58279.50548 | N66: 58365.08425 | O66: 58450.87696
F68: =+'Initial Settings'!$C$7+1 -> 2016 | G68: =F68+1 -> 2017 | H68: =G68+1 -> 2018 | I68: =H68+1 -> 2019 | J68: =I68+1 -> 2020 | K68: =J68+1 -> 2021 | L68: =K68+1 -> 2022 | M68: =L68+1 -> 2023 | N68: =M68+1 -> 2024 | O68: =N68+1 -> 2025
A69: Total charging station operating margin | F69: =F48-F66 -> 36892.8 | G69: 50266.04544 | H69: 66576.16448 | I69: 86465.68601 | J69: 110715.3363 | K69: 140288.0463 | L69: 160805.8599 | M69: 160720.4945 | N69: 160634.9158 | O69: 160549.123
A71: Charging Station Assumptions - Type 2
A73: Charging station type | E73: Level 2 (local)
A75: Charging Station Capital Cost
A76: Equipment costs
A77: Charging station equipment cost (per station) [$] | E77: 2500
A78: Installation and siting costs
A79: Construction and equipment installation cost (per station) [$] | E79: 4000
A80: Electric utility upgrades and grid interconnection cost (per site) [$] | E80: 0
A81: Lease and property transaction costs (per site – one-time fee) [$] | E81: 6000
A82: Host site identification and screening (per site) [$] | E82: 5000
A84: Total number of stations [#] | E84: 50
A85: Total number of sites [#] | E85: 10
A87: Total initial Type 1 station capital required [$] | E87: =((E77+E79)*E84)+((E80+E81+E82)*E85) -> 435000
A89: Annual depreciation [$] | E89: =E87/$E$6 -> 43500
F91: =+'Initial Settings'!$C$7+1 -> 2016 | G91: =F91+1 -> 2017 | H91: =G91+1 -> 2018 | I91: =H91+1 -> 2019 | J91: =I91+1 -> 2020 | K91: =J91+1 -> 2021 | L91: =K91+1 -> 2022 | M91: =L91+1 -> 2023 | N91: =M91+1 -> 2024 | O91: =N91+1 -> 2025
A92: Charging Station Utilization
A93: Maximum number of charging sessions per station [sessions/year/station] | E93: 1200
A94: Maximum number of charging sessions [sessions/year] | F94: =$E93*$E84 -> 60000 | G94: 60000 | H94: 60000 | I94: 60000 | J94: 60000 | K94: 60000 | L94: 60000 | M94: 60000 | N94: 60000 | O94: 60000
A95: Projected number of charging sessions[sessions/year] | F95: =IF(COLUMN(F$6)-COLUMN($F$6)<$E$6,MIN(F94,'Market Inputs'!F42),0) -> 20000 | G95: =IF(COLUMN(G$6)-COLUMN($F$6)<$E$6,MIN(G94,'Market Inputs'!G42),0) -> 24400 | H95: =IF(COLUMN(H$6)-COLUMN($F$6)<$E$6,MIN(H94,'Market Inputs'!H42),0) -> 29768 | I95: =IF(COLUMN(I$6)-COLUMN($F$6)<$E$6,MIN(I94,'Market Inputs'!I42),0) -> 36317 | J95: =IF(COLUMN(J$6)-COLUMN($F$6)<$E$6,MIN(J94,'Market Inputs'!J42),0) -> 44307 | K95: =IF(COLUMN(K$6)-COLUMN($F$6)<$E$6,MIN(K94,'Market Inputs'!K42),0) -> 54055 | L95: =IF(COLUMN(L$6)-COLUMN($F$6)<$E$6,MIN(L94,'Market Inputs'!L42),0) -> 60000 | M95: =IF(COLUMN(M$6)-COLUMN($F$6)<$E$6,MIN(M94,'Market Inputs'!M42),0) -> 60000 | N95: =IF(COLUMN(N$6)-COLUMN($F$6)<$E$6,MIN(N94,'Market Inputs'!N42),0) -> 60000 | O95: =IF(COLUMN(O$6)-COLUMN($F$6)<$E$6,MIN(O94,'Market Inputs'!O42),0) -> 60000
A97: Energy Usage
A98: Average charging energy per session [kWh/session] | E98: 10
A99: Energy used/sold [kWh/year] | F99: =IF(COLUMN(F$6)-COLUMN($F$6)<$E$6,F95*$E98,0) -> 200000 | G99: 244000 | H99: 297680 | I99: 363170 | J99: 443070 | K99: 540550 | L99: 600000 | M99: 600000 | N99: 600000 | O99: 600000
A100: Maximum power draw [kW/session] | E100: 6.6
A101: Average time of charging session (minutes) | E101: 90
F103: =+'Initial Settings'!$C$7+1 -> 2016 | G103: =F103+1 -> 2017 | H103: =G103+1 -> 2018 | I103: =H103+1 -> 2019 | J103: =I103+1 -> 2020 | K103: =J103+1 -> 2021 | L103: =K103+1 -> 2022 | M103: =L103+1 -> 2023 | N103: =M103+1 -> 2024 | O103: =N103+1 -> 2025
A104: Charging Station Revenue [Operating Revenue - Direct]
D105: Revenue Model Applies?
A106: Per-energy user fee [$/kWh] | D106: Y | E106: 0.25
A107: Per-energy revenue | F107: =IF($D106="Y",IF(COLUMN(F$6)-COLUMN($F$6)<$E$6,F99*$E106,0),0) -> 50000 | G107: 61000 | H107: 74420 | I107: 90792.5 | J107: 110767.5 | K107: 135137.5 | L107: 150000 | M107: 150000 | N107: 150000 | O107: 150000
A108: Per-charge event user fee [$/session] | D108: N | E108: 2
A109: Per-charge event revenue | F109: =IF($D108="Y",IF(COLUMN(F$6)-COLUMN($F$6)<$E$6,F95*$E108,0),0) -> 0 | G109: 0 | H109: 0 | I109: 0 | J109: 0 | K109: 0 | L109: 0 | M109: 0 | N109: 0 | O109: 0
A111: Total charging station revenue | F111: =SUM(F107:F109) -> 50000 | G111: =SUM(G107:G109) -> 61000 | H111: 74420 | I111: 90792.5 | J111: 110767.5 | K111: 135137.5 | L111: 150000 | M111: 150000 | N111: 150000 | O111: 150000
F113: =+'Initial Settings'!$C$7+1 -> 2016 | G113: =F113+1 -> 2017 | H113: =G113+1 -> 2018 | I113: =H113+1 -> 2019 | J113: =I113+1 -> 2020 | K113: =J113+1 -> 2021 | L113: =K113+1 -> 2022 | M113: =L113+1 -> 2023 | N113: =M113+1 -> 2024 | O113: =N113+1 -> 2025
A114: Charging Station Operating Cost [Cost of Sales]
A115: Electricity
A116: Electricity retail price in first year [$/kWh] | E116: 0.0768
A117: Annual compounded growth rate in electricity price [%] | E117: 0.0025
A118: Electricity retail price [$/kWh] | F118: =E116 -> 0.0768 | G118: =F118*(1+$E117) -> 0.076992 | H118: 0.07718448 | I118: 0.0773774412 | J118: 0.0775708848 | K118: 0.07776481202 | L118: 0.07795922405 | M118: 0.07815412211 | N118: 0.07834950741 | O118: 0.07854538118
A119: Energy cost (based on kWh) | F119: =IF(COLUMN(F$6)-COLUMN($F$6)<$E$6,F99*F118,0) -> 15360 | G119: 18786.048 | H119: 22976.27601 | I119: 28101.16532 | J119: 34369.33193 | K119: 42035.76913 | L119: 46775.53443 | M119: 46892.47326 | N119: 47009.70445 | O119: 47127.22871
A120: Demand charge [$/kW/month] | E120: 1.26
A121: Power cost (based on kW) | F121: =IF(COLUMN(F$6)-COLUMN($F$6)<$E$6,$E84*$E100*12*$E120,0) -> 4989.6 | G121: 4989.6 | H121: 4989.6 | I121: 4989.6 | J121: 4989.6 | K121: 4989.6 | L121: 4989.6 | M121: 4989.6 | N121: 4989.6 | O121: 4989.6
A122: Maintenance cost
A123: Annual maintenance cost as percentage of equipment value [%] | E123: 0.03
A124: Maintenance cost (annual) | F124: =IF(COLUMN(F$6)-COLUMN($F$6)<$E$6,$E123*$E77*$E84,0) -> 3750 | G124: 3750 | H124: 3750 | I124: 3750 | J124: 3750 | K124: 3750 | L124: 3750 | M124: 3750 | N124: 3750 | O124: 3750
A125: Host site lease or access cost
A126: Host site lease or access cost (average per site/year) [$] | E126: 1200
A127: Host site lease or access cost (annual) | F127: =IF(COLUMN(F$6)-COLUMN($F$6)<$E$6,$E126*$E85,0) -> 12000 | G127: 12000 | H127: 12000 | I127: 12000 | J127: 12000 | K127: 12000 | L127: 12000 | M127: 12000 | N127: 12000 | O127: 12000
A129: Total charging operating cost | F129: =SUM(F119:F127) -> 36099.6 | G129: =SUM(G119:G127) -> 39525.648 | H129: 43715.87601 | I129: 48840.76532 | J129: 55108.93193 | K129: 62775.36913 | L129: 67515.13443 | M129: 67632.07326 | N129: 67749.30445 | O129: 67866.82871
F131: =+'Initial Settings'!$C$7+1 -> 2016 | G131: =F131+1 -> 2017 | H131: =G131+1 -> 2018 | I131: =H131+1 -> 2019 | J131: =I131+1 -> 2020 | K131: =J131+1 -> 2021 | L131: =K131+1 -> 2022 | M131: =L131+1 -> 2023 | N131: =M131+1 -> 2024 | O131: =N131+1 -> 2025
A132: Total charging station operating margin | F132: =F111-F129 -> 13900.4 | G132: =G111-G129 -> 21474.352 | H132: 30704.12399 | I132: 41951.73468 | J132: 55658.56807 | K132: 72362.13087 | L132: 82484.86557 | M132: 82367.92674 | N132: 82250.69555 | O132: 82133.17129
A134: Charging Station Assumptions - Type 3
A136: Charging station type | E136: DC fast charging (local)
A138: Charging Station Capital Cost
A139: Equipment costs
A140: Charging station equipment cost (per station) [$] | E140: 35000
A141: Installation and siting costs
A142: Construction and equipment installation cost (per station) [$] | E142: 26000
A143: Electric utility upgrades and grid interconnection cost (per site) [$] | E143: 20000
A144: Lease and property transaction costs (per site – one-time fee) [$] | E144: 6000
A145: Host site identification and screening (per site) [$] | E145: 5000
A147: Total number of stations [#] | E147: 2
A148: Total number of sites [#] | E148: 2
A150: Total initial Type 1 station capital required [$] | E150: =((E140+E142)*E147)+((E143+E144+E145)*E148) -> 184000
A152: Annual depreciation [$] | E152: =E150/$E$6 -> 18400
F154: =+'Initial Settings'!$C$7+1 -> 2016 | G154: =F154+1 -> 2017 | H154: =G154+1 -> 2018 | I154: =H154+1 -> 2019 | J154: =I154+1 -> 2020 | K154: =J154+1 -> 2021 | L154: =K154+1 -> 2022 | M154: =L154+1 -> 2023 | N154: =M154+1 -> 2024 | O154: =N154+1 -> 2025
A155: Charging Station Utilization
A156: Maximum number of charging sessions per station [sessions/year/station] | E156: =365*10 -> 3650
A157: Maximum number of charging sessions [sessions/year] | F157: =$E156*$E147 -> 7300 | G157: 7300 | H157: 7300 | I157: 7300 | J157: 7300 | K157: 7300 | L157: 7300 | M157: 7300 | N157: 7300 | O157: 7300
A158: Projected number of charging sessions[sessions/year] | F158: =IF(COLUMN(F$6)-COLUMN($F$6)<$E$6,MIN(F157,'Market Inputs'!F43),0) -> 2400 | G158: =IF(COLUMN(G$6)-COLUMN($F$6)<$E$6,MIN(G157,'Market Inputs'!G43),0) -> 2928 | H158: =IF(COLUMN(H$6)-COLUMN($F$6)<$E$6,MIN(H157,'Market Inputs'!H43),0) -> 3572 | I158: =IF(COLUMN(I$6)-COLUMN($F$6)<$E$6,MIN(I157,'Market Inputs'!I43),0) -> 4358 | J158: =IF(COLUMN(J$6)-COLUMN($F$6)<$E$6,MIN(J157,'Market Inputs'!J43),0) -> 5317 | K158: =IF(COLUMN(K$6)-COLUMN($F$6)<$E$6,MIN(K157,'Market Inputs'!K43),0) -> 6487 | L158: =IF(COLUMN(L$6)-COLUMN($F$6)<$E$6,MIN(L157,'Market Inputs'!L43),0) -> 7300 | M158: =IF(COLUMN(M$6)-COLUMN($F$6)<$E$6,MIN(M157,'Market Inputs'!M43),0) -> 7300 | N158: =IF(COLUMN(N$6)-COLUMN($F$6)<$E$6,MIN(N157,'Market Inputs'!N43),0) -> 7300 | O158: =IF(COLUMN(O$6)-COLUMN($F$6)<$E$6,MIN(O157,'Market Inputs'!O43),0) -> 7300
A160: Energy Usage
A161: Average charging energy per session [kWh/session] | E161: 15
A162: Energy used/sold [kWh/year] | F162: =IF(COLUMN(F$6)-COLUMN($F$6)<$E$6,F158*$E161,0) -> 36000 | G162: 43920 | H162: 53580 | I162: 65370 | J162: 79755 | K162: 97305 | L162: 109500 | M162: 109500 | N162: 109500 | O162: 109500
A163: Maximum power draw [kW/session] | E163: 50
A164: Average time of charging session (minutes) | E164: 30
F166: =+'Initial Settings'!$C$7+1 -> 2016 | G166: =F166+1 -> 2017 | H166: =G166+1 -> 2018 | I166: =H166+1 -> 2019 | J166: =I166+1 -> 2020 | K166: =J166+1 -> 2021 | L166: =K166+1 -> 2022 | M166: =L166+1 -> 2023 | N166: =M166+1 -> 2024 | O166: =N166+1 -> 2025
A167: Charging Station Revenue [Operating Revenue - Direct]
D168: Revenue Model Applies?
A169: Per-energy user fee [$/kWh] | D169: Y | E169: 0.5
A170: Per-energy revenue | F170: =IF($D169="Y",IF(COLUMN(F$6)-COLUMN($F$6)<$E$6,F162*$E169,0),0) -> 18000 | G170: 21960 | H170: 26790 | I170: 32685 | J170: 39877.5 | K170: 48652.5 | L170: 54750 | M170: 54750 | N170: 54750 | O170: 54750
A171: Per-charge event user fee [$/session] | D171: N | E171: 10
A172: Per-charge event revenue | F172: =IF($D171="Y",IF(COLUMN(F$6)-COLUMN($F$6)<$E$6,F158*$E171,0),0) -> 0 | G172: 0 | H172: 0 | I172: 0 | J172: 0 | K172: 0 | L172: 0 | M172: 0 | N172: 0 | O172: 0
A174: Total charging station revenue | F174: =SUM(F170:F172) -> 18000 | G174: =SUM(G170:G172) -> 21960 | H174: 26790 | I174: 32685 | J174: 39877.5 | K174: 48652.5 | L174: 54750 | M174: 54750 | N174: 54750 | O174: 54750
F176: =+'Initial Settings'!$C$7+1 -> 2016 | G176: =F176+1 -> 2017 | H176: =G176+1 -> 2018 | I176: =H176+1 -> 2019 | J176: =I176+1 -> 2020 | K176: =J176+1 -> 2021 | L176: =K176+1 -> 2022 | M176: =L176+1 -> 2023 | N176: =M176+1 -> 2024 | O176: =N176+1 -> 2025
A177: Charging Station Operating Cost [Cost of Sales]
A178: Electricity
A179: Electricity retail price in first year [$/kWh] | E179: 0.0768
A180: Annual compounded growth rate in electricity price [%] | E180: 0.0025
A181: Electricity retail price [$/kWh] | F181: =E179 -> 0.0768 | G181: =F181*(1+$E180) -> 0.076992 | H181: 0.07718448 | I181: 0.0773774412 | J181: 0.0775708848 | K181: 0.07776481202 | L181: 0.07795922405 | M181: 0.07815412211 | N181: 0.07834950741 | O181: 0.07854538118
A182: Energy cost (based on kWh) | F182: =IF(COLUMN(F$6)-COLUMN($F$6)<$E$6,F162*F181,0) -> 2764.8 | G182: 3381.48864 | H182: 4135.544438 | I182: 5058.163331 | J182: 6186.665917 | K182: 7566.905033 | L182: 8536.535033 | M182: 8557.876371 | N182: 8579.271061 | O182: 8600.719239
A183: Demand charge [$/kW/month] | E183: 1.26
A184: Power cost (based on kW) | F184: =IF(COLUMN(F$6)-COLUMN($F$6)<$E$6,$E147*$E163*12*$E183,0) -> 1512 | G184: 1512 | H184: 1512 | I184: 1512 | J184: 1512 | K184: 1512 | L184: 1512 | M184: 1512 | N184: 1512 | O184: 1512
A185: Maintenance cost
A186: Annual maintenance cost as percentage of equipment value [%] | E186: 0.03
A187: Maintenance cost (annual) | F187: =IF(COLUMN(F$6)-COLUMN($F$6)<$E$6,$E186*$E140*$E147,0) -> 2100 | G187: 2100 | H187: 2100 | I187: 2100 | J187: 2100 | K187: 2100 | L187: 2100 | M187: 2100 | N187: 2100 | O187: 2100
A188: Host site lease or access cost
A189: Host site lease or access cost (average per site/year) [$] | E189: 1200
A190: Host site lease or access cost (annual) | F190: =IF(COLUMN(F$6)-COLUMN($F$6)<$E$6,$E189*$E148,0) -> 2400 | G190: 2400 | H190: 2400 | I190: 2400 | J190: 2400 | K190: 2400 | L190: 2400 | M190: 2400 | N190: 2400 | O190: 2400
A192: Total charging operating cost | F192: =SUM(F182:F190) -> 8776.8 | G192: =SUM(G182:G190) -> 9393.48864 | H192: 10147.54444 | I192: 11070.16333 | J192: 12198.66592 | K192: 13578.90503 | L192: 14548.53503 | M192: 14569.87637 | N192: 14591.27106 | O192: 14612.71924
F194: =+'Initial Settings'!$C$7+1 -> 2016 | G194: =F194+1 -> 2017 | H194: =G194+1 -> 2018 | I194: =H194+1 -> 2019 | J194: =I194+1 -> 2020 | K194: =J194+1 -> 2021 | L194: =K194+1 -> 2022 | M194: =L194+1 -> 2023 | N194: =M194+1 -> 2024 | O194: =N194+1 -> 2025
A195: Total charging station operating margin | F195: =F174-F192 -> 9223.2 | G195: =G174-G192 -> 12566.51136 | H195: 16642.45556 | I195: 21614.83667 | J195: 27678.83408 | K195: 35073.59497 | L195: 40201.46497 | M195: 40180.12363 | N195: 40158.72894 | O195: 40137.28076
A197: Additional Revenue Assumptions
A199: Additional Operating Revenue | F199: =+'Initial Settings'!$C$7+1 -> 2016 | G199: =F199+1 -> 2017 | H199: =G199+1 -> 2018 | I199: =H199+1 -> 2019 | J199: =I199+1 -> 2020 | K199: =J199+1 -> 2021 | L199: =K199+1 -> 2022 | M199: =L199+1 -> 2023 | N199: =M199+1 -> 2024 | O199: =N199+1 -> 2025
A200: Direct revenues
A201: Number of subscribers in first year [subscribers/year] | E201: 0
A202: Annual growth rate in number of subscribers [%] | E202: 0.1
A203: Number of subscribers [subscribers/year] | F203: =E201 -> 0 | G203: =ROUND(F203*(1+$E202),0) -> 0 | H203: 0 | I203: 0 | J203: 0 | K203: 0 | L203: 0 | M203: 0 | N203: 0 | O203: 0
A204: Subscription fee [$/subscriber/year] | E204: 5
A205: Subscription revenue | F205: =IF(COLUMN(F$6)-COLUMN($F$6)<$E$6,F203*$E$204,0) -> 0 | G205: =IF(COLUMN(G$6)-COLUMN($F$6)<$E$6,G203*$E$204,0) -> 0 | H205: 0 | I205: 0 | J205: 0 | K205: 0 | L205: 0 | M205: 0 | N205: 0 | O205: 0
A207: Indirect revenues
A208: Payments from private sector partners | F208: =SUM('Private Sector Partner Inputs'!F54:F59) -> 151000 | G208: =SUM('Private Sector Partner Inputs'!G54:G59) -> 68320 | H208: =SUM('Private Sector Partner Inputs'!H54:H59) -> 83350 | I208: =SUM('Private Sector Partner Inputs'!I54:I59) -> 101687.5 | J208: =SUM('Private Sector Partner Inputs'!J54:J59) -> 124060 | K208: =SUM('Private Sector Partner Inputs'!K54:K59) -> 151355 | L208: =SUM('Private Sector Partner Inputs'!L54:L59) -> 168250 | M208: =SUM('Private Sector Partner Inputs'!M54:M59) -> 168250 | N208: =SUM('Private Sector Partner Inputs'!N54:N59) -> 168250 | O208: =SUM('Private Sector Partner Inputs'!O54:O59) -> 168250
A209: Annual advertising revenue (In-station advertising) [$] | E209: 0 | F209: =IF(COLUMN(F$6)-COLUMN($F$6)<$E$6,E209,0) -> 0 | G209: =IF(COLUMN(G$6)-COLUMN($F$6)<$E$6,F209,0) -> 0 | H209: 0 | I209: 0 | J209: 0 | K209: 0 | L209: 0 | M209: 0 | N209: 0 | O209: 0
A211: Other Revenue
A212: Annual grants and rebates [$] | F212: ='Public Sector Partner Inputs'!F20 -> 0 | G212: ='Public Sector Partner Inputs'!G20 -> 0 | H212: ='Public Sector Partner Inputs'!H20 -> 0 | I212: ='Public Sector Partner Inputs'!I20 -> 0 | J212: ='Public Sector Partner Inputs'!J20 -> 0 | K212: ='Public Sector Partner Inputs'!K20 -> 0 | L212: ='Public Sector Partner Inputs'!L20 -> 0 | M212: ='Public Sector Partner Inputs'!M20 -> 0 | N212: ='Public Sector Partner Inputs'!N20 -> 0 | O212: ='Public Sector Partner Inputs'!O20 -> 0
A214: Total Additional Revenue | F214: =SUM(F205:F212) -> 151000 | G214: 68320 | H214: 83350 | I214: 101687.5 | J214: 124060 | K214: 151355 | L214: 168250 | M214: 168250 | N214: 168250 | O214: 168250
A215: Total Operating Revenue (from stations above) | F215: =F48+F111+F174 -> 140000 | G215: 170800 | H215: 208377.5 | I215: 254225 | J215: 310155 | K215: 378392.5 | L215: 423750 | M215: 423750 | N215: 423750 | O215: 423750
A216: Total Revenue | F216: =SUM(F214:F215) -> 291000 | G216: 239120 | H216: 291727.5 | I216: 355912.5 | J216: 434215 | K216: 529747.5 | L216: 592000 | M216: 592000 | N216: 592000 | O216: 592000
A218: Additional Cost Assumptions
F220: =+'Initial Settings'!$C$7+1 -> 2016 | G220: =F220+1 -> 2017 | H220: =G220+1 -> 2018 | I220: =H220+1 -> 2019 | J220: =I220+1 -> 2020 | K220: =J220+1 -> 2021 | L220: =K220+1 -> 2022 | M220: =L220+1 -> 2023 | N220: =M220+1 -> 2024 | O220: =N220+1 -> 2025
A221: Additional Operating Costs
A222: Sales, General, and Administrative [% of Revenue] | E222: 0.05
A223: Total Sales, General, and Administrative Costs | F223: =F216*$E$222 -> 14550 | G223: 11956 | H223: 14586.375 | I223: 17795.625 | J223: 21710.75 | K223: 26487.375 | L223: 29600 | M223: 29600 | N223: 29600 | O223: 29600
A224: Total Cost of Sales (from stations above) | F224: =F66+F129+F192 -> 79983.6 | G224: 86493.0912 | H224: 94454.75597 | I224: 104192.7426 | J224: 116102.2615 | K224: 130668.7278 | L224: 140257.8096 | M224: 140481.4551 | N224: 140705.6598 | O224: 140930.4249
A225: Total Operating Cost | F225: =SUM(F223:F224) -> 94533.6 | G225: 98449.0912 | H225: 109041.131 | I225: 121988.3676 | J225: 137813.0115 | K225: 157156.1028 | L225: 169857.8096 | M225: 170081.4551 | N225: 170305.6598 | O225: 170530.4249
A227: Initial Capitalization Assumptions
A229: Initial Property, Plant, and Equipment | E229: =E24+E87+E150 -> 1355000
A230: Initial Operating Capital [2x SG&A] | E230: =F262*2 -> 29100
A231: Total Initial Capital Required | E231: =E229+E230 -> 1384100
A233: Percent Equity Funded [%] | D233: 0.4 | E233: =D233*E231 -> 553640
A234: Public Sector Portion of Equity (See public sector inputs) | D234: ='Public Sector Partner Inputs'!$E$14/($E$233-'Public Sector Partner Inputs'!$E$17) -> 0 | E234: =$E$233*D234 -> 0
A235: Private Sector Portion of Equity | D235: =1-D234 -> 1 | E235: =$E$233*D235 -> 553640
A236: Percent Debt Funded [%] | D236: =1-D233 -> 0.6 | E236: =D236*E231 -> 830460
A237: Public Sector Portion of Debt (See public sector inputs) | D237: ='Public Sector Partner Inputs'!$E$10/'Owner-Operator Inputs'!E236 -> 0.5 | E237: =$E$236*D237 -> 415230
A238: Private Sector Portion of Debt | D238: =1-D237 -> 0.5 | E238: =$E$236*D238 -> 415230
A239: Total Funded | E239: =E233+E236 -> 1384100
A241: Assumed EBITDA exit multiple | E241: 0 | F241: <-Applies to all partners
A243: Owner Operator Cost of Equity
A244: Risk Free Rate | E244: 0.0125
A245: Beta | E245: 0.9
A246: Market Risk Premium | E246: 0.1
A247: Owner Operator Cost of Equity | E247: =E244+(E245*E246) -> 0.1025
A249: Maximum Debt Term [years] | E249: 10
A250: Owner Operator Cost of Debt (Long Term) | C250: ='Sensitivity Tables'!$A$77 -> 0.08 | E250: 0.08 | F250: *Sensitivity analysis variable
A252: Income Statement Assumptions
F254: =+'Initial Settings'!$C$7+1 -> 2016 | G254: =F254+1 -> 2017 | H254: =G254+1 -> 2018 | I254: =H254+1 -> 2019 | J254: =I254+1 -> 2020 | K254: =J254+1 -> 2021 | L254: =K254+1 -> 2022 | M254: =L254+1 -> 2023 | N254: =M254+1 -> 2024 | O254: =N254+1 -> 2025
A255: Revenues
A256: Operating Revenue | F256: =F215 -> 140000 | G256: 170800 | H256: 208377.5 | I256: 254225 | J256: 310155 | K256: 378392.5 | L256: 423750 | M256: 423750 | N256: 423750 | O256: 423750
A257: Other Revenue | F257: =F214 -> 151000 | G257: 68320 | H257: 83350 | I257: 101687.5 | J257: 124060 | K257: 151355 | L257: 168250 | M257: 168250 | N257: 168250 | O257: 168250
... 32 more rows

Sheet Private Sector Partner Inputs
A1: ='Initial Settings'!$C$6 -> Washington EV - Business Model 3 - Walla Walla
A4: Private Sector Partner(s) Inputs
A6: Private Sector Weighted Average Cost of Capital (WACC) | E6: 0.1033
A7: Private Sector Cost of Goods Sold [% of Revenue] | E7: 0.8
A8: Private Sector Marginal Tax Rate | E8: 0.3160052716
A10: Revenues
F11: =+'Initial Settings'!$C$7+1 -> 2016 | G11: =F11+1 -> 2017 | H11: 2018 | I11: 2019 | J11: 2020 | K11: 2021 | L11: 2022 | M11: 2023 | N11: 2024 | O11: 2025
A12: Site Leasing Revenue
A13: Private sector captures host site lease / access fees? | E13: N
A14: Revenue from leases / access fees ($) | F14: =IF($E$13="Y",'Owner-Operator Inputs'!F127+'Owner-Operator Inputs'!F64+'Owner-Operator Inputs'!F190,0) -> 0 | G14: =IF($E$13="Y",'Owner-Operator Inputs'!G127+'Owner-Operator Inputs'!G64+'Owner-Operator Inputs'!G190,0) -> 0 | H14: =IF($E$13="Y",'Owner-Operator Inputs'!H127+'Owner-Operator Inputs'!H64+'Owner-Operator Inputs'!H190,0) -> 0 | I14: =IF($E$13="Y",'Owner-Operator Inputs'!I127+'Owner-Operator Inputs'!I64+'Owner-Operator Inputs'!I190,0) -> 0 | J14: =IF($E$13="Y",'Owner-Operator Inputs'!J127+'Owner-Operator Inputs'!J64+'Owner-Operator Inputs'!J190,0) -> 0 | K14: =IF($E$13="Y",'Owner-Operator Inputs'!K127+'Owner-Operator Inputs'!K64+'Owner-Operator Inputs'!K190,0) -> 0 | L14: =IF($E$13="Y",'Owner-Operator Inputs'!L127+'Owner-Operator Inputs'!L64+'Owner-Operator Inputs'!L190,0) -> 0 | M14: =IF($E$13="Y",'Owner-Operator Inputs'!M127+'Owner-Operator Inputs'!M64+'Owner-Operator Inputs'!M190,0) -> 0 | N14: =IF($E$13="Y",'Owner-Operator Inputs'!N127+'Owner-Operator Inputs'!N64+'Owner-Operator Inputs'!N190,0) -> 0 | O14: =IF($E$13="Y",'Owner-Operator Inputs'!O127+'Owner-Operator Inputs'!O64+'Owner-Operator Inputs'!O190,0) -> 0
A16: Point of Sale Revenue (Increases in revenue due to increased customer traffic)
A17: Average expected revenue per customer per minute ($) | C17: ='Sensitivity Tables'!$A$162 -> 1 | E17: 1 | F17: *Sensitivity analysis variable
A19: Type 1 stations capture customer traffic revenue | E19: N
A20: Maximum retail revenue per customer per session for type 1 stations ($) | C20: ='Sensitivity Tables'!$A$179 -> 20 | E20: 20 | F20: *Sensitivity analysis variable
A21: Number of additional visits per year for type 1 stations (visits) | F21: ='Owner-Operator Inputs'!F$32 -> 9600 | G21: ='Owner-Operator Inputs'!G$32 -> 11712 | H21: ='Owner-Operator Inputs'!H$32 -> 14289 | I21: ='Owner-Operator Inputs'!I$32 -> 17433 | J21: ='Owner-Operator Inputs'!J$32 -> 21268 | K21: ='Owner-Operator Inputs'!K$32 -> 25947 | L21: ='Owner-Operator Inputs'!L$32 -> 29200 | M21: ='Owner-Operator Inputs'!M$32 -> 29200 | N21: ='Owner-Operator Inputs'!N$32 -> 29200 | O21: ='Owner-Operator Inputs'!O$32 -> 29200
A22: Average time spent per customer per visit for type 1 stations (minutes) | E22: ='Owner-Operator Inputs'!$E$38 -> 30
A23: Expected annual revenue from increased traffic for type 1 stations | F23: =IF($E19="Y",MIN(F21*$E22*$C$17,F21*$C20),) -> 0 | G23: 0 | H23: 0 | I23: 0 | J23: 0 | K23: 0 | L23: 0 | M23: 0 | N23: 0 | O23: 0
A25: Type 2 stations capture customer traffic revenue | E25: Y
A26: Maximum retail revenue per customer per session for type 2 stations ($) | C26: ='Sensitivity Tables'!$A$196 -> 25 | E26: 25 | F26: *Sensitivity analysis variable
A27: Number of additional visits per year for type 2 stations (visits) | F27: ='Owner-Operator Inputs'!F$95 -> 20000 | G27: ='Owner-Operator Inputs'!G$95 -> 24400 | H27: ='Owner-Operator Inputs'!H$95 -> 29768 | I27: ='Owner-Operator Inputs'!I$95 -> 36317 | J27: ='Owner-Operator Inputs'!J$95 -> 44307 | K27: ='Owner-Operator Inputs'!K$95 -> 54055 | L27: ='Owner-Operator Inputs'!L$95 -> 60000 | M27: ='Owner-Operator Inputs'!M$95 -> 60000 | N27: ='Owner-Operator Inputs'!N$95 -> 60000 | O27: ='Owner-Operator Inputs'!O$95 -> 60000
A28: Average time spent per customer per visit for type 2 stations (minutes) | E28: ='Owner-Operator Inputs'!E101 -> 90
A29: Expected annual revenue from increased traffic for type 2 stations | F29: =IF($E25="Y",MIN(F27*$E28*$C$17,F27*$C26),) -> 500000 | G29: 610000 | H29: 744200 | I29: 907925 | J29: 1107675 | K29: 1351375 | L29: 1500000 | M29: 1500000 | N29: 1500000 | O29: 1500000
A31: Type 3 stations capture customer traffic revenue | E31: Y
A32: Maximum retail revenue per customer per session for type 3 stations ($) | C32: ='Sensitivity Tables'!$A$213 -> 25 | E32: 25 | F32: *Sensitivity analysis variable
A33: Number of additional visits per year for type 3 stations (visits) | F33: ='Owner-Operator Inputs'!F$158 -> 2400 | G33: ='Owner-Operator Inputs'!G$158 -> 2928 | H33: ='Owner-Operator Inputs'!H$158 -> 3572 | I33: ='Owner-Operator Inputs'!I$158 -> 4358 | J33: ='Owner-Operator Inputs'!J$158 -> 5317 | K33: ='Owner-Operator Inputs'!K$158 -> 6487 | L33: ='Owner-Operator Inputs'!L$158 -> 7300 | M33: ='Owner-Operator Inputs'!M$158 -> 7300 | N33: ='Owner-Operator Inputs'!N$158 -> 7300 | O33: ='Owner-Operator Inputs'!O$158 -> 7300
A34: Average time spent per customer per visit for type 3 stations (minutes) | E34: ='Owner-Operator Inputs'!E164 -> 30
A35: Expected annual revenue from increased traffic for type 3 stations | F35: =IF($E31="Y",MIN(F33*$E34*$C$17,F33*$C32),) -> 60000 | G35: 73200 | H35: 89300 | I35: 108950 | J35: 132925 | K35: 162175 | L35: 182500 | M35: 182500 | N35: 182500 | O35: 182500
A37: Indirect Revenue (Increases unrelated to customer time spent at station)
A38: Estimated NPV of lifetime after-tax profit per station - type 1 station [$] | C38: ='Sensitivity Tables'!$A$94 -> 10694 | E38: 10694 | F38: *Sensitivity analysis variable
A39: Annual per station indirect revenue - type 1 stations [$] | E39: =((-PMT($E$6,10,(C38))/(1-$E$8))/(1-$E$7))*0.62 -> 7999.999987
A40: Total annual indirect revenue all type 1 stations | F40: =$E39*'Owner-Operator Inputs'!$E$21 -> 63999.99989 | G40: =$E39*'Owner-Operator Inputs'!$E$21 -> 63999.99989 | H40: =$E39*'Owner-Operator Inputs'!$E$21 -> 63999.99989 | I40: =$E39*'Owner-Operator Inputs'!$E$21 -> 63999.99989 | J40: =$E39*'Owner-Operator Inputs'!$E$21 -> 63999.99989 | K40: =$E39*'Owner-Operator Inputs'!$E$21 -> 63999.99989 | L40: =$E39*'Owner-Operator Inputs'!$E$21 -> 63999.99989 | M40: =$E39*'Owner-Operator Inputs'!$E$21 -> 63999.99989 | N40: =$E39*'Owner-Operator Inputs'!$E$21 -> 63999.99989 | O40: =$E39*'Owner-Operator Inputs'!$E$21 -> 63999.99989
A41: Estimated NPV of lifetime after-tax profit per station - type 2 station [$] | C41: ='Sensitivity Tables'!$A$111 -> 500 | E41: 500 | F41: *Sensitivity analysis variable
A42: Annual per station indirect revenue - type 2 stations [$] | E42: =((-PMT($E$6,10,(C41))/(1-$E$8))/(1-$E$7))*0.62 -> 374.041518
A43: Total annual indirect revenue all type 2 stations | F43: =$E42*'Owner-Operator Inputs'!$E$84 -> 18702.0759 | G43: =$E42*'Owner-Operator Inputs'!$E$84 -> 18702.0759 | H43: =$E42*'Owner-Operator Inputs'!$E$84 -> 18702.0759 | I43: =$E42*'Owner-Operator Inputs'!$E$84 -> 18702.0759 | J43: =$E42*'Owner-Operator Inputs'!$E$84 -> 18702.0759 | K43: =$E42*'Owner-Operator Inputs'!$E$84 -> 18702.0759 | L43: =$E42*'Owner-Operator Inputs'!$E$84 -> 18702.0759 | M43: =$E42*'Owner-Operator Inputs'!$E$84 -> 18702.0759 | N43: =$E42*'Owner-Operator Inputs'!$E$84 -> 18702.0759 | O43: =$E42*'Owner-Operator Inputs'!$E$84 -> 18702.0759
A44: Estimated NPV of lifetime after-tax profit per station - type 3 station [$] | C44: ='Sensitivity Tables'!$A$128 -> 10694 | E44: 10694 | F44: *Sensitivity analysis variable
A45: Annual per station indirect revenue - type 3 stations [$] | E45: =((-PMT($E$6,10,(C44))/(1-$E$8))/(1-$E$7))*0.62 -> 7999.999987
A46: Total annual indirect revenue all type 3 stations | F46: =$E45*'Owner-Operator Inputs'!$E$147 -> 15999.99997 | G46: =$E45*'Owner-Operator Inputs'!$E$147 -> 15999.99997 | H46: =$E45*'Owner-Operator Inputs'!$E$147 -> 15999.99997 | I46: =$E45*'Owner-Operator Inputs'!$E$147 -> 15999.99997 | J46: =$E45*'Owner-Operator Inputs'!$E$147 -> 15999.99997 | K46: =$E45*'Owner-Operator Inputs'!$E$147 -> 15999.99997 | L46: =$E45*'Owner-Operator Inputs'!$E$147 -> 15999.99997 | M46: =$E45*'Owner-Operator Inputs'!$E$147 -> 15999.99997 | N46: =$E45*'Owner-Operator Inputs'!$E$147 -> 15999.99997 | O46: =$E45*'Owner-Operator Inputs'!$E$147 -> 15999.99997
A47: Total annual indirect revenue | F47: =SUM(F40:F46) -> 98702.07577 | G47: =SUM(G40:G46) -> 98702.07577 | H47: 98702.07577 | I47: 98702.07577 | J47: 98702.07577 | K47: 98702.07577 | L47: 98702.07577 | M47: 98702.07577 | N47: 98702.07577 | O47: 98702.07577
A49: Total expected revenue | F49: =F14+F23+F29+F35+F47 -> 658702.0758 | G49: 781902.0758 | H49: 932202.0758 | I49: 1115577.076 | J49: 1339302.076 | K49: 1612252.076 | L49: 1781202.076 | M49: 1781202.076 | N49: 1781202.076 | O49: 1781202.076
A51: Costs
F52: =+'Initial Settings'!$C$7+1 -> 2016 | G52: =F52+1 -> 2017 | H52: =G52+1 -> 2018 | I52: =H52+1 -> 2019 | J52: =I52+1 -> 2020 | K52: =J52+1 -> 2021 | L52: =K52+1 -> 2022 | M52: =L52+1 -> 2023 | N52: =M52+1 -> 2024 | O52: =N52+1 -> 2025
A53: Cost of Goods Sold | F53: =(F23+F29+F35+F47)*$E$7 -> 526961.6606 | G53: 625521.6606 | H53: 745761.6606 | I53: 892461.6606 | J53: 1071441.661 | K53: 1289801.661 | L53: 1424961.661 | M53: 1424961.661 | N53: 1424961.661 | O53: 1424961.661
A54: Annual customer revenue sharing agreement (from sales) [% of revenue] | C54: ='Sensitivity Tables'!$A$145 -> 0.1 | E54: 0.1 | F54: *Sensitivity analysis variable
A55: Annual customer revenue sharing costs (paid to owner operator) [$] | F55: =(F23+F29+F35)*$C$54 -> 56000 | G55: =(G23+G29+G35)*$C$54 -> 68320 | H55: 83350 | I55: 101687.5 | J55: 124060 | K55: 151355 | L55: 168250 | M55: 168250 | N55: 168250 | O55: 168250
A56: Per Station Subsidy - Type 1 Stations [$] | E56: 7000
A57: Per Station Subsidy - Type 2 Stations [$] | E57: 500
A58: Per Station Subsidy - Type 3 Stations [$] | E58: 7000
A59: One-time initial charging equipment cost subsidy (paid to owner operator) [$] | F59: ='Owner-Operator Inputs'!$E$21*$E$56+'Owner-Operator Inputs'!$E$84*$E$57+'Owner-Operator Inputs'!$E$147*$E$58 -> 95000
A60: Annual flat fee (paid to owner operator) [$] | E60: 0 | F60: =$E$60 -> 0 | G60: =$E$60 -> 0 | H60: 0 | I60: 0 | J60: 0 | K60: 0 | L60: 0 | M60: 0 | N60: 0 | O60: 0
A62: Total expected costs | F62: =SUM(F53:F60) -> 677961.6606 | G62: =SUM(G53:G60) -> 693841.6606 | H62: 829111.6606 | I62: 994149.1606 | J62: 1195501.661 | K62: 1441156.661 | L62: 1593211.661 | M62: 1593211.661 | N62: 1593211.661 | O62: 1593211.661

Sheet Public Sector Partner Inputs
A1: ='Initial Settings'!$C$6 -> Washington EV - Business Model 3 - Walla Walla
A4: Public Sector Partner Inputs
A6: Public Sector Cost of Capital [%] | E6: 0.054
A8: Support for Initial Capitalization of Charging Infrastructure
A9: Amount of debt needed | E9: ='Owner-Operator Inputs'!E236 -> 830460
A10: Public sector funded portion of debt [% of debt needed] | D10: 0.5 | E10: =E9*D10 -> 415230
A11: Term [years] | E11: 10
A12: Rate (APR) [%] | E12: 0.054
A13: Amount of equity needed | E13: ='Owner-Operator Inputs'!E233 -> 553640 | G13: =('Owner-Operator Inputs'!E14*'Owner-Operator Inputs'!E21)+('Owner-Operator Inputs'!E77*'Owner-Operator Inputs'!E84)+('Owner-Operator Inputs'!E140*'Owner-Operator Inputs'!E147) -> 475000 | H13: <-Total equipment cost
A14: Public sector funded portion of equity investment [% of equity needed] | D14: 0 | E14: =E13*D14 -> 0 | G14: =E17/G13 -> 0.5 | H14: <-Percent of equipment cost funded by grant
A15: Public sector equity has capped annual returns? | E15: N
A16: Annual equity return cap [%] | E16: 0.054
A17: Non-shareholder contribution to capital (grants, etc.) [% of equity needed] | D17: 0.42897912 | E17: =E13*D17 -> 237500
A18: Equity amount + grant amount should not exceed 100%--> | D18: =D17+D14 -> 0.42897912
A19: Projected Additional Ongoing Support | F19: =+'Initial Settings'!$C$7+1 -> 2016 | G19: =F19+1 -> 2017 | H19: =G19+1 -> 2018 | I19: 2019 | J19: 2020 | K19: 2021 | L19: 2022 | M19: 2023 | N19: 2024 | O19: 2025
A20: Other annual non-revolving support (grants, etc.) [$]

Sheet Owner-Operator DCF
A1: ='Initial Settings'!$C$6 -> Washington EV - Business Model 3 - Walla Walla
A4: Owner/Operator Discounted Cash Flow Model | C4: ='Initial Settings'!$C$7 -> 2015 | D4: ='Owner-Operator Inputs'!F254 -> 2016 | E4: ='Owner-Operator Inputs'!G254 -> 2017 | F4: ='Owner-Operator Inputs'!H254 -> 2018 | G4: ='Owner-Operator Inputs'!I254 -> 2019 | H4: ='Owner-Operator Inputs'!J254 -> 2020 | I4: ='Owner-Operator Inputs'!K254 -> 2021 | J4: ='Owner-Operator Inputs'!L254 -> 2022 | K4: ='Owner-Operator Inputs'!M254 -> 2023 | L4: ='Owner-Operator Inputs'!N254 -> 2024 | M4: ='Owner-Operator Inputs'!O254 -> 2025
A6: Revenue | D6: ='Owner-Operator Inputs'!F216 -> 291000 | E6: ='Owner-Operator Inputs'!G216 -> 239120 | F6: ='Owner-Operator Inputs'!H216 -> 291727.5 | G6: ='Owner-Operator Inputs'!I216 -> 355912.5 | H6: ='Owner-Operator Inputs'!J216 -> 434215 | I6: ='Owner-Operator Inputs'!K216 -> 529747.5 | J6: ='Owner-Operator Inputs'!L216 -> 592000 | K6: ='Owner-Operator Inputs'!M216 -> 592000 | L6: ='Owner-Operator Inputs'!N216 -> 592000 | M6: ='Owner-Operator Inputs'!O216 -> 592000
A7: Operating Costs | D7: =-'Owner-Operator Inputs'!F225 -> -94533.6 | E7: =-'Owner-Operator Inputs'!G225 -> -98449.0912 | F7: =-'Owner-Operator Inputs'!H225 -> -109041.131 | G7: =-'Owner-Operator Inputs'!I225 -> -121988.3676 | H7: =-'Owner-Operator Inputs'!J225 -> -137813.0115 | I7: =-'Owner-Operator Inputs'!K225 -> -157156.1028 | J7: =-'Owner-Operator Inputs'!L225 -> -169857.8096 | K7: =-'Owner-Operator Inputs'!M225 -> -170081.4551 | L7: =-'Owner-Operator Inputs'!N225 -> -170305.6598 | M7: =-'Owner-Operator Inputs'!O225 -> -170530.4249
A8: EBITDA | D8: =SUM(D6:D7) -> 196466.4 | E8: 140670.9088 | F8: 182686.369 | G8: 233924.1324 | H8: 296401.9885 | I8: 372591.3972 | J8: 422142.1904 | K8: 421918.5449 | L8: 421694.3402 | M8: 421469.5751
A9: Dep & Amortization | D9: =-'Owner-Operator Inputs'!F263 -> -135500 | E9: =-'Owner-Operator Inputs'!G263 -> -135500 | F9: =-'Owner-Operator Inputs'!H263 -> -135500 | G9: =-'Owner-Operator Inputs'!I263 -> -135500 | H9: =-'Owner-Operator Inputs'!J263 -> -135500 | I9: =-'Owner-Operator Inputs'!K263 -> -135500 | J9: =-'Owner-Operator Inputs'!L263 -> -135500 | K9: =-'Owner-Operator Inputs'!M263 -> -135500 | L9: =-'Owner-Operator Inputs'!N263 -> -135500 | M9: =-'Owner-Operator Inputs'!O263 -> -135500
A10: Operating Income (EBIT) | D10: =SUM(D8:D9) -> 60966.4 | E10: 5170.9088 | F10: 47186.36903 | G10: 98424.13236 | H10: 160901.9885 | I10: 237091.3972 | J10: 286642.1904 | K10: 286418.5449 | L10: 286194.3402 | M10: 285969.5751
A11: Interest Expense | D11: ='Income Statement'!C30 -> -56012.718 | E11: ='Income Statement'!D30 -> -51903.69642 | F11: ='Income Statement'!E30 -> -47650.28376 | G11: ='Income Statement'!F30 -> -43113.9635 | H11: ='Income Statement'!G30 -> -38276.75464 | I11: ='Income Statement'!H30 -> -33119.84951 | J11: ='Income Statement'!I30 -> -27554.23541 | K11: ='Income Statement'!J30 -> -21516.623 | L11: ='Income Statement'!K30 -> -15058.37122 | M11: ='Income Statement'!L30 -> -8149.19688
A12: Income Before Taxes (EBT) | D12: =SUM(D10:D11) -> 4953.682 | E12: -46732.78762 | F12: -463.9147271 | G12: 55310.16887 | H12: 122625.2338 | I12: 203971.5477 | J12: 259087.955 | K12: 264901.9219 | L12: 271135.969 | M12: 277820.3782
A13: Taxes | D13: =-D12*'Owner-Operator Inputs'!F272 -> -1565.389626 | E13: =-E12*'Owner-Operator Inputs'!G272 -> 14767.80725 | F13: =-F12*'Owner-Operator Inputs'!H272 -> 146.5994994 | G13: =-G12*'Owner-Operator Inputs'!I272 -> -17478.30494 | H13: =-H12*'Owner-Operator Inputs'!J272 -> -38750.22033 | I13: =-I12*'Owner-Operator Inputs'!K272 -> -64456.08432 | J13: =-J12*'Owner-Operator Inputs'!L272 -> -81873.1596 | K13: =-K12*'Owner-Operator Inputs'!M272 -> -83710.40378 | L13: =-L12*'Owner-Operator Inputs'!N272 -> -85680.39554 | M13: =-M12*'Owner-Operator Inputs'!O272 -> -87792.70408
A14: Cash Flow from Operations | D14: =D8+D11+D13 -> 138888.2924 | E14: 103535.0196 | F14: 135182.6848 | G14: 173331.8639 | H14: 219375.0135 | I14: 275015.4633 | J14: 312714.7954 | K14: 316691.5181 | L14: 320955.5735 | M14: 325527.6741
A15: Change in Non-cash Assets | D15: =-(SUM('Balance Sheet'!C8:C10)-SUM('Balance Sheet'!B8:B10)+('Balance Sheet'!C14-'Balance Sheet'!B14)) -> -14550 | E15: =-(SUM('Balance Sheet'!D8:D10)-SUM('Balance Sheet'!C8:C10)+('Balance Sheet'!D14-'Balance Sheet'!C14)) -> 2594 | F15: =-(SUM('Balance Sheet'!E8:E10)-SUM('Balance Sheet'!D8:D10)+('Balance Sheet'!E14-'Balance Sheet'!D14)) -> -2630.375 | G15: =-(SUM('Balance Sheet'!F8:F10)-SUM('Balance Sheet'!E8:E10)+('Balance Sheet'!F14-'Balance Sheet'!E14)) -> -3209.25 | H15: =-(SUM('Balance Sheet'!G8:G10)-SUM('Balance Sheet'!F8:F10)+('Balance Sheet'!G14-'Balance Sheet'!F14)) -> -3915.125 | I15: =-(SUM('Balance Sheet'!H8:H10)-SUM('Balance Sheet'!G8:G10)+('Balance Sheet'!H14-'Balance Sheet'!G14)) -> -4776.625 | J15: =-(SUM('Balance Sheet'!I8:I10)-SUM('Balance Sheet'!H8:H10)+('Balance Sheet'!I14-'Balance Sheet'!H14)) -> -3112.625 | K15: =-(SUM('Balance Sheet'!J8:J10)-SUM('Balance Sheet'!I8:I10)+('Balance Sheet'!J14-'Balance Sheet'!I14)) -> 0 | L15: =-(SUM('Balance Sheet'!K8:K10)-SUM('Balance Sheet'!J8:J10)+('Balance Sheet'!K14-'Balance Sheet'!J14)) -> 0 | M15: =-(SUM('Balance Sheet'!L8:L10)-SUM('Balance Sheet'!K8:K10)+('Balance Sheet'!L14-'Balance Sheet'!K14)) -> 0
A16: Change in Liabilities | D16: ='Balance Sheet'!C33-'Balance Sheet'!B33 -> -17414.4067 | E16: ='Balance Sheet'!D33-'Balance Sheet'!C33 -> -72889.12564 | F16: ='Balance Sheet'!E33-'Balance Sheet'!D33 -> -61536.64568 | G16: ='Balance Sheet'!F33-'Balance Sheet'!E33 -> -64418.36938 | H16: ='Balance Sheet'!G33-'Balance Sheet'!F33 -> -67238.02383 | I16: ='Balance Sheet'!H33-'Balance Sheet'!G33 -> -69932.51949 | J16: ='Balance Sheet'!I33-'Balance Sheet'!H33 -> -80569.69229 | K16: ='Balance Sheet'!J33-'Balance Sheet'!I33 -> -95945.1797 | L16: ='Balance Sheet'!K33-'Balance Sheet'!J33 -> -102403.4315 | M16: ='Balance Sheet'!L33-'Balance Sheet'!K33 -> -109312.6058
A18: Free Cash Flow to Equity | D18: =SUM(D14:D16) -> 106923.8857 | E18: 33239.89399 | F18: 71015.66409 | G18: 105704.2446 | H18: 148221.8647 | I18: 200306.3188 | J18: 229032.4781 | K18: 220746.3384 | L18: 218552.142 | M18: 216215.0683
A19: Terminal Value | M19: ='Terminal Value Model'!M16 -> -88800
A20: Free Cash Flow to Public Equity Holders | D20: =IF('Public Sector Partner Inputs'!$E$15="Y",MIN(SUM(D18:D19)*'Owner-Operator Inputs'!$D$234,'Balance Sheet'!C$36*'Owner-Operator Inputs'!$D$234*pusp_equity_return_cap),SUM(D18:D19)*'Owner-Operator Inputs'!$D$234) -> 0 | E20: =IF('Public Sector Partner Inputs'!$E$15="Y",MIN(SUM(E18:E19)*'Owner-Operator Inputs'!$D$234,'Balance Sheet'!D$36*'Owner-Operator Inputs'!$D$234*pusp_equity_return_cap),SUM(E18:E19)*'Owner-Operator Inputs'!$D$234) -> 0 | F20: =IF('Public Sector Partner Inputs'!$E$15="Y",MIN(SUM(F18:F19)*'Owner-Operator Inputs'!$D$234,'Balance Sheet'!E$36*'Owner-Operator Inputs'!$D$234*pusp_equity_return_cap),SUM(F18:F19)*'Owner-Operator Inputs'!$D$234) -> 0 | G20: =IF('Public Sector Partner Inputs'!$E$15="Y",MIN(SUM(G18:G19)*'Owner-Operator Inputs'!$D$234,'Balance Sheet'!F$36*'Owner-Operator Inputs'!$D$234*pusp_equity_return_cap),SUM(G18:G19)*'Owner-Operator Inputs'!$D$234) -> 0 | H20: =IF('Public Sector Partner Inputs'!$E$15="Y",MIN(SUM(H18:H19)*'Owner-Operator Inputs'!$D$234,'Balance Sheet'!G$36*'Owner-Operator Inputs'!$D$234*pusp_equity_return_cap),SUM(H18:H19)*'Owner-Operator Inputs'!$D$234) -> 0 | I20: =IF('Public Sector Partner Inputs'!$E$15="Y",MIN(SUM(I18:I19)*'Owner-Operator Inputs'!$D$234,'Balance Sheet'!H$36*'Owner-Operator Inputs'!$D$234*pusp_equity_return_cap),SUM(I18:I19)*'Owner-Operator Inputs'!$D$234) -> 0 | J20: =IF('Public Sector Partner Inputs'!$E$15="Y",MIN(SUM(J18:J19)*'Owner-Operator Inputs'!$D$234,'Balance Sheet'!I$36*'Owner-Operator Inputs'!$D$234*pusp_equity_return_cap),SUM(J18:J19)*'Owner-Operator Inputs'!$D$234) -> 0 | K20: =IF('Public Sector Partner Inputs'!$E$15="Y",MIN(SUM(K18:K19)*'Owner-Operator Inputs'!$D$234,'Balance Sheet'!J$36*'Owner-Operator Inputs'!$D$234*pusp_equity_return_cap),SUM(K18:K19)*'Owner-Operator Inputs'!$D$234) -> 0 | L20: =IF('Public Sector Partner Inputs'!$E$15="Y",MIN(SUM(L18:L19)*'Owner-Operator Inputs'!$D$234,'Balance Sheet'!K$36*'Owner-Operator Inputs'!$D$234*pusp_equity_return_cap),SUM(L18:L19)*'Owner-Operator Inputs'!$D$234) -> 0 | M20: =IF('Public Sector Partner Inputs'!$E$15="Y",MIN(SUM(M18:M19)*'Owner-Operator Inputs'!$D$234,'Balance Sheet'!L$36*'Owner-Operator Inputs'!$D$234*pusp_equity_return_cap),SUM(M18:M19)*'Owner-Operator Inputs'!$D$234) -> 0
A21: Total Free Cash Flow to Owner-Operator Equity Holders | C21: =-('Owner-Operator Inputs'!E233-'Public Sector Partner Inputs'!E14-'Public Sector Partner Inputs'!E17) -> -316140 | D21: =SUM(D18:D19)-D20 -> 106923.8857 | E21: 33239.89399 | F21: 71015.66409 | G21: 105704.2446 | H21: 148221.8647 | I21: 200306.3188 | J21: 229032.4781 | K21: 220746.3384 | L21: 218552.142 | M21: 127415.0683
A22: Discount Factor | B22: ='Owner-Operator Inputs'!$E$247 -> 0.1025 | C22: =(1/(1+$B$22))^(COLUMN(C22)-COLUMN($C$22)) -> 1 | D22: =(1/(1+$B$22))^(COLUMN(D22)-COLUMN($C$22)) -> 0.9070294785 | E22: 0.8227024748 | F22: 0.7462153966 | G22: 0.676839362 | H22: 0.6139132535 | I22: 0.5568374182 | J22: 0.505067953 | K22: 0.458111522 | L22: 0.4155206549 | M22: 0.3768894829
A23: Discounted Cash Flows | C23: =C21*C22 -> -316140 | D23: 96983.11626 | E23: 27346.54304 | F23: 52992.98195 | G23: 71544.79345 | H23: 90995.36719 | I23: 111538.0534 | J23: 115676.9649 | K23: 101126.4411 | L23: 90812.92917 | M23: 48021.39921
A24: Cumulative Discounted Cash Flows | C24: =C23 -> -316140 | D24: =C24+D23 -> -219156.8837 | E24: =D24+E23 -> -191810.3407 | F24: -138817.3588 | G24: -67272.56531 | H24: 23722.80189 | I24: 135260.8553 | J24: 250937.8202 | K24: 352064.2613 | L24: 442877.1904 | M24: 490898.5896
A26: Net Present Value for Owner-Operator Equity Holders | C26: =SUM(C23:M23) -> 490898.5896
A27: Internal Rate of Return for Owner-Operator Equity Holders | C27: =IFERROR(IRR(C23:M23,0.1),"N/A") -> 0.2033799221
A28: Discounted Payback | C28: =IFERROR(IF(MATCH(0,$D$24:$M$24,1)>=10,"N/A",MATCH(0,$D$24:$M$24,1)+1),1) -> 5

Sheet Private Sector Partner DCF
A1: ='Initial Settings'!$C$6 -> Washington EV - Business Model 3 - Walla Walla
A4: Private Sector Discounted Cash Flow Model | C4: ='Initial Settings'!$C$7 -> 2015 | D4: ='Owner-Operator Inputs'!F254 -> 2016 | E4: ='Owner-Operator Inputs'!G254 -> 2017 | F4: ='Owner-Operator Inputs'!H254 -> 2018 | G4: ='Owner-Operator Inputs'!I254 -> 2019 | H4: ='Owner-Operator Inputs'!J254 -> 2020 | I4: ='Owner-Operator Inputs'!K254 -> 2021 | J4: ='Owner-Operator Inputs'!L254 -> 2022 | K4: ='Owner-Operator Inputs'!M254 -> 2023 | L4: ='Owner-Operator Inputs'!N254 -> 2024 | M4: ='Owner-Operator Inputs'!O254 -> 2025
A6: Revenue | D6: ='Private Sector Partner Inputs'!F49 -> 658702.0758 | E6: ='Private Sector Partner Inputs'!G49 -> 781902.0758 | F6: ='Private Sector Partner Inputs'!H49 -> 932202.0758 | G6: ='Private Sector Partner Inputs'!I49 -> 1115577.076 | H6: ='Private Sector Partner Inputs'!J49 -> 1339302.076 | I6: ='Private Sector Partner Inputs'!K49 -> 1612252.076 | J6: ='Private Sector Partner Inputs'!L49 -> 1781202.076 | K6: ='Private Sector Partner Inputs'!M49 -> 1781202.076 | L6: ='Private Sector Partner Inputs'!N49 -> 1781202.076 | M6: ='Private Sector Partner Inputs'!O49 -> 1781202.076
A7: Operating Costs | D7: =-'Private Sector Partner Inputs'!F62 -> -677961.6606 | E7: =-'Private Sector Partner Inputs'!G62 -> -693841.6606 | F7: =-'Private Sector Partner Inputs'!H62 -> -829111.6606 | G7: =-'Private Sector Partner Inputs'!I62 -> -994149.1606 | H7: =-'Private Sector Partner Inputs'!J62 -> -1195501.661 | I7: =-'Private Sector Partner Inputs'!K62 -> -1441156.661 | J7: =-'Private Sector Partner Inputs'!L62 -> -1593211.661 | K7: =-'Private Sector Partner Inputs'!M62 -> -1593211.661 | L7: =-'Private Sector Partner Inputs'!N62 -> -1593211.661 | M7: =-'Private Sector Partner Inputs'!O62 -> -1593211.661
A8: EBITDA | D8: =SUM(D6:D7) -> -19259.58485 | E8: 88060.41515 | F8: 103090.4152 | G8: 121427.9152 | H8: 143800.4152 | I8: 171095.4152 | J8: 187990.4152 | K8: 187990.4152 | L8: 187990.4152 | M8: 187990.4152
A9: Dep & Amortization
A10: Operating Income (EBIT) | D10: =SUM(D8:D9) -> -19259.58485 | E10: 88060.41515 | F10: 103090.4152 | G10: 121427.9152 | H10: 143800.4152 | I10: 171095.4152 | J10: 187990.4152 | K10: 187990.4152 | L10: 187990.4152 | M10: 187990.4152
A11: Interest Expense
A12: Income Before Taxes (EBT) | D12: =SUM(D10:D11) -> -19259.58485 | E12: 88060.41515 | F12: 103090.4152 | G12: 121427.9152 | H12: 143800.4152 | I12: 171095.4152 | J12: 187990.4152 | K12: 187990.4152 | L12: 187990.4152 | M12: 187990.4152
A13: Taxes | D13: =-D12*'Private Sector Partner Inputs'!$E$8 -> 6086.130341 | E13: =-E12*'Private Sector Partner Inputs'!$E$8 -> -27827.55541 | F13: =-F12*'Private Sector Partner Inputs'!$E$8 -> -32577.11464 | G13: =-G12*'Private Sector Partner Inputs'!$E$8 -> -38371.86131 | H13: =-H12*'Private Sector Partner Inputs'!$E$8 -> -45441.68925 | I13: =-I12*'Private Sector Partner Inputs'!$E$8 -> -54067.05314 | J13: =-J12*'Private Sector Partner Inputs'!$E$8 -> -59405.96221 | K13: =-K12*'Private Sector Partner Inputs'!$E$8 -> -59405.96221 | L13: =-L12*'Private Sector Partner Inputs'!$E$8 -> -59405.96221 | M13: =-M12*'Private Sector Partner Inputs'!$E$8 -> -59405.96221
A14: Cash Flow from Operations | D14: =D8+D11+D13 -> -13173.45451 | E14: 60232.85974 | F14: 70513.30051 | G14: 83056.05384 | H14: 98358.7259 | I14: 117028.362 | J14: 128584.4529 | K14: 128584.4529 | L14: 128584.4529 | M14: 128584.4529
A15: Change in Non-cash Assets
A16: Change in Liabilities
A18: Free Cash Flow | D18: =SUM(D14:D16) -> -13173.45451 | E18: 60232.85974 | F18: 70513.30051 | G18: 83056.05384 | H18: 98358.7259 | I18: 117028.362 | J18: 128584.4529 | K18: 128584.4529 | L18: 128584.4529 | M18: 128584.4529
A19: Terminal Value | M19: 0
A20: Total Free Cash Flow | C20: 0 | D20: =D18+D19 -> -13173.45451 | E20: 60232.85974 | F20: 70513.30051 | G20: 83056.05384 | H20: 98358.7259 | I20: 117028.362 | J20: 128584.4529 | K20: 128584.4529 | L20: 128584.4529 | M20: 128584.4529
A21: Discount Factor (WACC) | B21: ='Private Sector Partner Inputs'!$E$6 -> 0.1033 | C21: =(1/(1+$B$21))^(COLUMN(C21)-COLUMN($C$21)) -> 1 | D21: =(1/(1+$B$21))^(COLUMN(D21)-COLUMN($C$21)) -> 0.9063717937 | E21: 0.8215098284 | F21: 0.7445933367 | G21: 0.6748783982 | H21: 0.6116907443 | I21: 0.5544192371 | J21: 0.5025099584 | K21: 0.4554608524 | L21: 0.4128168697 | M21: 0.3741655667
A22: Discounted Cash Flows | C22: =C20*C21 -> 0 | D22: -11940.04759 | E22: 49481.88627 | F22: 52503.73371 | G22: 56052.73658 | H22: 60165.12226 | I22: 64882.77519 | J22: 64614.9681 | K22: 58565.18454 | L22: 53081.83136 | M22: 48111.8747
A23: Cumulative Discounted Cash Flows | C23: =C22 -> 0 | D23: =C23+D22 -> -11940.04759 | E23: =D23+E22 -> 37541.83868 | F23: 90045.57239 | G23: 146098.309 | H23: 206263.4312 | I23: 271146.2064 | J23: 335761.1745 | K23: 394326.3591 | L23: 447408.1904 | M23: 495520.0651
A25: Net Present Value | C25: =SUM(C22:M22) -> 495520.0651
A26: Internal Rate of Return | C26: =IFERROR(IRR(C22:M22,0.1),"N/A") -> 4.206706439
A27: Discounted Payback | C27: =IFERROR(IF(MATCH(0,$D$23:$M$23,1)>=10,"N/A",MATCH(0,$D$23:$M$23,1)+1),1) -> 2

Sheet Public Sector Partner DCF
A1: ='Initial Settings'!$C$6 -> Washington EV - Business Model 3 - Walla Walla
A4: Public Sector Discounted Cash Flow Model | C4: ='Initial Settings'!$C$7 -> 2015 | D4: ='Owner-Operator Inputs'!F254 -> 2016 | E4: ='Owner-Operator Inputs'!G254 -> 2017 | F4: ='Owner-Operator Inputs'!H254 -> 2018 | G4: ='Owner-Operator Inputs'!I254 -> 2019 | H4: ='Owner-Operator Inputs'!J254 -> 2020 | I4: ='Owner-Operator Inputs'!K254 -> 2021 | J4: ='Owner-Operator Inputs'!L254 -> 2022 | K4: ='Owner-Operator Inputs'!M254 -> 2023 | L4: ='Owner-Operator Inputs'!N254 -> 2024 | M4: ='Owner-Operator Inputs'!O254 -> 2025
A6: Cash Outflows
A7: Loan disbursement | C7: =-'Public Sector Partner Inputs'!E10 -> -415230
A8: Equity investment | C8: =-'Public Sector Partner Inputs'!E14 -> 0
A9: Non-shareholder contributions to capital (grants) | C9: =-'Public Sector Partner Inputs'!E17 -> -237500 | D9: =-'Public Sector Partner Inputs'!F20 -> 0 | E9: ='Public Sector Partner Inputs'!G20 -> 0 | F9: ='Public Sector Partner Inputs'!H20 -> 0 | G9: ='Public Sector Partner Inputs'!I20 -> 0 | H9: ='Public Sector Partner Inputs'!J20 -> 0 | I9: ='Public Sector Partner Inputs'!K20 -> 0 | J9: ='Public Sector Partner Inputs'!L20 -> 0 | K9: ='Public Sector Partner Inputs'!M20 -> 0 | L9: ='Public Sector Partner Inputs'!N20 -> 0 | M9: ='Public Sector Partner Inputs'!O20 -> 0
A10: Cash Inflows
A11: Loan repayments | D11: =-('Debt Schedule'!D6+'Debt Schedule'!D7) -> 54823.71211 | E11: =-('Debt Schedule'!E6+'Debt Schedule'!E7) -> 54823.71211 | F11: =-('Debt Schedule'!F6+'Debt Schedule'!F7) -> 54823.71211 | G11: =-('Debt Schedule'!G6+'Debt Schedule'!G7) -> 54823.71211 | H11: =-('Debt Schedule'!H6+'Debt Schedule'!H7) -> 54823.71211 | I11: =-('Debt Schedule'!I6+'Debt Schedule'!I7) -> 54823.71211 | J11: =-('Debt Schedule'!J6+'Debt Schedule'!J7) -> 54823.71211 | K11: =-('Debt Schedule'!K6+'Debt Schedule'!K7) -> 54823.71211 | L11: =-('Debt Schedule'!L6+'Debt Schedule'!L7) -> 54823.71211 | M11: =-('Debt Schedule'!M6+'Debt Schedule'!M7) -> 54823.71211
A12: Cash Flow from Equity (Public Sector Portion) | D12: ='Owner-Operator DCF'!D20 -> 0 | E12: ='Owner-Operator DCF'!E20 -> 0 | F12: ='Owner-Operator DCF'!F20 -> 0 | G12: ='Owner-Operator DCF'!G20 -> 0 | H12: ='Owner-Operator DCF'!H20 -> 0 | I12: ='Owner-Operator DCF'!I20 -> 0 | J12: ='Owner-Operator DCF'!J20 -> 0 | K12: ='Owner-Operator DCF'!K20 -> 0 | L12: ='Owner-Operator DCF'!L20 -> 0 | M12: ='Owner-Operator DCF'!M20 -> 0
A14: Free Cash Flow | C14: =SUM(C7:C12) -> -652730 | D14: 54823.71211 | E14: 54823.71211 | F14: 54823.71211 | G14: 54823.71211 | H14: 54823.71211 | I14: 54823.71211 | J14: 54823.71211 | K14: 54823.71211 | L14: 54823.71211 | M14: 54823.71211
A15: Terminal Values
A16: Loan terminal value | M16: =-NPV($B$19,'Debt Schedule'!N8:$W$8) -> 0
A17: Equity sale terminal value | M17: ='Owner-Operator DCF'!M19*'Owner-Operator Inputs'!$D$234 -> 0
A18: Total Free Cash Flow | C18: =SUM(C14:C17) -> -652730 | D18: 54823.71211 | E18: 54823.71211 | F18: 54823.71211 | G18: 54823.71211 | H18: 54823.71211 | I18: 54823.71211 | J18: 54823.71211 | K18: 54823.71211 | L18: 54823.71211 | M18: 54823.71211
A19: Discount Factor (WACC) | B19: ='Public Sector Partner Inputs'!$E$6 -> 0.054 | C19: =(1/(1+$B$19))^(COLUMN(C19)-COLUMN($C$19)) -> 1 | D19: =(1/(1+$B$19))^(COLUMN(D19)-COLUMN($C$19)) -> 0.9487666034 | E19: 0.9001580678 | F19: 0.8540399125 | G19: 0.8102845469 | H19: 0.7687709174 | I19: 0.7293841721 | J19: 0.6920153436 | K19: 0.656561047 | L19: 0.6229231945 | M19: 0.5910087235
A20: Discounted Cash Flows | C20: =C18*C19 -> -652730 | D20: 52014.90712 | E20: 49350.00676 | F20: 46821.63829 | G20: 44422.80673 | H20: 42146.87545 | I20: 39987.54787 | J20: 37938.84997 | K20: 35995.11382 | L20: 34150.96188 | M20: 32401.29211
A21: Cumulative Discounted Cash Flows | C21: =C20 -> -652730 | D21: =C21+D20 -> -600715.0929 | E21: =D21+E20 -> -551365.0861 | F21: -504543.4478 | G21: -460120.6411 | H21: -417973.7656 | I21: -377986.2178 | J21: -340047.3678 | K21: -304052.254 | L21: -269901.2921 | M21: -237500
A23: Net Present Value | C23: =SUM(C20:M20) -> -237500
A24: Internal Rate of Return | C24: =IFERROR(IRR(C20:M20,0.05),"N/A") -> -0.08019311406
A25: Discounted Payback | C25: =IFERROR(IF(MATCH(0,$D$21:$M$21,1)>=10,"N/A",MATCH(0,$D$21:$M$21,1)+1),1) -> N/A

Sheet Combined DCF
A1: ='Initial Settings'!$C$6 -> Washington EV - Business Model 3 - Walla Walla
A4: Combined Discounted Cash Flow Model | C4: ='Initial Settings'!$C$7 -> 2015 | D4: ='Owner-Operator Inputs'!F254 -> 2016 | E4: ='Owner-Operator Inputs'!G254 -> 2017 | F4: ='Owner-Operator Inputs'!H254 -> 2018 | G4: ='Owner-Operator Inputs'!I254 -> 2019 | H4: ='Owner-Operator Inputs'!J254 -> 2020 | I4: ='Owner-Operator Inputs'!K254 -> 2021 | J4: ='Owner-Operator Inputs'!L254 -> 2022 | K4: ='Owner-Operator Inputs'!M254 -> 2023 | L4: ='Owner-Operator Inputs'!N254 -> 2024 | M4: ='Owner-Operator Inputs'!O254 -> 2025
A6: Cash flow from owner operator | C6: ='Owner-Operator DCF'!C21 -> -316140 | D6: ='Owner-Operator DCF'!D21 -> 106923.8857 | E6: ='Owner-Operator DCF'!E21 -> 33239.89399 | F6: ='Owner-Operator DCF'!F21 -> 71015.66409 | G6: ='Owner-Operator DCF'!G21 -> 105704.2446 | H6: ='Owner-Operator DCF'!H21 -> 148221.8647 | I6: ='Owner-Operator DCF'!I21 -> 200306.3188 | J6: ='Owner-Operator DCF'!J21 -> 229032.4781 | K6: ='Owner-Operator DCF'!K21 -> 220746.3384 | L6: ='Owner-Operator DCF'!L21 -> 218552.142 | M6: ='Owner-Operator DCF'!M21 -> 127415.0683
A7: Cash flow from private sector partner | C7: ='Private Sector Partner DCF'!C20 -> 0 | D7: ='Private Sector Partner DCF'!D20 -> -13173.45451 | E7: ='Private Sector Partner DCF'!E20 -> 60232.85974 | F7: ='Private Sector Partner DCF'!F20 -> 70513.30051 | G7: ='Private Sector Partner DCF'!G20 -> 83056.05384 | H7: ='Private Sector Partner DCF'!H20 -> 98358.7259 | I7: ='Private Sector Partner DCF'!I20 -> 117028.362 | J7: ='Private Sector Partner DCF'!J20 -> 128584.4529 | K7: ='Private Sector Partner DCF'!K20 -> 128584.4529 | L7: ='Private Sector Partner DCF'!L20 -> 128584.4529 | M7: ='Private Sector Partner DCF'!M20 -> 128584.4529
A8: Cash flow from public sector partner | C8: ='Public Sector Partner DCF'!C18 -> -652730 | D8: ='Public Sector Partner DCF'!D18 -> 54823.71211 | E8: ='Public Sector Partner DCF'!E18 -> 54823.71211 | F8: ='Public Sector Partner DCF'!F18 -> 54823.71211 | G8: ='Public Sector Partner DCF'!G18 -> 54823.71211 | H8: ='Public Sector Partner DCF'!H18 -> 54823.71211 | I8: ='Public Sector Partner DCF'!I18 -> 54823.71211 | J8: ='Public Sector Partner DCF'!J18 -> 54823.71211 | K8: ='Public Sector Partner DCF'!K18 -> 54823.71211 | L8: ='Public Sector Partner DCF'!L18 -> 54823.71211 | M8: ='Public Sector Partner DCF'!M18 -> 54823.71211
A10: Total Free Cash Flow | C10: =SUM(C6:C8) -> -968870 | D10: 148574.1433 | E10: 148296.4658 | F10: 196352.6767 | G10: 243584.0105 | H10: 301404.3027 | I10: 372158.393 | J10: 412440.6432 | K10: 404154.5035 | L10: 401960.3071 | M10: 310823.2334
A11: Discount Factor (WACC) | B11: =('Owner-Operator Inputs'!$E$247*'Owner-Operator Inputs'!$D$235*'Owner-Operator Inputs'!$D$233)+('Owner-Operator Inputs'!C250*'Owner-Operator Inputs'!$D$238*'Owner-Operator Inputs'!$D$236)+(('Owner-Operator Inputs'!$D$233*'Owner-Operator Inputs'!$D$234+'Owner-Operator Inputs'!D236*'Owner-Operator Inputs'!$D$237)*'Public Sector Partner Inputs'!$E$6) -> 0.0812 | C11: =(1/(1+$B$11))^(COLUMN(C11)-COLUMN($C$11)) -> 1 | D11: =(1/(1+$B$11))^(COLUMN(D11)-COLUMN($C$11)) -> 0.9248982612 | E11: 0.8554367936 | F11: 0.7911920029 | G11: 0.7317721078 | H11: 0.6768147501 | I11: 0.6259847855 | J11: 0.5789722396 | K11: 0.5354904177 | L11: 0.4952741562 | M11: 0.4580782059
A12: Discounted Cash Flows | C12: =C10*C11 -> -968870 | D12: 137415.9668 | E12: 126858.2532 | F12: 155352.6676 | G12: 178247.9848 | H12: 203994.8778 | I12: 232965.4918 | J12: 238791.6829 | K12: 216420.8639 | L12: 199080.5519 | M12: 142381.3491
A13: Cumulative Discounted Cash Flows | C13: =C12 -> -968870 | D13: =C13+D12 -> -831454.0332 | E13: =D13+E12 -> -704595.78 | F13: -549243.1124 | G13: -370995.1277 | H13: -167000.2499 | I13: 65965.24193 | J13: 304756.9248 | K13: 521177.7887 | L13: 720258.3406 | M13: 862639.6897
A15: Net Present Value | B15: =SUM(C12:M12) -> 862639.6897
A16: Internal Rate of Return | B16: =IFERROR(IRR(C12:M12,0.05),"N/A") -> 0.1259093504
A17: Discounted Payback | B17: =IFERROR(IF(MATCH(0,$D$13:$M$13,1)>=10,"N/A",MATCH(0,$D$13:$M$13,1)+1),1) -> 6

Sheet Debt Schedule
A1: ='Initial Settings'!$C$6 -> Washington EV - Business Model 3 - Walla Walla
A4: Debt Schedule | C4: Year-> | D4: 1 | E4: =D4+1 -> 2 | F4: 3 | G4: 4 | H4: 5 | I4: 6 | J4: 7 | K4: 8 | L4: 9 | M4: 10 | N4: 11 | O4: 12 | P4: 13 | Q4: 14 | R4: 15 | S4: 16 | T4: 17 | U4: 18 | V4: 19 | W4: 20
A5: Public Sector Debt | C5: ='Public Sector Partner Inputs'!$E$10 -> 415230
A6: Annual Principal Payment | D6: =IF(D$4<='Public Sector Partner Inputs'!$E$11,PPMT('Public Sector Partner Inputs'!$E$12,D$4,'Public Sector Partner Inputs'!$E$11,'Public Sector Partner Inputs'!$E$10),0) -> -32401.29211 | E6: =IF(E$4<='Public Sector Partner Inputs'!$E$11,PPMT('Public Sector Partner Inputs'!$E$12,E$4,'Public Sector Partner Inputs'!$E$11,'Public Sector Partner Inputs'!$E$10),0) -> -34150.96188 | F6: =IF(F$4<='Public Sector Partner Inputs'!$E$11,PPMT('Public Sector Partner Inputs'!$E$12,F$4,'Public Sector Partner Inputs'!$E$11,'Public Sector Partner Inputs'!$E$10),0) -> -35995.11382 | G6: =IF(G$4<='Public Sector Partner Inputs'!$E$11,PPMT('Public Sector Partner Inputs'!$E$12,G$4,'Public Sector Partner Inputs'!$E$11,'Public Sector Partner Inputs'!$E$10),0) -> -37938.84997 | H6: =IF(H$4<='Public Sector Partner Inputs'!$E$11,PPMT('Public Sector Partner Inputs'!$E$12,H$4,'Public Sector Partner Inputs'!$E$11,'Public Sector Partner Inputs'!$E$10),0) -> -39987.54787 | I6: =IF(I$4<='Public Sector Partner Inputs'!$E$11,PPMT('Public Sector Partner Inputs'!$E$12,I$4,'Public Sector Partner Inputs'!$E$11,'Public Sector Partner Inputs'!$E$10),0) -> -42146.87545 | J6: =IF(J$4<='Public Sector Partner Inputs'!$E$11,PPMT('Public Sector Partner Inputs'!$E$12,J$4,'Public Sector Partner Inputs'!$E$11,'Public Sector Partner Inputs'!$E$10),0) -> -44422.80673 | K6: =IF(K$4<='Public Sector Partner Inputs'!$E$11,PPMT('Public Sector Partner Inputs'!$E$12,K$4,'Public Sector Partner Inputs'!$E$11,'Public Sector Partner Inputs'!$E$10),0) -> -46821.63829 | L6: =IF(L$4<='Public Sector Partner Inputs'!$E$11,PPMT('Public Sector Partner Inputs'!$E$12,L$4,'Public Sector Partner Inputs'!$E$11,'Public Sector Partner Inputs'!$E$10),0) -> -49350.00676 | M6: =IF(M$4<='Public Sector Partner Inputs'!$E$11,PPMT('Public Sector Partner Inputs'!$E$12,M$4,'Public Sector Partner Inputs'!$E$11,'Public Sector Partner Inputs'!$E$10),0) -> -52014.90712 | N6: =IF(N$4<='Public Sector Partner Inputs'!$E$11,PPMT('Public Sector Partner Inputs'!$E$12,N$4,'Public Sector Partner Inputs'!$E$11,'Public Sector Partner Inputs'!$E$10),0) -> 0 | O6: =IF(O$4<='Public Sector Partner Inputs'!$E$11,PPMT('Public Sector Partner Inputs'!$E$12,O$4,'Public Sector Partner Inputs'!$E$11,'Public Sector Partner Inputs'!$E$10),0) -> 0 | P6: =IF(P$4<='Public Sector Partner Inputs'!$E$11,PPMT('Public Sector Partner Inputs'!$E$12,P$4,'Public Sector Partner Inputs'!$E$11,'Public Sector Partner Inputs'!$E$10),0) -> 0 | Q6: =IF(Q$4<='Public Sector Partner Inputs'!$E$11,PPMT('Public Sector Partner Inputs'!$E$12,Q$4,'Public Sector Partner Inputs'!$E$11,'Public Sector Partner Inputs'!$E$10),0) -> 0 | R6: =IF(R$4<='Public Sector Partner Inputs'!$E$11,PPMT('Public Sector Partner Inputs'!$E$12,R$4,'Public Sector Partner Inputs'!$E$11,'Public Sector Partner Inputs'!$E$10),0) -> 0 | S6: =IF(S$4<='Public Sector Partner Inputs'!$E$11,PPMT('Public Sector Partner Inputs'!$E$12,S$4,'Public Sector Partner Inputs'!$E$11,'Public Sector Partner Inputs'!$E$10),0) -> 0 | T6: =IF(T$4<='Public Sector Partner Inputs'!$E$11,PPMT('Public Sector Partner Inputs'!$E$12,T$4,'Public Sector Partner Inputs'!$E$11,'Public Sector Partner Inputs'!$E$10),0) -> 0 | U6: =IF(U$4<='Public Sector Partner Inputs'!$E$11,PPMT('Public Sector Partner Inputs'!$E$12,U$4,'Public Sector Partner Inputs'!$E$11,'Public Sector Partner Inputs'!$E$10),0) -> 0 | V6: =IF(V$4<='Public Sector Partner Inputs'!$E$11,PPMT('Public Sector Partner Inputs'!$E$12,V$4,'Public Sector Partner Inputs'!$E$11,'Public Sector Partner Inputs'!$E$10),0) -> 0 | W6: =IF(W$4<='Public Sector Partner Inputs'!$E$11,PPMT('Public Sector Partner Inputs'!$E$12,W$4,'Public Sector Partner Inputs'!$E$11,'Public Sector Partner Inputs'!$E$10),0) -> 0
A7: Annual Interest Payment | D7: =IF(D$4<='Public Sector Partner Inputs'!$E$11,PMT('Public Sector Partner Inputs'!$E$12,'Public Sector Partner Inputs'!$E$11,'Public Sector Partner Inputs'!$E$10)-D6,0) -> -22422.42 | E7: =IF(E$4<='Public Sector Partner Inputs'!$E$11,PMT('Public Sector Partner Inputs'!$E$12,'Public Sector Partner Inputs'!$E$11,'Public Sector Partner Inputs'!$E$10)-E6,0) -> -20672.75023 | F7: =IF(F$4<='Public Sector Partner Inputs'!$E$11,PMT('Public Sector Partner Inputs'!$E$12,'Public Sector Partner Inputs'!$E$11,'Public Sector Partner Inputs'!$E$10)-F6,0) -> -18828.59828 | G7: =IF(G$4<='Public Sector Partner Inputs'!$E$11,PMT('Public Sector Partner Inputs'!$E$12,'Public Sector Partner Inputs'!$E$11,'Public Sector Partner Inputs'!$E$10)-G6,0) -> -16884.86214 | H7: =IF(H$4<='Public Sector Partner Inputs'!$E$11,PMT('Public Sector Partner Inputs'!$E$12,'Public Sector Partner Inputs'!$E$11,'Public Sector Partner Inputs'!$E$10)-H6,0) -> -14836.16424 | I7: =IF(I$4<='Public Sector Partner Inputs'!$E$11,PMT('Public Sector Partner Inputs'!$E$12,'Public Sector Partner Inputs'!$E$11,'Public Sector Partner Inputs'!$E$10)-I6,0) -> -12676.83665 | J7: =IF(J$4<='Public Sector Partner Inputs'!$E$11,PMT('Public Sector Partner Inputs'!$E$12,'Public Sector Partner Inputs'!$E$11,'Public Sector Partner Inputs'!$E$10)-J6,0) -> -10400.90538 | K7: =IF(K$4<='Public Sector Partner Inputs'!$E$11,PMT('Public Sector Partner Inputs'!$E$12,'Public Sector Partner Inputs'!$E$11,'Public Sector Partner Inputs'!$E$10)-K6,0) -> -8002.073817 | L7: =IF(L$4<='Public Sector Partner Inputs'!$E$11,PMT('Public Sector Partner Inputs'!$E$12,'Public Sector Partner Inputs'!$E$11,'Public Sector Partner Inputs'!$E$10)-L6,0) -> -5473.70535 | M7: =IF(M$4<='Public Sector Partner Inputs'!$E$11,PMT('Public Sector Partner Inputs'!$E$12,'Public Sector Partner Inputs'!$E$11,'Public Sector Partner Inputs'!$E$10)-M6,0) -> -2808.804985 | N7: =IF(N$4<='Public Sector Partner Inputs'!$E$11,PMT('Public Sector Partner Inputs'!$E$12,'Public Sector Partner Inputs'!$E$11,'Public Sector Partner Inputs'!$E$10)-N6,0) -> 0 | O7: =IF(O$4<='Public Sector Partner Inputs'!$E$11,PMT('Public Sector Partner Inputs'!$E$12,'Public Sector Partner Inputs'!$E$11,'Public Sector Partner Inputs'!$E$10)-O6,0) -> 0 | P7: =IF(P$4<='Public Sector Partner Inputs'!$E$11,PMT('Public Sector Partner Inputs'!$E$12,'Public Sector Partner Inputs'!$E$11,'Public Sector Partner Inputs'!$E$10)-P6,0) -> 0 | Q7: =IF(Q$4<='Public Sector Partner Inputs'!$E$11,PMT('Public Sector Partner Inputs'!$E$12,'Public Sector Partner Inputs'!$E$11,'Public Sector Partner Inputs'!$E$10)-Q6,0) -> 0 | R7: =IF(R$4<='Public Sector Partner Inputs'!$E$11,PMT('Public Sector Partner Inputs'!$E$12,'Public Sector Partner Inputs'!$E$11,'Public Sector Partner Inputs'!$E$10)-R6,0) -> 0 | S7: =IF(S$4<='Public Sector Partner Inputs'!$E$11,PMT('Public Sector Partner Inputs'!$E$12,'Public Sector Partner Inputs'!$E$11,'Public Sector Partner Inputs'!$E$10)-S6,0) -> 0 | T7: =IF(T$4<='Public Sector Partner Inputs'!$E$11,PMT('Public Sector Partner Inputs'!$E$12,'Public Sector Partner Inputs'!$E$11,'Public Sector Partner Inputs'!$E$10)-T6,0) -> 0 | U7: =IF(U$4<='Public Sector Partner Inputs'!$E$11,PMT('Public Sector Partner Inputs'!$E$12,'Public Sector Partner Inputs'!$E$11,'Public Sector Partner Inputs'!$E$10)-U6,0) -> 0 | V7: =IF(V$4<='Public Sector Partner Inputs'!$E$11,PMT('Public Sector Partner Inputs'!$E$12,'Public Sector Partner Inputs'!$E$11,'Public Sector Partner Inputs'!$E$10)-V6,0) -> 0 | W7: =IF(W$4<='Public Sector Partner Inputs'!$E$11,PMT('Public Sector Partner Inputs'!$E$12,'Public Sector Partner Inputs'!$E$11,'Public Sector Partner Inputs'!$E$10)-W6,0) -> 0
A8: Total Payment | D8: =SUM(D6:D7) -> -54823.71211 | E8: =SUM(E6:E7) -> -54823.71211 | F8: -54823.71211 | G8: -54823.71211 | H8: -54823.71211 | I8: -54823.71211 | J8: -54823.71211 | K8: -54823.71211 | L8: -54823.71211 | M8: -54823.71211 | N8: =SUM(N6:N7) -> 0 | O8: 0 | P8: 0 | Q8: 0 | R8: 0 | S8: 0 | T8: 0 | U8: 0 | V8: 0 | W8: 0
A10: Private Sector Debt | C10: ='Owner-Operator Inputs'!E236-'Public Sector Partner Inputs'!E10 -> 415230
A11: Annual Principal Payment | D11: =IF(D$4<='Owner-Operator Inputs'!$E$249,PPMT('Owner-Operator Inputs'!$C$250,D$4,'Owner-Operator Inputs'!$E$249,$C$10),0) -> -28663.11459 | E11: =IF(E$4<='Owner-Operator Inputs'!$E$249,PPMT('Owner-Operator Inputs'!$C$250,E$4,'Owner-Operator Inputs'!$E$249,$C$10),0) -> -30956.16376 | F11: =IF(F$4<='Owner-Operator Inputs'!$E$249,PPMT('Owner-Operator Inputs'!$C$250,F$4,'Owner-Operator Inputs'!$E$249,$C$10),0) -> -33432.65686 | G11: =IF(G$4<='Owner-Operator Inputs'!$E$249,PPMT('Owner-Operator Inputs'!$C$250,G$4,'Owner-Operator Inputs'!$E$249,$C$10),0) -> -36107.26941 | H11: =IF(H$4<='Owner-Operator Inputs'!$E$249,PPMT('Owner-Operator Inputs'!$C$250,H$4,'Owner-Operator Inputs'!$E$249,$C$10),0) -> -38995.85096 | I11: =IF(I$4<='Owner-Operator Inputs'!$E$249,PPMT('Owner-Operator Inputs'!$C$250,I$4,'Owner-Operator Inputs'!$E$249,$C$10),0) -> -42115.51904 | J11: =IF(J$4<='Owner-Operator Inputs'!$E$249,PPMT('Owner-Operator Inputs'!$C$250,J$4,'Owner-Operator Inputs'!$E$249,$C$10),0) -> -45484.76056 | K11: =IF(K$4<='Owner-Operator Inputs'!$E$249,PPMT('Owner-Operator Inputs'!$C$250,K$4,'Owner-Operator Inputs'!$E$249,$C$10),0) -> -49123.54141 | L11: =IF(L$4<='Owner-Operator Inputs'!$E$249,PPMT('Owner-Operator Inputs'!$C$250,L$4,'Owner-Operator Inputs'!$E$249,$C$10),0) -> -53053.42472 | M11: =IF(M$4<='Owner-Operator Inputs'!$E$249,PPMT('Owner-Operator Inputs'!$C$250,M$4,'Owner-Operator Inputs'!$E$249,$C$10),0) -> -57297.6987 | N11: =IF(N$4<='Owner-Operator Inputs'!$E$249,PPMT('Owner-Operator Inputs'!$C$250,N$4,'Owner-Operator Inputs'!$E$249,$C$10),0) -> 0 | O11: =IF(O$4<='Owner-Operator Inputs'!$E$249,PPMT('Owner-Operator Inputs'!$C$250,O$4,'Owner-Operator Inputs'!$E$249,$C$10),0) -> 0 | P11: =IF(P$4<='Owner-Operator Inputs'!$E$249,PPMT('Owner-Operator Inputs'!$C$250,P$4,'Owner-Operator Inputs'!$E$249,$C$10),0) -> 0 | Q11: =IF(Q$4<='Owner-Operator Inputs'!$E$249,PPMT('Owner-Operator Inputs'!$C$250,Q$4,'Owner-Operator Inputs'!$E$249,$C$10),0) -> 0 | R11: =IF(R$4<='Owner-Operator Inputs'!$E$249,PPMT('Owner-Operator Inputs'!$C$250,R$4,'Owner-Operator Inputs'!$E$249,$C$10),0) -> 0 | S11: =IF(S$4<='Owner-Operator Inputs'!$E$249,PPMT('Owner-Operator Inputs'!$C$250,S$4,'Owner-Operator Inputs'!$E$249,$C$10),0) -> 0 | T11: =IF(T$4<='Owner-Operator Inputs'!$E$249,PPMT('Owner-Operator Inputs'!$C$250,T$4,'Owner-Operator Inputs'!$E$249,$C$10),0) -> 0 | U11: =IF(U$4<='Owner-Operator Inputs'!$E$249,PPMT('Owner-Operator Inputs'!$C$250,U$4,'Owner-Operator Inputs'!$E$249,$C$10),0) -> 0 | V11: =IF(V$4<='Owner-Operator Inputs'!$E$249,PPMT('Owner-Operator Inputs'!$C$250,V$4,'Owner-Operator Inputs'!$E$249,$C$10),0) -> 0 | W11: =IF(W$4<='Owner-Operator Inputs'!$E$249,PPMT('Owner-Operator Inputs'!$C$250,W$4,'Owner-Operator Inputs'!$E$249,$C$10),0) -> 0
A12: Annual Interest Payment | D12: =IF(D$4<='Owner-Operator Inputs'!$E$249,PMT('Owner-Operator Inputs'!$C$250,'Owner-Operator Inputs'!$E$249,$C$10)-D11,0) -> -33218.4 | E12: =IF(E$4<='Owner-Operator Inputs'!$E$249,PMT('Owner-Operator Inputs'!$C$250,'Owner-Operator Inputs'!$E$249,$C$10)-E11,0) -> -30925.35083 | F12: =IF(F$4<='Owner-Operator Inputs'!$E$249,PMT('Owner-Operator Inputs'!$C$250,'Owner-Operator Inputs'!$E$249,$C$10)-F11,0) -> -28448.85773 | G12: =IF(G$4<='Owner-Operator Inputs'!$E$249,PMT('Owner-Operator Inputs'!$C$250,'Owner-Operator Inputs'!$E$249,$C$10)-G11,0) -> -25774.24518 | H12: =IF(H$4<='Owner-Operator Inputs'!$E$249,PMT('Owner-Operator Inputs'!$C$250,'Owner-Operator Inputs'!$E$249,$C$10)-H11,0) -> -22885.66363 | I12: =IF(I$4<='Owner-Operator Inputs'!$E$249,PMT('Owner-Operator Inputs'!$C$250,'Owner-Operator Inputs'!$E$249,$C$10)-I11,0) -> -19765.99555 | J12: =IF(J$4<='Owner-Operator Inputs'!$E$249,PMT('Owner-Operator Inputs'!$C$250,'Owner-Operator Inputs'!$E$249,$C$10)-J11,0) -> -16396.75403 | K12: =IF(K$4<='Owner-Operator Inputs'!$E$249,PMT('Owner-Operator Inputs'!$C$250,'Owner-Operator Inputs'!$E$249,$C$10)-K11,0) -> -12757.97319 | L12: =IF(L$4<='Owner-Operator Inputs'!$E$249,PMT('Owner-Operator Inputs'!$C$250,'Owner-Operator Inputs'!$E$249,$C$10)-L11,0) -> -8828.089873 | M12: =IF(M$4<='Owner-Operator Inputs'!$E$249,PMT('Owner-Operator Inputs'!$C$250,'Owner-Operator Inputs'!$E$249,$C$10)-M11,0) -> -4583.815896 | N12: =IF(N$4<='Owner-Operator Inputs'!$E$249,PMT('Owner-Operator Inputs'!$C$250,'Owner-Operator Inputs'!$E$249,$C$10)-N11,0) -> 0 | O12: =IF(O$4<='Owner-Operator Inputs'!$E$249,PMT('Owner-Operator Inputs'!$C$250,'Owner-Operator Inputs'!$E$249,$C$10)-O11,0) -> 0 | P12: =IF(P$4<='Owner-Operator Inputs'!$E$249,PMT('Owner-Operator Inputs'!$C$250,'Owner-Operator Inputs'!$E$249,$C$10)-P11,0) -> 0 | Q12: =IF(Q$4<='Owner-Operator Inputs'!$E$249,PMT('Owner-Operator Inputs'!$C$250,'Owner-Operator Inputs'!$E$249,$C$10)-Q11,0) -> 0 | R12: =IF(R$4<='Owner-Operator Inputs'!$E$249,PMT('Owner-Operator Inputs'!$C$250,'Owner-Operator Inputs'!$E$249,$C$10)-R11,0) -> 0 | S12: =IF(S$4<='Owner-Operator Inputs'!$E$249,PMT('Owner-Operator Inputs'!$C$250,'Owner-Operator Inputs'!$E$249,$C$10)-S11,0) -> 0 | T12: =IF(T$4<='Owner-Operator Inputs'!$E$249,PMT('Owner-Operator Inputs'!$C$250,'Owner-Operator Inputs'!$E$249,$C$10)-T11,0) -> 0 | U12: =IF(U$4<='Owner-Operator Inputs'!$E$249,PMT('Owner-Operator Inputs'!$C$250,'Owner-Operator Inputs'!$E$249,$C$10)-U11,0) -> 0 | V12: =IF(V$4<='Owner-Operator Inputs'!$E$249,PMT('Owner-Operator Inputs'!$C$250,'Owner-Operator Inputs'!$E$249,$C$10)-V11,0) -> 0 | W12: =IF(W$4<='Owner-Operator Inputs'!$E$249,PMT('Owner-Operator Inputs'!$C$250,'Owner-Operator Inputs'!$E$249,$C$10)-W11,0) -> 0
A13: Total Payment | D13: =SUM(D11:D12) -> -61881.51459 | E13: =SUM(E11:E12) -> -61881.51459 | F13: -61881.51459 | G13: -61881.51459 | H13: -61881.51459 | I13: -61881.51459 | J13: -61881.51459 | K13: -61881.51459 | L13: -61881.51459 | M13: -61881.51459 | N13: =SUM(N11:N12) -> 0 | O13: 0 | P13: 0 | Q13: 0 | R13: 0 | S13: 0 | T13: 0 | U13: 0 | V13: 0 | W13: 0
A15: Total Annual Principal Payment | D15: =D6+D11 -> -61064.4067 | E15: =E6+E11 -> -65107.12564 | F15: -69427.77068 | G15: -74046.11938 | H15: -78983.39883 | I15: -84262.39449 | J15: -89907.56729 | K15: -95945.1797 | L15: -102403.4315 | M15: -109312.6058 | N15: 0 | O15: 0 | P15: 0 | Q15: 0 | R15: 0 | S15: 0 | T15: 0 | U15: 0 | V15: 0 | W15: 0
A16: Total Annual Interest Payment | D16: =D7+D12 -> -55640.82 | E16: =E7+E12 -> -51598.10106 | F16: -47277.45602 | G16: -42659.10732 | H16: -37721.82787 | I16: -32442.83221 | J16: -26797.65941 | K16: -20760.047 | L16: -14301.79522 | M16: -7392.62088 | N16: 0 | O16: 0 | P16: 0 | Q16: 0 | R16: 0 | S16: 0 | T16: 0 | U16: 0 | V16: 0 | W16: 0
A17: Total Payment | D17: =SUM(D15:D16) -> -116705.2267 | E17: =SUM(E15:E16) -> -116705.2267 | F17: -116705.2267 | G17: -116705.2267 | H17: -116705.2267 | I17: -116705.2267 | J17: -116705.2267 | K17: -116705.2267 | L17: -116705.2267 | M17: -116705.2267 | N17: 0 | O17: 0 | P17: 0 | Q17: 0 | R17: 0 | S17: 0 | T17: 0 | U17: 0 | V17: 0 | W17: 0

Sheet Terminal Value Model
A1: ='Initial Settings'!$C$6 -> Washington EV - Business Model 3 - Walla Walla
A4: Based on Assumed EBITDA Exit Multiple | C4: ='Initial Settings'!$C$7 -> 2015 | D4: ='Owner-Operator Inputs'!F254 -> 2016 | E4: ='Owner-Operator Inputs'!G254 -> 2017 | F4: ='Owner-Operator Inputs'!H254 -> 2018 | G4: ='Owner-Operator Inputs'!I254 -> 2019 | H4: ='Owner-Operator Inputs'!J254 -> 2020 | I4: ='Owner-Operator Inputs'!K254 -> 2021 | J4: ='Owner-Operator Inputs'!L254 -> 2022 | K4: ='Owner-Operator Inputs'!M254 -> 2023 | L4: ='Owner-Operator Inputs'!N254 -> 2024 | M4: ='Owner-Operator Inputs'!O254 -> 2025
A6: EBITDA | C6: ='Income Statement'!B23+'Income Statement'!B18 -> 0 | D6: ='Income Statement'!C23+'Income Statement'!C18 -> 196466.4 | E6: ='Income Statement'!D23+'Income Statement'!D18 -> 140670.9088 | F6: ='Income Statement'!E23+'Income Statement'!E18 -> 182686.369 | G6: ='Income Statement'!F23+'Income Statement'!F18 -> 233924.1324 | H6: ='Income Statement'!G23+'Income Statement'!G18 -> 296401.9885 | I6: ='Income Statement'!H23+'Income Statement'!H18 -> 372591.3972 | J6: ='Income Statement'!I23+'Income Statement'!I18 -> 422142.1904 | K6: ='Income Statement'!J23+'Income Statement'!J18 -> 421918.5449 | L6: ='Income Statement'!K23+'Income Statement'!K18 -> 421694.3402 | M6: ='Income Statement'!L23+'Income Statement'!L18 -> 421469.5751
A7: Exit Multiple | C7: ='Owner-Operator Inputs'!$E$241 -> 0 | D7: ='Owner-Operator Inputs'!$E$241 -> 0 | E7: ='Owner-Operator Inputs'!$E$241 -> 0 | F7: ='Owner-Operator Inputs'!$E$241 -> 0 | G7: ='Owner-Operator Inputs'!$E$241 -> 0 | H7: ='Owner-Operator Inputs'!$E$241 -> 0 | I7: ='Owner-Operator Inputs'!$E$241 -> 0 | J7: ='Owner-Operator Inputs'!$E$241 -> 0 | K7: ='Owner-Operator Inputs'!$E$241 -> 0 | L7: ='Owner-Operator Inputs'!$E$241 -> 0 | M7: ='Owner-Operator Inputs'!$E$241 -> 0
A8: Total Enterprise Value | C8: =C7*C6 -> 0 | D8: 0 | E8: 0 | F8: 0 | G8: 0 | H8: 0 | I8: 0 | J8: 0 | K8: 0 | L8: 0 | M8: 0
A9: Less: Net Debt | C9: ='Balance Sheet'!B33 -> 830460 | D9: ='Balance Sheet'!C33 -> 813045.5933 | E9: ='Balance Sheet'!D33 -> 740156.4677 | F9: ='Balance Sheet'!E33 -> 678619.822 | G9: ='Balance Sheet'!F33 -> 614201.4526 | H9: ='Balance Sheet'!G33 -> 546963.4288 | I9: ='Balance Sheet'!H33 -> 477030.9093 | J9: ='Balance Sheet'!I33 -> 396461.217 | K9: ='Balance Sheet'!J33 -> 300516.0373 | L9: ='Balance Sheet'!K33 -> 198112.6058 | M9: ='Balance Sheet'!L33 -> 88800
A10: Equity Value | C10: =C8-C9 -> -830460 | D10: -813045.5933 | E10: -740156.4677 | F10: -678619.822 | G10: -614201.4526 | H10: -546963.4288 | I10: -477030.9093 | J10: -396461.217 | K10: -300516.0373 | L10: -198112.6058 | M10: -88800
A12: Terminal Value Model - Based on Remaining Property, Plant, and Equipment Value | C12: ='Initial Settings'!$C$7 -> 2015 | D12: ='Owner-Operator Inputs'!F254 -> 2016 | E12: ='Owner-Operator Inputs'!G254 -> 2017 | F12: ='Owner-Operator Inputs'!H254 -> 2018 | G12: ='Owner-Operator Inputs'!I254 -> 2019 | H12: ='Owner-Operator Inputs'!J254 -> 2020 | I12: ='Owner-Operator Inputs'!K254 -> 2021 | J12: ='Owner-Operator Inputs'!L254 -> 2022 | K12: ='Owner-Operator Inputs'!M254 -> 2023 | L12: ='Owner-Operator Inputs'!N254 -> 2024 | M12: ='Owner-Operator Inputs'!O254 -> 2025
A14: Property, Plant, and Equipment Value | C14: ='Balance Sheet'!B18 -> 1355000 | D14: ='Balance Sheet'!C18 -> 1219500 | E14: ='Balance Sheet'!D18 -> 1084000 | F14: ='Balance Sheet'!E18 -> 948500 | G14: ='Balance Sheet'!F18 -> 813000 | H14: ='Balance Sheet'!G18 -> 677500 | I14: ='Balance Sheet'!H18 -> 542000 | J14: ='Balance Sheet'!I18 -> 406500 | K14: ='Balance Sheet'!J18 -> 271000 | L14: ='Balance Sheet'!K18 -> 135500 | M14: ='Balance Sheet'!L18 -> 0
A15: Less: Net Debt | C15: ='Balance Sheet'!B33 -> 830460 | D15: ='Balance Sheet'!C33 -> 813045.5933 | E15: ='Balance Sheet'!D33 -> 740156.4677 | F15: ='Balance Sheet'!E33 -> 678619.822 | G15: ='Balance Sheet'!F33 -> 614201.4526 | H15: ='Balance Sheet'!G33 -> 546963.4288 | I15: ='Balance Sheet'!H33 -> 477030.9093 | J15: ='Balance Sheet'!I33 -> 396461.217 | K15: ='Balance Sheet'!J33 -> 300516.0373 | L15: ='Balance Sheet'!K33 -> 198112.6058 | M15: ='Balance Sheet'!L33 -> 88800
A16: Terminal Value | C16: =C14-C15 -> 524540 | D16: =D14-D15 -> 406454.4067 | E16: 343843.5323 | F16: 269880.178 | G16: 198798.5474 | H16: 130536.5712 | I16: 64969.09072 | J16: 10038.78301 | K16: -29516.0373 | L16: -62612.60582 | M16: =M14-M15 -> -88800

Sheet Outputs Dashboard
A1: ='Initial Settings'!$C$6 -> Washington EV - Business Model 3 - Walla Walla
B3: Financial Performance Statistics | E3: Charging Infrastructure Statistics
B4: Project | E4: Total New Sites
B5: Total Capital Investment | C5: ='Owner-Operator Inputs'!E231 -> 1384100 | E5: ='Owner-Operator Inputs'!E22+'Owner-Operator Inputs'!E85+'Owner-Operator Inputs'!E148 -> 20
B6: Total Net Present Value | C6: ='Combined DCF'!B15 -> 862639.6897 | E6: Total New Stations
B7: Total Internal Rate of Return (IRR) | C7: ='Combined DCF'!B16 -> 0.1259093504 | E7: ='Owner-Operator Inputs'!E21+'Owner-Operator Inputs'!E84+'Owner-Operator Inputs'!E147 -> 60
B8: Discounted Payback (Years) | C8: ='Combined DCF'!B17 -> 6 | E8: Number of Charging Sessions Provided
E9: =SUM('Owner-Operator Inputs'!F32:J32)+SUM('Owner-Operator Inputs'!F95:J95)+SUM('Owner-Operator Inputs'!F158:J158) -> 247669
B10: Owner-Operator | E10: kWh of Charging Provided
B11: Total Capital Investment (Equity) | C11: ='Public Sector Partner Inputs'!E13-'Public Sector Partner Inputs'!E14-'Public Sector Partner Inputs'!E17 -> 316140 | E11: =SUM('Owner-Operator Inputs'!F36:J36)+SUM('Owner-Operator Inputs'!F99:J99)+SUM('Owner-Operator Inputs'!F162:J162) -> 2941075
B12: Total Net Present Value | C12: ='Owner-Operator DCF'!C26 -> 490898.5896
B13: Total Internal Rate of Return (IRR) | C13: ='Owner-Operator DCF'!C27 -> 0.2033799221
B14: Discounted Payback (Years) | C14: ='Owner-Operator DCF'!C28 -> 5 | I14: =B10 -> Owner-Operator | J14: =C11 -> 316140
I15: =B16 -> Private Sector Partner(s) | J15: =C17 -> 0
B16: Private Sector Partner(s) | I16: =B23 -> Public Sector Partner | J16: =C24 -> 652730
B17: Total Capital Investment | C17: ='Private Sector Partner DCF'!C20 -> 0 | I17: =B30 -> Other Non-Partner Private Sector | J17: =C31 -> 415230
B18: Total Other Contributions | C18: =SUM('Private Sector Partner Inputs'!$F$55:$O$60) -> 1352772.5
B19: Total Net Present Value | C19: ='Private Sector Partner DCF'!C25 -> 495520.0651
B20: Total Internal Rate of Return (IRR) | C20: ='Private Sector Partner DCF'!C26 -> 4.206706439
B21: Discounted Payback (Years) | C21: ='Private Sector Partner DCF'!C27 -> 2
B23: Public Sector Partner
B24: Total Capital Investment | C24: ='Public Sector Partner Inputs'!E10+'Public Sector Partner Inputs'!E14+'Public Sector Partner Inputs'!E17 -> 652730
B25: Total Other Contributions | C25: =SUM('Public Sector Partner Inputs'!F20:O20) -> 0
B26: Total Net Present Value | C26: ='Public Sector Partner DCF'!C23 -> -237500
B27: Total Internal Rate of Return (IRR) | C27: ='Public Sector Partner DCF'!C24 -> -0.08019311406
B28: Discounted Payback (Years) | C28: ='Public Sector Partner DCF'!C25 -> N/A
B30: Other Non-Partner Private Sector
B31: Total Capital Investment (Loans) | C31: =C5-C24-C17-C11 -> 415230
A34: Market Inputs - Sensitivity Analysis
B36: ='Sensitivity Tables'!B7:I7 -> Expected annual utilization growth rate [%]
B55: ='Sensitivity Tables'!B24:I24 -> [Station Type 1] Initial average utilization [# of charging sessions per station per year]
B74: ='Sensitivity Tables'!B41:I41 -> [Station Type 2] Initial average utilization [# of charging sessions per station per year]
B93: ='Sensitivity Tables'!B58:I58 -> [Station Type 3] Initial average utilization [# of charging sessions per station per year]
A112: Owner-Operator Inputs - Sensitivity Analysis
B114: ='Sensitivity Tables'!B75:I75 -> Owner Operator Cost of Debt (Long Term)
A134: Private Sector Partner Inputs - Sensitivity Analysis
B136: ='Sensitivity Tables'!B92:I92 -> Estimated NPV of lifetime after-tax profit per station - type 1 station [$]
B155: ='Sensitivity Tables'!B109:I109 -> Estimated NPV of lifetime after-tax profit per station - type 2 station [$]
B174: ='Sensitivity Tables'!B126:I126 -> Estimated NPV of lifetime after-tax profit per station - type 3 station [$]
B193: ='Sensitivity Tables'!B143:I143 -> Annual customer revenue sharing agreement (from sales) [% of revenue]
B212: ='Sensitivity Tables'!B160:I160 -> Average expected revenue per customer per minute ($)
B233: ='Sensitivity Tables'!B177:I177 -> Maximum retail revenue per customer per session for type 1 stations ($)
B254: ='Sensitivity Tables'!B194:I194 -> Maximum retail revenue per customer per session for type 2 stations ($)
B275: ='Sensitivity Tables'!B211:I211 -> Maximum retail revenue per customer per session for type 3 stations ($)

Sheet Income Statement
A1: ='Initial Settings'!$C$6 -> Washington EV - Business Model 3 - Walla Walla
A3: Consolidated Statements of Income [$]
B5: ='Initial Settings'!C7 -> 2015 | C5: ='Owner-Operator Inputs'!F254 -> 2016 | D5: ='Owner-Operator Inputs'!G254 -> 2017 | E5: ='Owner-Operator Inputs'!H254 -> 2018 | F5: ='Owner-Operator Inputs'!I254 -> 2019 | G5: ='Owner-Operator Inputs'!J254 -> 2020 | H5: ='Owner-Operator Inputs'!K254 -> 2021 | I5: ='Owner-Operator Inputs'!L254 -> 2022 | J5: ='Owner-Operator Inputs'!M254 -> 2023 | K5: ='Owner-Operator Inputs'!N254 -> 2024 | L5: ='Owner-Operator Inputs'!O254 -> 2025
A6: Revenues
A7: Operating Revenue | B7: 0 | C7: ='Owner-Operator Inputs'!F256 -> 140000 | D7: ='Owner-Operator Inputs'!G256 -> 170800 | E7: ='Owner-Operator Inputs'!H256 -> 208377.5 | F7: ='Owner-Operator Inputs'!I256 -> 254225 | G7: ='Owner-Operator Inputs'!J256 -> 310155 | H7: ='Owner-Operator Inputs'!K256 -> 378392.5 | I7: ='Owner-Operator Inputs'!L256 -> 423750 | J7: ='Owner-Operator Inputs'!M256 -> 423750 | K7: ='Owner-Operator Inputs'!N256 -> 423750 | L7: ='Owner-Operator Inputs'!O256 -> 423750
A8: Other Revenue | B8: 0 | C8: ='Owner-Operator Inputs'!F257 -> 151000 | D8: ='Owner-Operator Inputs'!G257 -> 68320 | E8: ='Owner-Operator Inputs'!H257 -> 83350 | F8: ='Owner-Operator Inputs'!I257 -> 101687.5 | G8: ='Owner-Operator Inputs'!J257 -> 124060 | H8: ='Owner-Operator Inputs'!K257 -> 151355 | I8: ='Owner-Operator Inputs'!L257 -> 168250 | J8: ='Owner-Operator Inputs'!M257 -> 168250 | K8: ='Owner-Operator Inputs'!N257 -> 168250 | L8: ='Owner-Operator Inputs'!O257 -> 168250
A9: Total Revenues | B9: =SUM(B7:B8) -> 0 | C9: 291000 | D9: 239120 | E9: 291727.5 | F9: 355912.5 | G9: 434215 | H9: 529747.5 | I9: 592000 | J9: 592000 | K9: 592000 | L9: 592000
A11: Expenses
A12: Operating Expenses
A13: Cost of Sales | B13: 0 | C13: ='Owner-Operator Inputs'!F260 -> 79983.6 | D13: ='Owner-Operator Inputs'!G260 -> 86493.0912 | E13: ='Owner-Operator Inputs'!H260 -> 94454.75597 | F13: ='Owner-Operator Inputs'!I260 -> 104192.7426 | G13: ='Owner-Operator Inputs'!J260 -> 116102.2615 | H13: ='Owner-Operator Inputs'!K260 -> 130668.7278 | I13: ='Owner-Operator Inputs'!L260 -> 140257.8096 | J13: ='Owner-Operator Inputs'!M260 -> 140481.4551 | K13: ='Owner-Operator Inputs'!N260 -> 140705.6598 | L13: ='Owner-Operator Inputs'!O260 -> 140930.4249
A14: Total Operating Expenses | B14: =SUM(B13:B13) -> 0 | C14: 79983.6 | D14: 86493.0912 | E14: 94454.75597 | F14: 104192.7426 | G14: 116102.2615 | H14: =SUM(H13:H13) -> 130668.7278 | I14: =SUM(I13:I13) -> 140257.8096 | J14: =SUM(J13:J13) -> 140481.4551 | K14: =SUM(K13:K13) -> 140705.6598 | L14: =SUM(L13:L13) -> 140930.4249
A16: Other Expenses
A17: SG&A (Overhead) | B17: 0 | C17: ='Owner-Operator Inputs'!F262 -> 14550 | D17: ='Owner-Operator Inputs'!G262 -> 11956 | E17: ='Owner-Operator Inputs'!H262 -> 14586.375 | F17: ='Owner-Operator Inputs'!I262 -> 17795.625 | G17: ='Owner-Operator Inputs'!J262 -> 21710.75 | H17: ='Owner-Operator Inputs'!K262 -> 26487.375 | I17: ='Owner-Operator Inputs'!L262 -> 29600 | J17: ='Owner-Operator Inputs'!M262 -> 29600 | K17: ='Owner-Operator Inputs'!N262 -> 29600 | L17: ='Owner-Operator Inputs'!O262 -> 29600
A18: Depreciation | B18: 0 | C18: ='Owner-Operator Inputs'!F263 -> 135500 | D18: ='Owner-Operator Inputs'!G263 -> 135500 | E18: ='Owner-Operator Inputs'!H263 -> 135500 | F18: ='Owner-Operator Inputs'!I263 -> 135500 | G18: ='Owner-Operator Inputs'!J263 -> 135500 | H18: ='Owner-Operator Inputs'!K263 -> 135500 | I18: ='Owner-Operator Inputs'!L263 -> 135500 | J18: ='Owner-Operator Inputs'!M263 -> 135500 | K18: ='Owner-Operator Inputs'!N263 -> 135500 | L18: ='Owner-Operator Inputs'!O263 -> 135500
A19: Total Other Expenses | B19: =SUM(B17:B18) -> 0 | C19: 150050 | D19: 147456 | E19: 150086.375 | F19: 153295.625 | G19: 157210.75 | H19: =SUM(H17:H18) -> 161987.375 | I19: =SUM(I17:I18) -> 165100 | J19: =SUM(J17:J18) -> 165100 | K19: =SUM(K17:K18) -> 165100 | L19: =SUM(L17:L18) -> 165100
A21: Total Expenses | B21: =B19+B14 -> 0 | C21: 230033.6 | D21: 233949.0912 | E21: 244541.131 | F21: 257488.3676 | G21: 273313.0115 | H21: =H19+H14 -> 292656.1028 | I21: =I19+I14 -> 305357.8096 | J21: =J19+J14 -> 305581.4551 | K21: =K19+K14 -> 305805.6598 | L21: =L19+L14 -> 306030.4249
A23: Operating Income (EBIT) | B23: =B9-B21 -> 0 | C23: 60966.4 | D23: 5170.9088 | E23: 47186.36903 | F23: 98424.13236 | G23: 160901.9885 | H23: =H9-H21 -> 237091.3972 | I23: =I9-I21 -> 286642.1904 | J23: =J9-J21 -> 286418.5449 | K23: =K9-K21 -> 286194.3402 | L23: =L9-L21 -> 285969.5751
A25: Interest Income | B25: 0 | C25: ='Owner-Operator Inputs'!F265 -> 0 | D25: ='Owner-Operator Inputs'!G265 -> 0 | E25: ='Owner-Operator Inputs'!H265 -> 0 | F25: ='Owner-Operator Inputs'!I265 -> 0 | G25: ='Owner-Operator Inputs'!J265 -> 0 | H25: ='Owner-Operator Inputs'!K265 -> 0 | I25: ='Owner-Operator Inputs'!L265 -> 0 | J25: ='Owner-Operator Inputs'!M265 -> 0 | K25: ='Owner-Operator Inputs'!N265 -> 0 | L25: ='Owner-Operator Inputs'!O265 -> 0
A26: Other Income, Net | B26: 0 | C26: =C$9*'Owner-Operator Inputs'!F266 -> 0 | D26: =D$9*'Owner-Operator Inputs'!G266 -> 0 | E26: =E$9*'Owner-Operator Inputs'!H266 -> 0 | F26: =F$9*'Owner-Operator Inputs'!I266 -> 0 | G26: =G$9*'Owner-Operator Inputs'!J266 -> 0 | H26: =H$9*'Owner-Operator Inputs'!K266 -> 0 | I26: =I$9*'Owner-Operator Inputs'!L266 -> 0 | J26: =J$9*'Owner-Operator Inputs'!M266 -> 0 | K26: =K$9*'Owner-Operator Inputs'!N266 -> 0 | L26: =L$9*'Owner-Operator Inputs'!O266 -> 0
A27: Other Special Charges | B27: 0 | C27: ='Owner-Operator Inputs'!F267 -> 0 | D27: ='Owner-Operator Inputs'!G267 -> 0 | E27: ='Owner-Operator Inputs'!H267 -> 0 | F27: ='Owner-Operator Inputs'!I267 -> 0 | G27: ='Owner-Operator Inputs'!J267 -> 0 | H27: ='Owner-Operator Inputs'!K267 -> 0 | I27: ='Owner-Operator Inputs'!L267 -> 0 | J27: ='Owner-Operator Inputs'!M267 -> 0 | K27: ='Owner-Operator Inputs'!N267 -> 0 | L27: ='Owner-Operator Inputs'!O267 -> 0
A28: Adjusted Operating Income (EBIT) | B28: =SUM(B23:B27) -> 0 | C28: 60966.4 | D28: 5170.9088 | E28: 47186.36903 | F28: 98424.13236 | G28: 160901.9885 | H28: =SUM(H23:H27) -> 237091.3972 | I28: =SUM(I23:I27) -> 286642.1904 | J28: =SUM(J23:J27) -> 286418.5449 | K28: =SUM(K23:K27) -> 286194.3402 | L28: =SUM(L23:L27) -> 285969.5751
A30: Interest Expense | B30: 0 | C30: ='Debt Schedule'!D16+(-'Owner-Operator Inputs'!F270*('Balance Sheet'!C25)) -> -56012.718 | D30: ='Debt Schedule'!E16+(-'Owner-Operator Inputs'!G270*('Balance Sheet'!D25)) -> -51903.69642 | E30: ='Debt Schedule'!F16+(-'Owner-Operator Inputs'!H270*('Balance Sheet'!E25)) -> -47650.28376 | F30: ='Debt Schedule'!G16+(-'Owner-Operator Inputs'!I270*('Balance Sheet'!F25)) -> -43113.9635 | G30: ='Debt Schedule'!H16+(-'Owner-Operator Inputs'!J270*('Balance Sheet'!G25)) -> -38276.75464 | H30: ='Debt Schedule'!I16+(-'Owner-Operator Inputs'!K270*('Balance Sheet'!H25)) -> -33119.84951 | I30: ='Debt Schedule'!J16+(-'Owner-Operator Inputs'!L270*('Balance Sheet'!I25)) -> -27554.23541 | J30: ='Debt Schedule'!K16+(-'Owner-Operator Inputs'!M270*('Balance Sheet'!J25)) -> -21516.623 | K30: ='Debt Schedule'!L16+(-'Owner-Operator Inputs'!N270*('Balance Sheet'!K25)) -> -15058.37122 | L30: ='Debt Schedule'!M16+(-'Owner-Operator Inputs'!O270*('Balance Sheet'!L25)) -> -8149.19688
A31: Income Before Taxes (EBT) | B31: =SUM(B28:B30) -> 0 | C31: 4953.682 | D31: -46732.78762 | E31: -463.9147271 | F31: 55310.16887 | G31: 122625.2338 | H31: =SUM(H28:H30) -> 203971.5477 | I31: =SUM(I28:I30) -> 259087.955 | J31: =SUM(J28:J30) -> 264901.9219 | K31: =SUM(K28:K30) -> 271135.969 | L31: =SUM(L28:L30) -> 277820.3782
A33: Income Taxes | B33: 0 | C33: =-C31*'Owner-Operator Inputs'!F272 -> -1565.389626 | D33: =-D31*'Owner-Operator Inputs'!G272 -> 14767.80725 | E33: =-E31*'Owner-Operator Inputs'!H272 -> 146.5994994 | F33: =-F31*'Owner-Operator Inputs'!I272 -> -17478.30494 | G33: =-G31*'Owner-Operator Inputs'!J272 -> -38750.22033 | H33: =-H31*'Owner-Operator Inputs'!K272 -> -64456.08432 | I33: =-I31*'Owner-Operator Inputs'!L272 -> -81873.1596 | J33: =-J31*'Owner-Operator Inputs'!M272 -> -83710.40378 | K33: =-K31*'Owner-Operator Inputs'!N272 -> -85680.39554 | L33: =-L31*'Owner-Operator Inputs'!O272 -> -87792.70408
A34: Net Income | B34: =SUM(B31:B33) -> 0 | C34: 3388.292374 | D34: -31964.98037 | E34: -317.3152278 | F34: 37831.86393 | G34: 83875.01351 | H34: =SUM(H31:H33) -> 139515.4633 | I34: =SUM(I31:I33) -> 177214.7954 | J34: =SUM(J31:J33) -> 181191.5181 | K34: =SUM(K31:K33) -> 185455.5735 | L34: =SUM(L31:L33) -> 190027.6741

Sheet Balance Sheet
A1: ='Initial Settings'!C6 -> Washington EV - Business Model 3 - Walla Walla
A3: Consolidated Balance Sheet [$]
A5: Assets | B5: =+'Initial Settings'!$C$7 -> 2015 | C5: =+'Owner-Operator Inputs'!F254 -> 2016 | D5: =+'Owner-Operator Inputs'!G254 -> 2017 | E5: =+'Owner-Operator Inputs'!H254 -> 2018 | F5: =+'Owner-Operator Inputs'!I254 -> 2019 | G5: =+'Owner-Operator Inputs'!J254 -> 2020 | H5: =+'Owner-Operator Inputs'!K254 -> 2021 | I5: =+'Owner-Operator Inputs'!L254 -> 2022 | J5: =+'Owner-Operator Inputs'!M254 -> 2023 | K5: =+'Owner-Operator Inputs'!N254 -> 2024 | L5: =+'Owner-Operator Inputs'!O254 -> 2025
A6: Current assets
A7: Cash and Equivalents | B7: ='Owner-Operator Inputs'!E230 -> 29100 | C7: =SCF!F28 -> 136023.8857 | D7: =SCF!G28 -> 169263.7797 | E7: =SCF!H28 -> 240279.4438 | F7: =SCF!I28 -> 345983.6883 | G7: =SCF!J28 -> 494205.553 | H7: =SCF!K28 -> 694511.8718 | I7: =SCF!L28 -> 923544.3499 | J7: =SCF!M28 -> 1144290.688 | K7: =SCF!N28 -> 1362842.83 | L7: =SCF!O28 -> 1579057.899
A8: Accounts Receivable | C8: ='Owner-Operator Inputs'!F282*'Income Statement'!C$9 -> 14550 | D8: ='Owner-Operator Inputs'!G282*'Income Statement'!D$9 -> 11956 | E8: ='Owner-Operator Inputs'!H282*'Income Statement'!E$9 -> 14586.375 | F8: ='Owner-Operator Inputs'!I282*'Income Statement'!F$9 -> 17795.625 | G8: ='Owner-Operator Inputs'!J282*'Income Statement'!G$9 -> 21710.75 | H8: ='Owner-Operator Inputs'!K282*'Income Statement'!H$9 -> 26487.375 | I8: ='Owner-Operator Inputs'!L282*'Income Statement'!I$9 -> 29600 | J8: ='Owner-Operator Inputs'!M282*'Income Statement'!J$9 -> 29600 | K8: ='Owner-Operator Inputs'!N282*'Income Statement'!K$9 -> 29600 | L8: ='Owner-Operator Inputs'!O282*'Income Statement'!L$9 -> 29600
A9: Other Receivable | C9: ='Owner-Operator Inputs'!F283*'Income Statement'!C$9 -> 0 | D9: ='Owner-Operator Inputs'!G283*'Income Statement'!D$9 -> 0 | E9: ='Owner-Operator Inputs'!H283*'Income Statement'!E$9 -> 0 | F9: ='Owner-Operator Inputs'!I283*'Income Statement'!F$9 -> 0 | G9: ='Owner-Operator Inputs'!J283*'Income Statement'!G$9 -> 0 | H9: ='Owner-Operator Inputs'!K283*'Income Statement'!H$9 -> 0 | I9: ='Owner-Operator Inputs'!L283*'Income Statement'!I$9 -> 0 | J9: ='Owner-Operator Inputs'!M283*'Income Statement'!J$9 -> 0 | K9: ='Owner-Operator Inputs'!N283*'Income Statement'!K$9 -> 0 | L9: ='Owner-Operator Inputs'!O283*'Income Statement'!L$9 -> 0
A10: Prepaid Expenses | C10: ='Owner-Operator Inputs'!F284*'Income Statement'!C$9 -> 0 | D10: ='Owner-Operator Inputs'!G284*'Income Statement'!D$9 -> 0 | E10: ='Owner-Operator Inputs'!H284*'Income Statement'!E$9 -> 0 | F10: ='Owner-Operator Inputs'!I284*'Income Statement'!F$9 -> 0 | G10: ='Owner-Operator Inputs'!J284*'Income Statement'!G$9 -> 0 | H10: ='Owner-Operator Inputs'!K284*'Income Statement'!H$9 -> 0 | I10: ='Owner-Operator Inputs'!L284*'Income Statement'!I$9 -> 0 | J10: ='Owner-Operator Inputs'!M284*'Income Statement'!J$9 -> 0 | K10: ='Owner-Operator Inputs'!N284*'Income Statement'!K$9 -> 0 | L10: ='Owner-Operator Inputs'!O284*'Income Statement'!L$9 -> 0
A11: Total current assets | B11: =SUM(B7:B10) -> 29100 | C11: 150573.8857 | D11: 181219.7797 | E11: 254865.8188 | F11: 363779.3133 | G11: 515916.303 | H11: =SUM(H7:H10) -> 720999.2468 | I11: =SUM(I7:I10) -> 953144.3499 | J11: =SUM(J7:J10) -> 1173890.688 | K11: =SUM(K7:K10) -> 1392442.83 | L11: =SUM(L7:L10) -> 1608657.899
A13: Non-Current Assets
A14: Gross Fixed Assets (Plant, Prop. & Equip.) | B14: ='Owner-Operator Inputs'!E287 -> 1355000 | C14: ='Owner-Operator Inputs'!F287 -> 1355000 | D14: ='Owner-Operator Inputs'!G287 -> 1355000 | E14: ='Owner-Operator Inputs'!H287 -> 1355000 | F14: ='Owner-Operator Inputs'!I287 -> 1355000 | G14: ='Owner-Operator Inputs'!J287 -> 1355000 | H14: ='Owner-Operator Inputs'!K287 -> 1355000 | I14: ='Owner-Operator Inputs'!L287 -> 1355000 | J14: ='Owner-Operator Inputs'!M287 -> 1355000 | K14: ='Owner-Operator Inputs'!N287 -> 1355000 | L14: ='Owner-Operator Inputs'!O287 -> 1355000
A15: Accumulated Depreciation & Depletion | C15: ='Owner-Operator Inputs'!F288 -> -135500 | D15: ='Owner-Operator Inputs'!G288 -> -271000 | E15: ='Owner-Operator Inputs'!H288 -> -406500 | F15: ='Owner-Operator Inputs'!I288 -> -542000 | G15: ='Owner-Operator Inputs'!J288 -> -677500 | H15: ='Owner-Operator Inputs'!K288 -> -813000 | I15: ='Owner-Operator Inputs'!L288 -> -948500 | J15: ='Owner-Operator Inputs'!M288 -> -1084000 | K15: ='Owner-Operator Inputs'!N288 -> -1219500 | L15: ='Owner-Operator Inputs'!O288 -> -1355000
A16: Intangibles (Goodwill) | C16: ='Owner-Operator Inputs'!F289*'Income Statement'!C$9 -> 0 | D16: ='Owner-Operator Inputs'!G289*'Income Statement'!D$9 -> 0 | E16: ='Owner-Operator Inputs'!H289*'Income Statement'!E$9 -> 0 | F16: ='Owner-Operator Inputs'!I289*'Income Statement'!F$9 -> 0 | G16: ='Owner-Operator Inputs'!J289*'Income Statement'!G$9 -> 0 | H16: ='Owner-Operator Inputs'!K289*'Income Statement'!H$9 -> 0 | I16: ='Owner-Operator Inputs'!L289*'Income Statement'!I$9 -> 0 | J16: ='Owner-Operator Inputs'!M289*'Income Statement'!J$9 -> 0 | K16: ='Owner-Operator Inputs'!N289*'Income Statement'!K$9 -> 0 | L16: ='Owner-Operator Inputs'!O289*'Income Statement'!L$9 -> 0
A17: Other Non-Current Assets | C17: ='Owner-Operator Inputs'!F290*'Income Statement'!C$9 -> 0 | D17: ='Owner-Operator Inputs'!G290*'Income Statement'!D$9 -> 0 | E17: ='Owner-Operator Inputs'!H290*'Income Statement'!E$9 -> 0 | F17: ='Owner-Operator Inputs'!I290*'Income Statement'!F$9 -> 0 | G17: ='Owner-Operator Inputs'!J290*'Income Statement'!G$9 -> 0 | H17: ='Owner-Operator Inputs'!K290*'Income Statement'!H$9 -> 0 | I17: ='Owner-Operator Inputs'!L290*'Income Statement'!I$9 -> 0 | J17: ='Owner-Operator Inputs'!M290*'Income Statement'!J$9 -> 0 | K17: ='Owner-Operator Inputs'!N290*'Income Statement'!K$9 -> 0 | L17: ='Owner-Operator Inputs'!O290*'Income Statement'!L$9 -> 0
A18: Total Non-Current Assets | B18: =SUM(B14:B17) -> 1355000 | C18: 1219500 | D18: 1084000 | E18: 948500 | F18: 813000 | G18: 677500 | H18: =SUM(H14:H17) -> 542000 | I18: =SUM(I14:I17) -> 406500 | J18: =SUM(J14:J17) -> 271000 | K18: =SUM(K14:K17) -> 135500 | L18: =SUM(L14:L17) -> 0
A20: Total assets | B20: =B11+B18 -> 1384100 | C20: 1370073.886 | D20: 1265219.78 | E20: 1203365.819 | F20: 1176779.313 | G20: 1193416.303 | H20: =H11+H18 -> 1262999.247 | I20: =I11+I18 -> 1359644.35 | J20: =J11+J18 -> 1444890.688 | K20: =K11+K18 -> 1527942.83 | L20: =L11+L18 -> 1608657.899
A22: Liabilities and stockholders' equity
A23: Current liabilities:
A24: Accounts Payable | C24: ='Owner-Operator Inputs'!F294*'Income Statement'!C$9 -> 34920 | D24: ='Owner-Operator Inputs'!G294*'Income Statement'!D$9 -> 28694.4 | E24: ='Owner-Operator Inputs'!H294*'Income Statement'!E$9 -> 35007.3 | F24: ='Owner-Operator Inputs'!I294*'Income Statement'!F$9 -> 42709.5 | G24: ='Owner-Operator Inputs'!J294*'Income Statement'!G$9 -> 52105.8 | H24: ='Owner-Operator Inputs'!K294*'Income Statement'!H$9 -> 63569.7 | I24: ='Owner-Operator Inputs'!L294*'Income Statement'!I$9 -> 71040 | J24: ='Owner-Operator Inputs'!M294*'Income Statement'!J$9 -> 71040 | K24: ='Owner-Operator Inputs'!N294*'Income Statement'!K$9 -> 71040 | L24: ='Owner-Operator Inputs'!O294*'Income Statement'!L$9 -> 71040
A25: Revolving Line of Credit | C25: ='Owner-Operator Inputs'!F295*'Income Statement'!C$9 -> 8730 | D25: ='Owner-Operator Inputs'!G295*'Income Statement'!D$9 -> 7173.6 | E25: ='Owner-Operator Inputs'!H295*'Income Statement'!E$9 -> 8751.825 | F25: ='Owner-Operator Inputs'!I295*'Income Statement'!F$9 -> 10677.375 | G25: ='Owner-Operator Inputs'!J295*'Income Statement'!G$9 -> 13026.45 | H25: ='Owner-Operator Inputs'!K295*'Income Statement'!H$9 -> 15892.425 | I25: ='Owner-Operator Inputs'!L295*'Income Statement'!I$9 -> 17760 | J25: ='Owner-Operator Inputs'!M295*'Income Statement'!J$9 -> 17760 | K25: ='Owner-Operator Inputs'!N295*'Income Statement'!K$9 -> 17760 | L25: ='Owner-Operator Inputs'!O295*'Income Statement'!L$9 -> 17760
A26: Current Portion of Long Term Debt | B26: ='Owner-Operator Inputs'!E296 -> 61064.4067 | C26: ='Owner-Operator Inputs'!F296 -> 65107.12564 | D26: ='Owner-Operator Inputs'!G296 -> 69427.77068 | E26: ='Owner-Operator Inputs'!H296 -> 74046.11938 | F26: ='Owner-Operator Inputs'!I296 -> 78983.39883 | G26: ='Owner-Operator Inputs'!J296 -> 84262.39449 | H26: ='Owner-Operator Inputs'!K296 -> 89907.56729 | I26: ='Owner-Operator Inputs'!L296 -> 95945.1797 | J26: ='Owner-Operator Inputs'!M296 -> 102403.4315 | K26: ='Owner-Operator Inputs'!N296 -> 109312.6058 | L26: ='Owner-Operator Inputs'!O296 -> 0
A27: Total current liabilities | B27: =SUM(B24:B26) -> 61064.4067 | C27: 108757.1256 | D27: 105295.7707 | E27: 117805.2444 | F27: 132370.2738 | G27: 149394.6445 | H27: =SUM(H24:H26) -> 169369.6923 | I27: =SUM(I24:I26) -> 184745.1797 | J27: =SUM(J24:J26) -> 191203.4315 | K27: =SUM(K24:K26) -> 198112.6058 | L27: =SUM(L24:L26) -> 88800
A29: Non-Current Liabilities
A30: Long Term Debt, Net Current Portion | B30: ='Owner-Operator Inputs'!E299 -> 769395.5933 | C30: ='Owner-Operator Inputs'!F299 -> 704288.4677 | D30: ='Owner-Operator Inputs'!G299 -> 634860.697 | E30: ='Owner-Operator Inputs'!H299 -> 560814.5776 | F30: ='Owner-Operator Inputs'!I299 -> 481831.1788 | G30: ='Owner-Operator Inputs'!J299 -> 397568.7843 | H30: ='Owner-Operator Inputs'!K299 -> 307661.217 | I30: ='Owner-Operator Inputs'!L299 -> 211716.0373 | J30: ='Owner-Operator Inputs'!M299 -> 109312.6058 | K30: ='Owner-Operator Inputs'!N299 -> 0 | L30: ='Owner-Operator Inputs'!O299 -> 0
A31: Total Non-Current Liabilities | B31: =SUM(B30:B30) -> 769395.5933 | C31: 704288.4677 | D31: 634860.697 | E31: 560814.5776 | F31: 481831.1788 | G31: 397568.7843 | H31: =SUM(H30:H30) -> 307661.217 | I31: =SUM(I30:I30) -> 211716.0373 | J31: =SUM(J30:J30) -> 109312.6058 | K31: =SUM(K30:K30) -> 0 | L31: =SUM(L30:L30) -> 0
A33: Total Liabilities | B33: =B31+B27 -> 830460 | C33: 813045.5933 | D33: 740156.4677 | E33: 678619.822 | F33: 614201.4526 | G33: 546963.4288 | H33: =H31+H27 -> 477030.9093 | I33: =I31+I27 -> 396461.217 | J33: =J31+J27 -> 300516.0373 | K33: =K31+K27 -> 198112.6058 | L33: =L31+L27 -> 88800
A36: Total stockholders' equity | B36: ='Owner-Operator Inputs'!E233 -> 553640 | C36: =B36+SCF!F7 -> 557028.2924 | D36: =C36+SCF!G7 -> 525063.312 | E36: =D36+SCF!H7 -> 524745.9968 | F36: =E36+SCF!I7 -> 562577.8607 | G36: =F36+SCF!J7 -> 646452.8742 | H36: =G36+SCF!K7 -> 785968.3375 | I36: =H36+SCF!L7 -> 963183.133 | J36: =I36+SCF!M7 -> 1144374.651 | K36: =J36+SCF!N7 -> 1329830.225 | L36: =K36+SCF!O7 -> 1519857.899
A38: Total liabilities and stockholders' equity | B38: =B33+B36 -> 1384100 | C38: 1370073.886 | D38: 1265219.78 | E38: 1203365.819 | F38: 1176779.313 | G38: 1193416.303 | H38: =H33+H36 -> 1262999.247 | I38: =I33+I36 -> 1359644.35 | J38: =J33+J36 -> 1444890.688 | K38: =K33+K36 -> 1527942.83 | L38: =L33+L36 -> 1608657.899
A39: Unreconciled Difference | B39: =B20-B38 -> 0 | C39: 0 | D39: 0 | E39: 0 | F39: 0 | G39: 0 | H39: =H20-H38 -> 0 | I39: =I20-I38 -> 0 | J39: =J20-J38 -> 0 | K39: =K20-K38 -> 0 | L39: =L20-L38 -> 0

Sheet SCF
A1: ='Initial Settings'!$C$6 -> Washington EV - Business Model 3 - Walla Walla
A3: Consolidated Statement of Cash Flows [$]
F5: ='Owner-Operator Inputs'!F254 -> 2016 | G5: ='Owner-Operator Inputs'!G254 -> 2017 | H5: ='Owner-Operator Inputs'!H254 -> 2018 | I5: ='Owner-Operator Inputs'!I254 -> 2019 | J5: ='Owner-Operator Inputs'!J254 -> 2020 | K5: ='Owner-Operator Inputs'!K254 -> 2021 | L5: ='Owner-Operator Inputs'!L254 -> 2022 | M5: ='Owner-Operator Inputs'!M254 -> 2023 | N5: ='Owner-Operator Inputs'!N254 -> 2024 | O5: ='Owner-Operator Inputs'!O254 -> 2025
A6: Cash Flow from Operations
A7: Net Income (Loss) | F7: ='Income Statement'!C34 -> 3388.292374 | G7: ='Income Statement'!D34 -> -31964.98037 | H7: ='Income Statement'!E34 -> -317.3152278 | I7: ='Income Statement'!F34 -> 37831.86393 | J7: ='Income Statement'!G34 -> 83875.01351 | K7: ='Income Statement'!H34 -> 139515.4633 | L7: ='Income Statement'!I34 -> 177214.7954 | M7: ='Income Statement'!J34 -> 181191.5181 | N7: ='Income Statement'!K34 -> 185455.5735 | O7: ='Income Statement'!L34 -> 190027.6741
A8: Depreciation | F8: ='Income Statement'!C18 -> 135500 | G8: ='Income Statement'!D18 -> 135500 | H8: ='Income Statement'!E18 -> 135500 | I8: ='Income Statement'!F18 -> 135500 | J8: ='Income Statement'!G18 -> 135500 | K8: ='Income Statement'!H18 -> 135500 | L8: ='Income Statement'!I18 -> 135500 | M8: ='Income Statement'!J18 -> 135500 | N8: ='Income Statement'!K18 -> 135500 | O8: ='Income Statement'!L18 -> 135500
A9: (Increase) Decrease in Accounts Receivable | F9: ='Balance Sheet'!B8-'Balance Sheet'!C8 -> -14550 | G9: ='Balance Sheet'!C8-'Balance Sheet'!D8 -> 2594 | H9: ='Balance Sheet'!D8-'Balance Sheet'!E8 -> -2630.375 | I9: ='Balance Sheet'!E8-'Balance Sheet'!F8 -> -3209.25 | J9: ='Balance Sheet'!F8-'Balance Sheet'!G8 -> -3915.125 | K9: ='Balance Sheet'!G8-'Balance Sheet'!H8 -> -4776.625 | L9: ='Balance Sheet'!H8-'Balance Sheet'!I8 -> -3112.625 | M9: ='Balance Sheet'!I8-'Balance Sheet'!J8 -> 0 | N9: ='Balance Sheet'!J8-'Balance Sheet'!K8 -> 0 | O9: ='Balance Sheet'!K8-'Balance Sheet'!L8 -> 0
A10: (Increase) Decrease in Other Receivable | F10: ='Balance Sheet'!B9-'Balance Sheet'!C9 -> 0 | G10: ='Balance Sheet'!C9-'Balance Sheet'!D9 -> 0 | H10: ='Balance Sheet'!D9-'Balance Sheet'!E9 -> 0 | I10: ='Balance Sheet'!E9-'Balance Sheet'!F9 -> 0 | J10: ='Balance Sheet'!F9-'Balance Sheet'!G9 -> 0 | K10: ='Balance Sheet'!G9-'Balance Sheet'!H9 -> 0 | L10: ='Balance Sheet'!H9-'Balance Sheet'!I9 -> 0 | M10: ='Balance Sheet'!I9-'Balance Sheet'!J9 -> 0 | N10: ='Balance Sheet'!J9-'Balance Sheet'!K9 -> 0 | O10: ='Balance Sheet'!K9-'Balance Sheet'!L9 -> 0
A11: (Increase) Decrease in Prepaid Expenses | F11: ='Balance Sheet'!B10-'Balance Sheet'!C10 -> 0 | G11: ='Balance Sheet'!C10-'Balance Sheet'!D10 -> 0 | H11: ='Balance Sheet'!D10-'Balance Sheet'!E10 -> 0 | I11: ='Balance Sheet'!E10-'Balance Sheet'!F10 -> 0 | J11: ='Balance Sheet'!F10-'Balance Sheet'!G10 -> 0 | K11: ='Balance Sheet'!G10-'Balance Sheet'!H10 -> 0 | L11: ='Balance Sheet'!H10-'Balance Sheet'!I10 -> 0 | M11: ='Balance Sheet'!I10-'Balance Sheet'!J10 -> 0 | N11: ='Balance Sheet'!J10-'Balance Sheet'!K10 -> 0 | O11: ='Balance Sheet'!K10-'Balance Sheet'!L10 -> 0
A12: (Increase) Decrease in Intangibles | F12: ='Balance Sheet'!B16-'Balance Sheet'!C16 -> 0 | G12: ='Balance Sheet'!C16-'Balance Sheet'!D16 -> 0 | H12: ='Balance Sheet'!D16-'Balance Sheet'!E16 -> 0 | I12: ='Balance Sheet'!E16-'Balance Sheet'!F16 -> 0 | J12: ='Balance Sheet'!F16-'Balance Sheet'!G16 -> 0 | K12: ='Balance Sheet'!G16-'Balance Sheet'!H16 -> 0 | L12: ='Balance Sheet'!H16-'Balance Sheet'!I16 -> 0 | M12: ='Balance Sheet'!I16-'Balance Sheet'!J16 -> 0 | N12: ='Balance Sheet'!J16-'Balance Sheet'!K16 -> 0 | O12: ='Balance Sheet'!K16-'Balance Sheet'!L16 -> 0
A13: (Increase) Decrease in Other Non-Current Assets | F13: ='Balance Sheet'!B17-'Balance Sheet'!C17 -> 0 | G13: ='Balance Sheet'!C17-'Balance Sheet'!D17 -> 0 | H13: ='Balance Sheet'!D17-'Balance Sheet'!E17 -> 0 | I13: ='Balance Sheet'!E17-'Balance Sheet'!F17 -> 0 | J13: ='Balance Sheet'!F17-'Balance Sheet'!G17 -> 0 | K13: ='Balance Sheet'!G17-'Balance Sheet'!H17 -> 0 | L13: ='Balance Sheet'!H17-'Balance Sheet'!I17 -> 0 | M13: ='Balance Sheet'!I17-'Balance Sheet'!J17 -> 0 | N13: ='Balance Sheet'!J17-'Balance Sheet'!K17 -> 0 | O13: ='Balance Sheet'!K17-'Balance Sheet'!L17 -> 0
A14: (Decrease) Increase in Accounts Payable | F14: ='Balance Sheet'!C24-'Balance Sheet'!B24 -> 34920 | G14: ='Balance Sheet'!D24-'Balance Sheet'!C24 -> -6225.6 | H14: ='Balance Sheet'!E24-'Balance Sheet'!D24 -> 6312.9 | I14: ='Balance Sheet'!F24-'Balance Sheet'!E24 -> 7702.2 | J14: ='Balance Sheet'!G24-'Balance Sheet'!F24 -> 9396.3 | K14: ='Balance Sheet'!H24-'Balance Sheet'!G24 -> 11463.9 | L14: ='Balance Sheet'!I24-'Balance Sheet'!H24 -> 7470.3 | M14: ='Balance Sheet'!J24-'Balance Sheet'!I24 -> 0 | N14: ='Balance Sheet'!K24-'Balance Sheet'!J24 -> 0 | O14: ='Balance Sheet'!L24-'Balance Sheet'!K24 -> 0
A15: Total | F15: =SUM(F7:F14) -> 159258.2924 | G15: 99903.41963 | H15: 138865.2098 | I15: 177824.8139 | J15: 224856.1885 | K15: 281702.7383 | L15: 317072.4704 | M15: 316691.5181 | N15: 320955.5735 | O15: 325527.6741
A17: Cash Flow from Investing
A18: CAPEX | F18: =-((SUM('Balance Sheet'!C14:C15)-SUM('Balance Sheet'!B14:B15))+'Income Statement'!C18) -> 0 | G18: =-((SUM('Balance Sheet'!D14:D15)-SUM('Balance Sheet'!C14:C15))+'Income Statement'!D18) -> 0 | H18: =-((SUM('Balance Sheet'!E14:E15)-SUM('Balance Sheet'!D14:D15))+'Income Statement'!E18) -> 0 | I18: =-((SUM('Balance Sheet'!F14:F15)-SUM('Balance Sheet'!E14:E15))+'Income Statement'!F18) -> 0 | J18: =-((SUM('Balance Sheet'!G14:G15)-SUM('Balance Sheet'!F14:F15))+'Income Statement'!G18) -> 0 | K18: =-((SUM('Balance Sheet'!H14:H15)-SUM('Balance Sheet'!G14:G15))+'Income Statement'!H18) -> 0 | L18: =-((SUM('Balance Sheet'!I14:I15)-SUM('Balance Sheet'!H14:H15))+'Income Statement'!I18) -> 0 | M18: =-((SUM('Balance Sheet'!J14:J15)-SUM('Balance Sheet'!I14:I15))+'Income Statement'!J18) -> 0 | N18: =-((SUM('Balance Sheet'!K14:K15)-SUM('Balance Sheet'!J14:J15))+'Income Statement'!K18) -> 0 | O18: =-((SUM('Balance Sheet'!L14:L15)-SUM('Balance Sheet'!K14:K15))+'Income Statement'!L18) -> 0
A19: Total | F19: =SUM(F18:F18) -> 0 | G19: 0 | H19: 0 | I19: 0 | J19: 0 | K19: 0 | L19: 0 | M19: 0 | N19: 0 | O19: 0
A21: Cash Flow from Financing
A22: Revolving Line of Credit | F22: ='Balance Sheet'!C25-'Balance Sheet'!B25 -> 8730 | G22: ='Balance Sheet'!D25-'Balance Sheet'!C25 -> -1556.4 | H22: ='Balance Sheet'!E25-'Balance Sheet'!D25 -> 1578.225 | I22: ='Balance Sheet'!F25-'Balance Sheet'!E25 -> 1925.55 | J22: ='Balance Sheet'!G25-'Balance Sheet'!F25 -> 2349.075 | K22: ='Balance Sheet'!H25-'Balance Sheet'!G25 -> 2865.975 | L22: ='Balance Sheet'!I25-'Balance Sheet'!H25 -> 1867.575 | M22: ='Balance Sheet'!J25-'Balance Sheet'!I25 -> 0 | N22: ='Balance Sheet'!K25-'Balance Sheet'!J25 -> 0 | O22: ='Balance Sheet'!L25-'Balance Sheet'!K25 -> 0
A23: Long Term Debt | F23: =('Balance Sheet'!C30-'Balance Sheet'!B30)+('Balance Sheet'!C26-'Balance Sheet'!B26) -> -61064.4067 | G23: =('Balance Sheet'!D30-'Balance Sheet'!C30)+('Balance Sheet'!D26-'Balance Sheet'!C26) -> -65107.12564 | H23: =('Balance Sheet'!E30-'Balance Sheet'!D30)+('Balance Sheet'!E26-'Balance Sheet'!D26) -> -69427.77068 | I23: =('Balance Sheet'!F30-'Balance Sheet'!E30)+('Balance Sheet'!F26-'Balance Sheet'!E26) -> -74046.11938 | J23: =('Balance Sheet'!G30-'Balance Sheet'!F30)+('Balance Sheet'!G26-'Balance Sheet'!F26) -> -78983.39883 | K23: =('Balance Sheet'!H30-'Balance Sheet'!G30)+('Balance Sheet'!H26-'Balance Sheet'!G26) -> -84262.39449 | L23: =('Balance Sheet'!I30-'Balance Sheet'!H30)+('Balance Sheet'!I26-'Balance Sheet'!H26) -> -89907.56729 | M23: =('Balance Sheet'!J30-'Balance Sheet'!I30)+('Balance Sheet'!J26-'Balance Sheet'!I26) -> -95945.1797 | N23: =('Balance Sheet'!K30-'Balance Sheet'!J30)+('Balance Sheet'!K26-'Balance Sheet'!J26) -> -102403.4315 | O23: =('Balance Sheet'!L30-'Balance Sheet'!K30)+('Balance Sheet'!L26-'Balance Sheet'!K26) -> -109312.6058
A24: Total | F24: =SUM(F22:F23) -> -52334.4067 | G24: -66663.52564 | H24: -67849.54568 | I24: -72120.56938 | J24: -76634.32383 | K24: -81396.41949 | L24: -88039.99229 | M24: -95945.1797 | N24: -102403.4315 | O24: -109312.6058
A26: Net Change in Cash | F26: =F15+F19+F24 -> 106923.8857 | G26: 33239.89399 | H26: 71015.66409 | I26: 105704.2446 | J26: 148221.8647 | K26: 200306.3188 | L26: 229032.4781 | M26: 220746.3384 | N26: 218552.142 | O26: 216215.0683
A27: Cash at Beginning of Year | F27: ='Balance Sheet'!B7 -> 29100 | G27: ='Balance Sheet'!C7 -> 136023.8857 | H27: ='Balance Sheet'!D7 -> 169263.7797 | I27: ='Balance Sheet'!E7 -> 240279.4438 | J27: ='Balance Sheet'!F7 -> 345983.6883 | K27: ='Balance Sheet'!G7 -> 494205.553 | L27: ='Balance Sheet'!H7 -> 694511.8718 | M27: ='Balance Sheet'!I7 -> 923544.3499 | N27: ='Balance Sheet'!J7 -> 1144290.688 | O27: ='Balance Sheet'!K7 -> 1362842.83
A28: Cash at End of Year | F28: =F26+F27 -> 136023.8857 | G28: 169263.7797 | H28: 240279.4438 | I28: 345983.6883 | J28: 494205.553 | K28: 694511.8718 | L28: 923544.3499 | M28: 1144290.688 | N28: 1362842.83 | O28: 1579057.899
A29: Cash Per Balance Sheet | F29: ='Balance Sheet'!C7 -> 136023.8857 | G29: ='Balance Sheet'!D7 -> 169263.7797 | H29: ='Balance Sheet'!E7 -> 240279.4438 | I29: ='Balance Sheet'!F7 -> 345983.6883 | J29: ='Balance Sheet'!G7 -> 494205.553 | K29: ='Balance Sheet'!H7 -> 694511.8718 | L29: ='Balance Sheet'!I7 -> 923544.3499 | M29: ='Balance Sheet'!J7 -> 1144290.688 | N29: ='Balance Sheet'!K7 -> 1362842.83 | O29: ='Balance Sheet'!L7 -> 1579057.899
A30: Unreconciled Difference | F30: =F29-F28 -> 0 | G30: 0 | H30: 0 | I30: 0 | J30: 0 | K30: 0 | L30: 0 | M30: 0 | N30: 0 | O30: 0

Sheet Report (hidden)
A1: Financial Metric | C1: Result
A2: Total project level perspective
A3: Total capital investment (spent on charging station deployment) | C3: ='Outputs Dashboard'!C5 -> 1384100
A4: NPV | C4: =IF('Outputs Dashboard'!C6>0, "+" & TEXT('Outputs Dashboard'!C6, "$#,##0"), TEXT('Outputs Dashboard'!C6, "$#,##0")) -> +$862,640
A5: Payback period | C5: =IF('Outputs Dashboard'!C8="N/A", "No payback", 'Outputs Dashboard'!C8 & " years") -> 6 years
A6: Owner operator perspective
A7: Funds spent on stations (equity) | C7: ='Outputs Dashboard'!C11 -> 316140
A8: Funds spent on stations (debt) | B8: Private loans | C8: ='Owner-Operator Inputs'!E238 -> 415230
B9: Public subsidized loans | C9: ='Owner-Operator Inputs'!E237 -> 415230
A10: NPV | C10: =IF('Outputs Dashboard'!C12>0, "+" & TEXT('Outputs Dashboard'!C12, "$#,##0"), TEXT('Outputs Dashboard'!C12, "$#,##0")) -> +$490,899
A11: Payback period | C11: =IF('Outputs Dashboard'!C14="N/A", "No payback", 'Outputs Dashboard'!C14 & " years") -> 5 years
A12: Funding partner perspective
A13: Amount of funds transferred to owner operator initially | C13: ='Private Sector Partner Inputs'!F59 -> 95000
A14: Amount of funds transferred to owner operator annually | C14: =IF('Private Sector Partner Inputs'!F55>0, TEXT('Private Sector Partner Inputs'!F55, "$#,##0") & " - " & TEXT('Private Sector Partner Inputs'!O55, "$#,##0"), "$0") -> $56,000 - $168,250
A15: NPV | C15: =IF('Outputs Dashboard'!C19>0, "+" & TEXT('Outputs Dashboard'!C19, "$#,##0"), TEXT('Outputs Dashboard'!C19, "$#,##0")) -> +$495,520
A16: Payback period | C16: =IF('Outputs Dashboard'!C21="N/A", "No payback", 'Outputs Dashboard'!C21 & " years") -> 2 years
A17: Public sector perspective
A18: Loan to owner-operator | C18: ='Public Sector Partner Inputs'!E10 -> 415230
A19: Grants to owner-operator | C19: ='Public Sector Partner Inputs'!E17 -> 237500
A20: NPV | C20: =IF('Outputs Dashboard'!C26>0, "+" & TEXT('Outputs Dashboard'!C26, "$#,##0"), TEXT('Outputs Dashboard'!C26, "$#,##0")) -> -$237,500
A21: Payback period | C21: =IF('Outputs Dashboard'!C28="N/A", "No payback", 'Outputs Dashboard'!C28 & " years") -> No payback
A23: Financial Metric | B23: Result
A24: Project NPV & Payback | B24: =TEXT('Outputs Dashboard'!C6, "$#,##0") & IF('Outputs Dashboard'!C8<>"N/A", " (" & 'Outputs Dashboard'!C8 & ")", "") -> $862,640 (6)
A25: Owner Operator NPV & Payback | B25: =TEXT('Outputs Dashboard'!C12, "$#,##0") & IF('Outputs Dashboard'!C14<>"N/A", " (" & 'Outputs Dashboard'!C14 & ")", "") -> $490,899 (5)
A26: Private Sector Partner NPV & Payback | B26: =TEXT('Outputs Dashboard'!C19, "$#,##0") & IF('Outputs Dashboard'!C21<>"N/A", " (" & 'Outputs Dashboard'!C21 & ")", "") -> $495,520 (2)
A27: Public Sector Partner NPV & Payback | B27: =TEXT('Outputs Dashboard'!C26, "$#,##0") & IF('Outputs Dashboard'!C28<>"N/A", " (" & 'Outputs Dashboard'!C28 & ")", "") -> -$237,500
A29: Initial Utilization Scale Factor | B29: 1
A30: Max Charging Sessions Per Year Scale Factor | B30: 1
A31: Installation Cost Scale Factor | B31: 1

Sheet Sensitivity Tables
A1: ='Initial Settings'!C6 -> Washington EV - Business Model 3 - Walla Walla
A3: Sensitivity Tables
A5: Sensitivity Analysis #1
B7: ='Market Inputs'!$A$30 -> Expected annual utilization growth rate [%]
B8: NPV | F8: Payback
A9: ='Market Inputs'!$F$30 -> 0.22 | B9: ='Outputs Dashboard'!$B$4 -> Project | C9: ='Outputs Dashboard'!$B$10 -> Owner-Operator | D9: ='Outputs Dashboard'!$B$16 -> Private Sector Partner(s) | E9: ='Outputs Dashboard'!$B$23 -> Public Sector Partner | F9: ='Outputs Dashboard'!$B$4 -> Project | G9: ='Outputs Dashboard'!$B$10 -> Owner-Operator | H9: ='Outputs Dashboard'!$B$16 -> Private Sector Partner(s) | I9: ='Outputs Dashboard'!$B$23 -> Public Sector Partner
B10: ='Outputs Dashboard'!$C$6 -> 862639.6897 | C10: ='Outputs Dashboard'!$C$12 -> 490898.5896 | D10: ='Outputs Dashboard'!$C$19 -> 495520.0651 | E10: ='Outputs Dashboard'!$C$26 -> -237500 | F10: =IF('Outputs Dashboard'!$C$8="N/A",#N/A,'Outputs Dashboard'!$C$8) -> 6 | G10: =IF('Outputs Dashboard'!$C$14="N/A",#N/A,'Outputs Dashboard'!$C$14) -> 5 | H10: =IF('Outputs Dashboard'!$C$21="N/A",#N/A,'Outputs Dashboard'!$C$21) -> 2 | I10: =IF('Outputs Dashboard'!$C$28="N/A",#N/A,'Outputs Dashboard'!$C$28) -> 
A11: 0 | B11: -187568.8413 | C11: -189704.2387 | D11: 254967.0151 | E11: -237500 | H11: 2
A12: =A13-($A$20-$A$11)/9 -> 0.05 | B12: 24058.25001 | C12: -53470.8197 | D12: 303559.7199 | E12: -237500 | F12: 10 | H12: 2
A13: 0.1 | B13: 294364.8858 | C13: 119595.1224 | D13: 365435.6705 | E13: -237500 | F13: 8 | G13: 8 | H13: 2
A14: 0.15 | B14: 605303.984 | C14: 319535.2679 | D14: 436039.7157 | E14: -237500 | F14: 7 | G14: 6 | H14: 2
A15: 0.2 | B15: 808676.2018 | C15: 454318.32 | D15: 483004.5097 | E15: -237500 | F15: 6 | G15: 5 | H15: 2
A16: 0.25 | B16: 941046.4861 | C16: 544089.7296 | D16: 513832.2872 | E16: -237500 | F16: 6 | G16: 5 | H16: 2
A17: 0.3 | B17: 1029550.668 | C17: 604617.966 | D17: 535060.4381 | E17: -237500 | F17: 6 | G17: 5 | H17: 2
A18: 0.35 | B18: 1095463.027 | C18: 650276.7849 | D18: 550697.3697 | E18: -237500 | F18: 5 | G18: 4 | H18: 2
A19: 0.4 | B19: 1148206.466 | C19: 686842.3208 | D19: 563523.8799 | E19: -237500 | F19: 5 | G19: 4 | H19: 2
A20: 0.45 | B20: 1200319.913 | C20: 723293.1176 | D20: 575894.0502 | E20: -237500 | F20: 5 | G20: 4 | H20: 2
A22: Sensitivity Analysis #2A
B24: ='Market Inputs'!$A$31 -> [Station Type 1] Initial average utilization [# of charging sessions per station per year]
B25: NPV | F25: Payback
A26: ='Market Inputs'!$F$31 -> 1200 | B26: ='Outputs Dashboard'!$B$4 -> Project | C26: ='Outputs Dashboard'!$B$10 -> Owner-Operator | D26: ='Outputs Dashboard'!$B$16 -> Private Sector Partner(s) | E26: ='Outputs Dashboard'!$B$23 -> Public Sector Partner | F26: ='Outputs Dashboard'!$B$4 -> Project | G26: ='Outputs Dashboard'!$B$10 -> Owner-Operator | H26: ='Outputs Dashboard'!$B$16 -> Private Sector Partner(s) | I26: ='Outputs Dashboard'!$B$23 -> Public Sector Partner
B27: ='Outputs Dashboard'!$C$6 -> 862639.6897 | C27: ='Outputs Dashboard'!$C$12 -> 490898.5896 | D27: ='Outputs Dashboard'!$C$19 -> 495520.0651 | E27: ='Outputs Dashboard'!$C$26 -> -237500 | F27: =IF('Outputs Dashboard'!$C$8="N/A",#N/A,'Outputs Dashboard'!$C$8) -> 6 | G27: =IF('Outputs Dashboard'!$C$14="N/A",#N/A,'Outputs Dashboard'!$C$14) -> 5 | H27: =IF('Outputs Dashboard'!$C$21="N/A",#N/A,'Outputs Dashboard'!$C$21) -> 2 | I27: =IF('Outputs Dashboard'!$C$28="N/A",#N/A,'Outputs Dashboard'!$C$28) -> 
A28: 0 | B28: 322460.8156 | C28: 5808.392339 | D28: 495520.0651 | E28: -236264.5401 | F28: 8 | G28: 10 | H28: 2
A29: =A30-($A$37-$A$28)/9 -> 300 | B29: 485243.5962 | C29: 150337.1474 | D29: 495520.0651 | E29: -236573.4051 | F29: 7 | G29: 8 | H29: 2
A30: 600 | B30: 648017.1599 | C30: 294857.897 | D30: 495520.0651 | E30: -236882.2701 | F30: 7 | G30: 7 | H30: 2
A31: 900 | B31: 774784.2466 | C31: 409516.5872 | D31: 495520.0651 | E31: -237191.135 | F31: 7 | G31: 6 | H31: 2
A32: 1200 | B32: 862639.6897 | C32: 490898.5896 | D32: 495520.0651 | E32: -237500 | F32: 6 | G32: 5 | H32: 2
A33: 1500 | B33: 928568.2837 | C33: 552954.5509 | D33: 495520.0651 | E33: -237808.865 | F33: 6 | G33: 5 | H33: 2
A34: 1800 | B34: 978556.9475 | C34: 600652.7873 | D34: 495520.0651 | E34: -238117.7299 | F34: 6 | G34: 4 | H34: 2
A35: 2100 | B35: 1017291.529 | C35: 638038.9792 | D35: 495520.0651 | E35: -238426.5949 | F35: 6 | G35: 4 | H35: 2
A36: 2400 | B36: 1046803.759 | C36: 666867.4401 | D36: 495520.0651 | E36: -238735.4599 | F36: 5 | G36: 4 | H36: 2
A37: 2700 | B37: 1066676.675 | C37: 686575.0582 | D37: 495520.0651 | E37: -239044.3248 | F37: 5 | G37: 3 | H37: 2
A39: Sensitivity Analysis #2B
B41: ='Market Inputs'!$A$33 -> [Station Type 2] Initial average utilization [# of charging sessions per station per year]
B42: NPV | F42: Payback
A43: ='Market Inputs'!$F$33 -> 400 | B43: ='Outputs Dashboard'!$B$4 -> Project | C43: ='Outputs Dashboard'!$B$10 -> Owner-Operator | D43: ='Outputs Dashboard'!$B$16 -> Private Sector Partner(s) | E43: ='Outputs Dashboard'!$B$23 -> Public Sector Partner | F43: ='Outputs Dashboard'!$B$4 -> Project | G43: ='Outputs Dashboard'!$B$10 -> Owner-Operator | H43: ='Outputs Dashboard'!$B$16 -> Private Sector Partner(s) | I43: ='Outputs Dashboard'!$B$23 -> Public Sector Partner
B44: ='Outputs Dashboard'!$C$6 -> 862639.6897 | C44: ='Outputs Dashboard'!$C$12 -> 490898.5896 | D44: ='Outputs Dashboard'!$C$19 -> 495520.0651 | E44: ='Outputs Dashboard'!$C$26 -> -237500 | F44: =IF('Outputs Dashboard'!$C$8="N/A",#N/A,'Outputs Dashboard'!$C$8) -> 6 | G44: =IF('Outputs Dashboard'!$C$14="N/A",#N/A,'Outputs Dashboard'!$C$14) -> 5 | H44: =IF('Outputs Dashboard'!$C$21="N/A",#N/A,'Outputs Dashboard'!$C$21) -> 2 | I44: =IF('Outputs Dashboard'!$C$28="N/A",#N/A,'Outputs Dashboard'!$C$28) -> 
A45: 0 | B45: -357312.9871 | C45: -178889.8943 | D45: 73810.9857 | E45: -235784.0835 | H45: 4
A46: =A47-($A$54-$A$45)/9 -> 300 | B46: 666709.9667 | C46: 379670.1921 | D46: 425793.4229 | E46: -237071.0209 | F46: 7 | G46: 6 | H46: 2
A47: 600 | B47: 1121704.863 | C47: 640651.194 | D47: 590113.7868 | E47: -238357.9582 | F47: 5 | G47: 4 | H47: 1
A48: 900 | B48: 1318769.6 | C48: 756711.8341 | D48: 664987.1474 | E48: -239644.8956 | F48: 4 | G48: 3 | H48: 1
A49: 1200 | B49: 1393157.311 | C49: 800777.1412 | D49: 695399.7367 | E49: -240931.833 | F49: 4 | G49: 3 | H49: 1
A50: 1500 | B50: 1393157.311 | C50: 800777.1412 | D50: 695399.7367 | E50: -240931.833 | F50: 4 | G50: 3 | H50: 1
A51: 1800 | B51: 1393157.311 | C51: 800777.1412 | D51: 695399.7367 | E51: -240931.833 | F51: 4 | G51: 3 | H51: 1
A52: 2100 | B52: 1393157.311 | C52: 800777.1412 | D52: 695399.7367 | E52: -240931.833 | F52: 4 | G52: 3 | H52: 1
A53: =A54-($A$54-$A$45)/9 -> 2400 | B53: 1393157.311 | C53: 800777.1412 | D53: 695399.7367 | E53: -240931.833 | F53: 4 | G53: 3 | H53: 1
A54: 2700 | B54: 1393157.311 | C54: 800777.1412 | D54: 695399.7367 | E54: -240931.833 | F54: 4 | G54: 3 | H54: 1
A56: Sensitivity Analysis #2C
B58: ='Market Inputs'!$A$35 -> [Station Type 3] Initial average utilization [# of charging sessions per station per year]
B59: NPV | F59: Payback
A60: ='Market Inputs'!$F$35 -> 1200 | B60: ='Outputs Dashboard'!$B$4 -> Project | C60: ='Outputs Dashboard'!$B$10 -> Owner-Operator | D60: ='Outputs Dashboard'!$B$16 -> Private Sector Partner(s) | E60: ='Outputs Dashboard'!$B$23 -> Public Sector Partner | F60: ='Outputs Dashboard'!$B$4 -> Project | G60: ='Outputs Dashboard'!$B$10 -> Owner-Operator | H60: ='Outputs Dashboard'!$B$16 -> Private Sector Partner(s) | I60: ='Outputs Dashboard'!$B$23 -> Public Sector Partner
B61: ='Outputs Dashboard'!$C$6 -> 862639.6897 | C61: ='Outputs Dashboard'!$C$12 -> 490898.5896 | D61: ='Outputs Dashboard'!$C$19 -> 495520.0651 | E61: ='Outputs Dashboard'!$C$26 -> -237500 | F61: =IF('Outputs Dashboard'!$C$8="N/A",#N/A,'Outputs Dashboard'!$C$8) -> 6 | G61: =IF('Outputs Dashboard'!$C$14="N/A",#N/A,'Outputs Dashboard'!$C$14) -> 5 | H61: =IF('Outputs Dashboard'!$C$21="N/A",#N/A,'Outputs Dashboard'!$C$21) -> 2 | I61: =IF('Outputs Dashboard'!$C$28="N/A",#N/A,'Outputs Dashboard'!$C$28) -> 
A62: 0 | B62: 616400.9239 | C62: 321257.4813 | D62: 444616.2942 | E62: -237088.18 | F62: 7 | G62: 6 | H62: 2
A63: =A64-($A$71-$A$62)/9 -> 300 | B63: 690687.8741 | C63: 371805.0175 | D63: 459850.5849 | E63: -237191.135 | F63: 7 | G63: 6 | H63: 2
A64: 600 | B64: 764981.8208 | C64: 422357.7389 | D64: 475086.3379 | E64: -237294.09 | F64: 7 | G64: 6 | H64: 2
A65: 900 | B65: 822627.5558 | C65: 462438.354 | D65: 487015.8041 | E65: -237397.045 | F65: 6 | G65: 5 | H65: 2
A66: 1200 | B66: 862639.6897 | C66: 490898.5896 | D66: 495520.0651 | E66: -237500 | F66: 6 | G66: 5 | H66: 2
A67: 1500 | B67: 892689.8733 | C67: 512587.9669 | D67: 502031.8674 | E67: -237602.955 | F67: 6 | G67: 5 | H67: 2
A68: 1800 | B68: 915534.1853 | C68: 529271.9582 | D68: 507070.1127 | E68: -237705.91 | F68: 6 | G68: 5 | H68: 2
A69: 2100 | B69: 933273.2255 | C69: 542348.0964 | D69: 511045.8703 | E69: -237808.865 | F69: 6 | G69: 5 | H69: 2
A70: =A71-($A$71-$A$62)/9 -> 2400 | B70: 946835.6373 | C70: 552434.9958 | D70: 514141.1005 | E70: -237911.82 | F70: 6 | G70: 5 | H70: 2
A71: 2700 | B71: 956035.0037 | C71: 559337.4727 | D71: 516297.9494 | E71: -238014.7749 | F71: 6 | G71: 5 | H71: 2
A73: Sensitivity Analysis #7
B75: ='Owner-Operator Inputs'!$A$250 -> Owner Operator Cost of Debt (Long Term)
B76: NPV | F76: Payback
A77: ='Owner-Operator Inputs'!$E$250 -> 0.08 | B77: ='Outputs Dashboard'!$B$4 -> Project | C77: ='Outputs Dashboard'!$B$10 -> Owner-Operator | D77: ='Outputs Dashboard'!$B$16 -> Private Sector Partner(s) | E77: ='Outputs Dashboard'!$B$23 -> Public Sector Partner | F77: ='Outputs Dashboard'!$B$4 -> Project | G77: ='Outputs Dashboard'!$B$10 -> Owner-Operator | H77: ='Outputs Dashboard'!$B$16 -> Private Sector Partner(s) | I77: ='Outputs Dashboard'!$B$23 -> Public Sector Partner
B78: ='Outputs Dashboard'!$C$6 -> 862639.6897 | C78: ='Outputs Dashboard'!$C$12 -> 490898.5896 | D78: ='Outputs Dashboard'!$C$19 -> 495520.0651 | E78: ='Outputs Dashboard'!$C$26 -> -237500 | F78: =IF('Outputs Dashboard'!$C$8="N/A",#N/A,'Outputs Dashboard'!$C$8) -> 6 | G78: =IF('Outputs Dashboard'!$C$14="N/A",#N/A,'Outputs Dashboard'!$C$14) -> 5 | H78: =IF('Outputs Dashboard'!$C$21="N/A",#N/A,'Outputs Dashboard'!$C$21) -> 2 | I78: =IF('Outputs Dashboard'!$C$28="N/A",#N/A,'Outputs Dashboard'!$C$28) -> 
A79: 0 | B79: 1221060.284 | C79: 570791.2851 | D79: 495520.0651 | E79: -237500 | F79: 6 | G79: 5 | H79: 2
A80: =A81-($A$88-$A$79)/9 -> 0.02 | B80: 1126602.233 | C80: 552482.3553 | D80: 495520.0651 | E80: -237500 | F80: 6 | G80: 5 | H80: 2
A81: 0.04 | B81: 1035456.494 | C81: 533035.7052 | D81: 495520.0651 | E81: -237500 | F81: 6 | G81: 5 | H81: 2
A82: 0.06 | B82: 947505.2689 | C82: 512492.318 | D82: 495520.0651 | E82: -237500 | F82: 6 | G82: 5 | H82: 2
A83: 0.08 | B83: 862639.6897 | C83: 490898.5896 | D83: 495520.0651 | E83: -237500 | F83: 6 | G83: 5 | H83: 2
A84: 0.1 | B84: 780758.0208 | C84: 468305.042 | D84: 495520.0651 | E84: -237500 | F84: 6 | G84: 5 | H84: 2
A85: 0.12 | B85: 701764.1495 | C85: 444765.0968 | D85: 495520.0651 | E85: -237500 | F85: 7 | G85: 6 | H85: 2
A86: 0.14 | B86: 625566.3466 | C86: 420333.9439 | D86: 495520.0651 | E86: -237500 | F86: 7 | G86: 6 | H86: 2
A87: =A88-($A$88-$A$79)/9 -> 0.16 | B87: 552076.2807 | C87: 395067.5278 | D87: 495520.0651 | E87: -237500 | F87: 7 | G87: 6 | H87: 2
A88: 0.18 | B88: 481208.2603 | C88: 369021.6674 | D88: 495520.0651 | E88: -237500 | F88: 7 | G88: 6 | H88: 2
A90: Sensitivity Analysis #8A
B92: ='Private Sector Partner Inputs'!$A$38 -> Estimated NPV of lifetime after-tax profit per station - type 1 station [$]
B93: NPV | F93: Payback
A94: ='Private Sector Partner Inputs'!$E$38 -> 10694 | B94: ='Outputs Dashboard'!$B$4 -> Project | C94: ='Outputs Dashboard'!$B$10 -> Owner-Operator | D94: ='Outputs Dashboard'!$B$16 -> Private Sector Partner(s) | E94: ='Outputs Dashboard'!$B$23 -> Public Sector Partner | F94: ='Outputs Dashboard'!$B$4 -> Project | G94: ='Outputs Dashboard'!$B$10 -> Owner-Operator | H94: ='Outputs Dashboard'!$B$16 -> Private Sector Partner(s) | I94: ='Outputs Dashboard'!$B$23 -> Public Sector Partner
B95: ='Outputs Dashboard'!$C$6 -> 862639.6897 | C95: ='Outputs Dashboard'!$C$12 -> 490898.5896 | D95: ='Outputs Dashboard'!$C$19 -> 495520.0651 | E95: ='Outputs Dashboard'!$C$26 -> -237500 | F95: =IF('Outputs Dashboard'!$C$8="N/A",#N/A,'Outputs Dashboard'!$C$8) -> 6 | G95: =IF('Outputs Dashboard'!$C$14="N/A",#N/A,'Outputs Dashboard'!$C$14) -> 5 | H95: =IF('Outputs Dashboard'!$C$21="N/A",#N/A,'Outputs Dashboard'!$C$21) -> 2 | I95: =IF('Outputs Dashboard'!$C$28="N/A",#N/A,'Outputs Dashboard'!$C$28) -> 
A96: 0 | B96: 804208.6907 | C96: 490898.5896 | D96: 442477.8251 | E96: -237500 | F96: 6 | G96: 5 | H96: 2
A97: =A98-($A$105-$A$96)/9 -> 2000 | B97: 815136.5005 | C97: 490898.5896 | D97: 452397.8251 | E97: -237500 | F97: 6 | G97: 5 | H97: 2
A98: 4000 | B98: 826064.3103 | C98: 490898.5896 | D98: 462317.8251 | E98: -237500 | F98: 6 | G98: 5 | H98: 2
A99: 6000 | B99: 836992.1201 | C99: 490898.5896 | D99: 472237.8251 | E99: -237500 | F99: 6 | G99: 5 | H99: 2
A100: 8000 | B100: 847919.9299 | C100: 490898.5896 | D100: 482157.8251 | E100: -237500 | F100: 6 | G100: 5 | H100: 2
A101: 10000 | B101: 858847.7397 | C101: 490898.5896 | D101: 492077.8251 | E101: -237500 | F101: 6 | G101: 5 | H101: 2
A102: 12000 | B102: 869775.5495 | C102: 490898.5896 | D102: 501997.8251 | E102: -237500 | F102: 6 | G102: 5 | H102: 2
A103: 14000 | B103: 880703.3593 | C103: 490898.5896 | D103: 511917.8251 | E103: -237500 | F103: 6 | G103: 5 | H103: 2
A104: =A105-($A$105-$A$96)/9 -> 16000 | B104: 891631.1691 | C104: 490898.5896 | D104: 521837.8251 | E104: -237500 | F104: 6 | G104: 5 | H104: 2
A105: 18000 | B105: 902558.9789 | C105: 490898.5896 | D105: 531757.8251 | E105: -237500 | F105: 6 | G105: 5 | H105: 2
A107: Sensitivity Analysis #8B
B109: ='Private Sector Partner Inputs'!$A$41 -> Estimated NPV of lifetime after-tax profit per station - type 2 station [$]
B110: NPV | F110: Payback
A111: ='Private Sector Partner Inputs'!$E$41 -> 500 | B111: ='Outputs Dashboard'!$B$4 -> Project | C111: ='Outputs Dashboard'!$B$10 -> Owner-Operator | D111: ='Outputs Dashboard'!$B$16 -> Private Sector Partner(s) | E111: ='Outputs Dashboard'!$B$23 -> Public Sector Partner | F111: ='Outputs Dashboard'!$B$4 -> Project | G111: ='Outputs Dashboard'!$B$10 -> Owner-Operator | H111: ='Outputs Dashboard'!$B$16 -> Private Sector Partner(s) | I111: ='Outputs Dashboard'!$B$23 -> Public Sector Partner
B112: ='Outputs Dashboard'!$C$6 -> 862639.6897 | C112: ='Outputs Dashboard'!$C$12 -> 490898.5896 | D112: ='Outputs Dashboard'!$C$19 -> 495520.0651 | E112: ='Outputs Dashboard'!$C$26 -> -237500 | F112: =IF('Outputs Dashboard'!$C$8="N/A",#N/A,'Outputs Dashboard'!$C$8) -> 6 | G112: =IF('Outputs Dashboard'!$C$14="N/A",#N/A,'Outputs Dashboard'!$C$14) -> 5 | H112: =IF('Outputs Dashboard'!$C$21="N/A",#N/A,'Outputs Dashboard'!$C$21) -> 2 | I112: =IF('Outputs Dashboard'!$C$28="N/A",#N/A,'Outputs Dashboard'!$C$28) -> 
A113: 0 | B113: 845564.9869 | C113: 490898.5896 | D113: 480020.0651 | E113: -237500 | F113: 6 | G113: 5 | H113: 2
A114: =A115-($A$122-$A$113)/9 -> 222.2222222 | B114: 853153.7437 | C114: 490898.5896 | D114: 486908.954 | E114: -237500 | F114: 6 | G114: 5 | H114: 2
A115: 444.4444444 | B115: 860742.5005 | C115: 490898.5896 | D115: 493797.8429 | E115: -237500 | F115: 6 | G115: 5 | H115: 2
A116: 666.6666667 | B116: 868331.2573 | C116: 490898.5896 | D116: 500686.7318 | E116: -237500 | F116: 6 | G116: 5 | H116: 2
A117: 888.8888889 | B117: 875920.0141 | C117: 490898.5896 | D117: 507575.6207 | E117: -237500 | F117: 6 | G117: 5 | H117: 2
A118: 1111.111111 | B118: 883508.7709 | C118: 490898.5896 | D118: 514464.5096 | E118: -237500 | F118: 6 | G118: 5 | H118: 2
A119: 1333.333333 | B119: 891097.5277 | C119: 490898.5896 | D119: 521353.3985 | E119: -237500 | F119: 6 | G119: 5 | H119: 2
A120: 1555.555556 | B120: 898686.2845 | C120: 490898.5896 | D120: 528242.2874 | E120: -237500 | F120: 6 | G120: 5 | H120: 2
A121: =A122-($A$122-$A$113)/9 -> 1777.777778 | B121: 906275.0413 | C121: 490898.5896 | D121: 535131.1762 | E121: -237500 | F121: 6 | G121: 5 | H121: 2
A122: 2000 | B122: 913863.7981 | C122: 490898.5896 | D122: 542020.0651 | E122: -237500 | F122: 6 | G122: 5 | H122: 2
A124: Sensitivity Analysis #8C
B126: ='Private Sector Partner Inputs'!$A$44 -> Estimated NPV of lifetime after-tax profit per station - type 3 station [$]
B127: NPV | F127: Payback
A128: ='Private Sector Partner Inputs'!$E$44 -> 10694 | B128: ='Outputs Dashboard'!$B$4 -> Project | C128: ='Outputs Dashboard'!$B$10 -> Owner-Operator | D128: ='Outputs Dashboard'!$B$16 -> Private Sector Partner(s) | E128: ='Outputs Dashboard'!$B$23 -> Public Sector Partner | F128: ='Outputs Dashboard'!$B$4 -> Project | G128: ='Outputs Dashboard'!$B$10 -> Owner-Operator | H128: ='Outputs Dashboard'!$B$16 -> Private Sector Partner(s) | I128: ='Outputs Dashboard'!$B$23 -> Public Sector Partner
B129: ='Outputs Dashboard'!$C$6 -> 862639.6897 | C129: ='Outputs Dashboard'!$C$12 -> 490898.5896 | D129: ='Outputs Dashboard'!$C$19 -> 495520.0651 | E129: ='Outputs Dashboard'!$C$26 -> -237500 | F129: =IF('Outputs Dashboard'!$C$8="N/A",#N/A,'Outputs Dashboard'!$C$8) -> 6 | G129: =IF('Outputs Dashboard'!$C$14="N/A",#N/A,'Outputs Dashboard'!$C$14) -> 5 | H129: =IF('Outputs Dashboard'!$C$21="N/A",#N/A,'Outputs Dashboard'!$C$21) -> 2 | I129: =IF('Outputs Dashboard'!$C$28="N/A",#N/A,'Outputs Dashboard'!$C$28) -> 
A130: 0 | B130: 848031.94 | C130: 490898.5896 | D130: 482259.5051 | E130: -237500 | F130: 6 | G130: 5 | H130: 2
A131: =A132-($A$139-$A$130)/9 -> 2000 | B131: 850763.8924 | C131: 490898.5896 | D131: 484739.5051 | E131: -237500 | F131: 6 | G131: 5 | H131: 2
A132: 4000 | B132: 853495.8449 | C132: 490898.5896 | D132: 487219.5051 | E132: -237500 | F132: 6 | G132: 5 | H132: 2
A133: 6000 | B133: 856227.7973 | C133: 490898.5896 | D133: 489699.5051 | E133: -237500 | F133: 6 | G133: 5 | H133: 2
A134: 8000 | B134: 858959.7497 | C134: 490898.5896 | D134: 492179.5051 | E134: -237500 | F134: 6 | G134: 5 | H134: 2
A135: 10000 | B135: 861691.7022 | C135: 490898.5896 | D135: 494659.5051 | E135: -237500 | F135: 6 | G135: 5 | H135: 2
A136: 12000 | B136: 864423.6546 | C136: 490898.5896 | D136: 497139.5051 | E136: -237500 | F136: 6 | G136: 5 | H136: 2
A137: 14000 | B137: 867155.6071 | C137: 490898.5896 | D137: 499619.5051 | E137: -237500 | F137: 6 | G137: 5 | H137: 2
A138: =A139-($A$139-$A$130)/9 -> 16000 | B138: 869887.5595 | C138: 490898.5896 | D138: 502099.5051 | E138: -237500 | F138: 6 | G138: 5 | H138: 2
A139: 18000 | B139: 872619.512 | C139: 490898.5896 | D139: 504579.5051 | E139: -237500 | F139: 6 | G139: 5 | H139: 2
A141: Sensitivity Analysis #4
B143: ='Private Sector Partner Inputs'!$A$54 -> Annual customer revenue sharing agreement (from sales) [% of revenue]
B144: NPV | F144: Payback
A145: ='Private Sector Partner Inputs'!$E$54 -> 0.1 | B145: ='Outputs Dashboard'!$B$4 -> Project | C145: ='Outputs Dashboard'!$B$10 -> Owner-Operator | D145: ='Outputs Dashboard'!$B$16 -> Private Sector Partner(s) | E145: ='Outputs Dashboard'!$B$23 -> Public Sector Partner | F145: ='Outputs Dashboard'!$B$4 -> Project | G145: ='Outputs Dashboard'!$B$10 -> Owner-Operator | H145: ='Outputs Dashboard'!$B$16 -> Private Sector Partner(s) | I145: ='Outputs Dashboard'!$B$23 -> Public Sector Partner
B146: ='Outputs Dashboard'!$C$6 -> 862639.6897 | C146: ='Outputs Dashboard'!$C$12 -> 490898.5896 | D146: ='Outputs Dashboard'!$C$19 -> 495520.0651 | E146: ='Outputs Dashboard'!$C$26 -> -237500 | F146: =IF('Outputs Dashboard'!$C$8="N/A",#N/A,'Outputs Dashboard'!$C$8) -> 6 | G146: =IF('Outputs Dashboard'!$C$14="N/A",#N/A,'Outputs Dashboard'!$C$14) -> 5 | H146: =IF('Outputs Dashboard'!$C$21="N/A",#N/A,'Outputs Dashboard'!$C$21) -> 2 | I146: =IF('Outputs Dashboard'!$C$28="N/A",#N/A,'Outputs Dashboard'!$C$28) -> 
A147: 0 | B147: 893770.0145 | C147: 41813.57521 | D147: 968132.9155 | E147: -236539.0868 | F147: 6 | G147: 9 | H147: 1
A148: =A149-($A$156-$A$147)/9 -> 0.05 | B148: 878204.8521 | C148: 266356.0824 | D148: 731826.4903 | E148: -237019.5434 | F148: 6 | G148: 6 | H148: 1
A149: 0.1 | B149: 862639.6897 | C149: 490898.5896 | D149: 495520.0651 | E149: -237500 | F149: 6 | G149: 5 | H149: 2
A150: 0.15 | B150: 847074.5273 | C150: 715441.0969 | D150: 259213.6399 | E150: -237980.4566 | F150: 6 | G150: 4 | H150: 2
A151: 0.2 | B151: 831509.3649 | C151: 939983.6041 | D151: 22907.21476 | E151: -238460.9132 | F151: 6 | G151: 4 | H151: 7
A152: 0.25 | B152: 815944.2025 | C152: 1164526.111 | D152: -213399.2104 | E152: -238941.3698 | F152: 6 | G152: 3
A153: 0.3 | B153: 800379.0402 | C153: 1389068.619 | D153: -449705.6356 | E153: -239421.8265 | F153: 6 | G153: 3
A154: 0.35 | B154: 784813.8778 | C154: 1613611.126 | D154: -686012.0608 | E154: -239902.2831 | F154: 6 | G154: 3
A155: 0.4 | B155: 769248.7154 | C155: 1838153.633 | D155: -922318.486 | E155: -240382.7397 | F155: 6 | G155: 2
A156: 0.45 | B156: 753683.553 | C156: 2062696.14 | D156: -1158624.911 | E156: -240863.1963 | F156: 6 | G156: 2
A158: Sensitivity Analysis #5
B160: ='Private Sector Partner Inputs'!$A$17 -> Average expected revenue per customer per minute ($)
B161: NPV | F161: Payback
A162: ='Private Sector Partner Inputs'!$E$17 -> 1 | B162: ='Outputs Dashboard'!$B$4 -> Project | C162: ='Outputs Dashboard'!$B$10 -> Owner-Operator | D162: ='Outputs Dashboard'!$B$16 -> Private Sector Partner(s) | E162: ='Outputs Dashboard'!$B$23 -> Public Sector Partner | F162: ='Outputs Dashboard'!$B$4 -> Project | G162: ='Outputs Dashboard'!$B$10 -> Owner-Operator | H162: ='Outputs Dashboard'!$B$16 -> Private Sector Partner(s) | I162: ='Outputs Dashboard'!$B$23 -> Public Sector Partner
B163: ='Outputs Dashboard'!$C$6 -> 862639.6897 | C163: ='Outputs Dashboard'!$C$12 -> 490898.5896 | D163: ='Outputs Dashboard'!$C$19 -> 495520.0651 | E163: ='Outputs Dashboard'!$C$26 -> -237500 | F163: =IF('Outputs Dashboard'!$C$8="N/A",#N/A,'Outputs Dashboard'!$C$8) -> 6 | G163: =IF('Outputs Dashboard'!$C$14="N/A",#N/A,'Outputs Dashboard'!$C$14) -> 5 | H163: =IF('Outputs Dashboard'!$C$21="N/A",#N/A,'Outputs Dashboard'!$C$21) -> 2 | I163: =IF('Outputs Dashboard'!$C$28="N/A",#N/A,'Outputs Dashboard'!$C$28) -> 
A164: 0 | B164: -169454.806 | C164: 41813.57521 | D164: 22907.21476 | E164: -236539.0868 | G164: 9 | H164: 7
A165: =A166-($A$173-$A$164)/9 -> 0.2222222222 | B165: 596916.8043 | C165: 375284.543 | D165: 373848.8172 | E165: -237252.908 | F165: 7 | G165: 6 | H165: 2
A166: 0.4444444444 | B166: 810748.7017 | C166: 468326.1764 | D166: 471764.972 | E166: -237451.9543 | F166: 6 | G166: 5 | H166: 2
A167: 0.6666666667 | B167: 840400.6948 | C167: 481224.6982 | D167: 485339.3109 | E167: -237479.409 | F167: 6 | G167: 5 | H167: 2
A168: 0.8888888889 | B168: 862639.6897 | C168: 490898.5896 | D168: 495520.0651 | E168: -237500 | F168: 6 | G168: 5 | H168: 2
A169: 1.111111111 | B169: 862639.6897 | C169: 490898.5896 | D169: 495520.0651 | E169: -237500 | F169: 6 | G169: 5 | H169: 2
A170: 1.333333333 | B170: 862639.6897 | C170: 490898.5896 | D170: 495520.0651 | E170: -237500 | F170: 6 | G170: 5 | H170: 2
A171: 1.555555556 | B171: 862639.6897 | C171: 490898.5896 | D171: 495520.0651 | E171: -237500 | F171: 6 | G171: 5 | H171: 2
A172: 1.777777778 | B172: 862639.6897 | C172: 490898.5896 | D172: 495520.0651 | E172: -237500 | F172: 6 | G172: 5 | H172: 2
A173: 2 | B173: 862639.6897 | C173: 490898.5896 | D173: 495520.0651 | E173: -237500 | F173: 6 | G173: 5 | H173: 2
A175: Sensitivity Analysis #6A
B177: ='Private Sector Partner Inputs'!$A$20 -> Maximum retail revenue per customer per session for type 1 stations ($)
B178: NPV | F178: Payback
A179: ='Private Sector Partner Inputs'!$E$20 -> 20 | B179: ='Outputs Dashboard'!$B$4 -> Project | C179: ='Outputs Dashboard'!$B$10 -> Owner-Operator | D179: ='Outputs Dashboard'!$B$16 -> Private Sector Partner(s) | E179: ='Outputs Dashboard'!$B$23 -> Public Sector Partner | F179: ='Outputs Dashboard'!$B$4 -> Project | G179: ='Outputs Dashboard'!$B$10 -> Owner-Operator | H179: ='Outputs Dashboard'!$B$16 -> Private Sector Partner(s) | I179: ='Outputs Dashboard'!$B$23 -> Public Sector Partner
B180: ='Outputs Dashboard'!$C$6 -> 862639.6897 | C180: ='Outputs Dashboard'!$C$12 -> 490898.5896 | D180: ='Outputs Dashboard'!$C$19 -> 495520.0651 | E180: ='Outputs Dashboard'!$C$26 -> -237500 | F180: =IF('Outputs Dashboard'!$C$8="N/A",#N/A,'Outputs Dashboard'!$C$8) -> 6 | G180: =IF('Outputs Dashboard'!$C$14="N/A",#N/A,'Outputs Dashboard'!$C$14) -> 5 | H180: =IF('Outputs Dashboard'!$C$21="N/A",#N/A,'Outputs Dashboard'!$C$21) -> 2 | I180: =IF('Outputs Dashboard'!$C$28="N/A",#N/A,'Outputs Dashboard'!$C$28) -> 
A181: 0 | B181: 862639.6897 | C181: 490898.5896 | D181: 495520.0651 | E181: -237500 | F181: 6 | G181: 5 | H181: 2
A182: =A183-($A$190-$A$181)/9 -> 11.11111111 | B182: 862639.6897 | C182: 490898.5896 | D182: 495520.0651 | E182: -237500 | F182: 6 | G182: 5 | H182: 2
A183: 22.22222222 | B183: 862639.6897 | C183: 490898.5896 | D183: 495520.0651 | E183: -237500 | F183: 6 | G183: 5 | H183: 2
A184: 33.33333333 | B184: 862639.6897 | C184: 490898.5896 | D184: 495520.0651 | E184: -237500 | F184: 6 | G184: 5 | H184: 2
A185: 44.44444444 | B185: 862639.6897 | C185: 490898.5896 | D185: 495520.0651 | E185: -237500 | F185: 6 | G185: 5 | H185: 2
A186: 55.55555556 | B186: 862639.6897 | C186: 490898.5896 | D186: 495520.0651 | E186: -237500 | F186: 6 | G186: 5 | H186: 2
A187: 66.66666667 | B187: 862639.6897 | C187: 490898.5896 | D187: 495520.0651 | E187: -237500 | F187: 6 | G187: 5 | H187: 2
A188: 77.77777778 | B188: 862639.6897 | C188: 490898.5896 | D188: 495520.0651 | E188: -237500 | F188: 6 | G188: 5 | H188: 2
A189: =A190-($A$190-$A$181)/9 -> 88.88888889 | B189: 862639.6897 | C189: 490898.5896 | D189: 495520.0651 | E189: -237500 | F189: 6 | G189: 5 | H189: 2
A190: 100 | B190: 862639.6897 | C190: 490898.5896 | D190: 495520.0651 | E190: -237500 | F190: 6 | G190: 5 | H190: 2
A192: Sensitivity Analysis #6B
B194: ='Private Sector Partner Inputs'!$A$26 -> Maximum retail revenue per customer per session for type 2 stations ($)
B195: NPV | F195: Payback
A196: ='Private Sector Partner Inputs'!$E$26 -> 25 | B196: ='Outputs Dashboard'!$B$4 -> Project | C196: ='Outputs Dashboard'!$B$10 -> Owner-Operator | D196: ='Outputs Dashboard'!$B$16 -> Private Sector Partner(s) | E196: ='Outputs Dashboard'!$B$23 -> Public Sector Partner | F196: ='Outputs Dashboard'!$B$4 -> Project | G196: ='Outputs Dashboard'!$B$10 -> Owner-Operator | H196: ='Outputs Dashboard'!$B$16 -> Private Sector Partner(s) | I196: ='Outputs Dashboard'!$B$23 -> Public Sector Partner
B197: ='Outputs Dashboard'!$C$6 -> 862639.6897 | C197: ='Outputs Dashboard'!$C$12 -> 490898.5896 | D197: ='Outputs Dashboard'!$C$19 -> 495520.0651 | E197: ='Outputs Dashboard'!$C$26 -> -237500 | F197: =IF('Outputs Dashboard'!$C$8="N/A",#N/A,'Outputs Dashboard'!$C$8) -> 6 | G197: =IF('Outputs Dashboard'!$C$14="N/A",#N/A,'Outputs Dashboard'!$C$14) -> 5 | H197: =IF('Outputs Dashboard'!$C$21="N/A",#N/A,'Outputs Dashboard'!$C$21) -> 2 | I197: =IF('Outputs Dashboard'!$C$28="N/A",#N/A,'Outputs Dashboard'!$C$28) -> 
A198: 0 | B198: -58259.83167 | C198: 90183.03225 | D198: 73810.9857 | E198: -236642.0418 | G198: 8 | H198: 4
A199: =A200-($A$207-$A$198)/9 -> 11.11111111 | B199: 351028.8445 | C199: 268278.8355 | D199: 261237.2432 | E199: -237023.3565 | F199: 8 | G199: 6 | H199: 2
A200: 22.22222222 | B200: 760317.5207 | C200: 446374.6388 | D200: 448663.5008 | E200: -237404.6713 | F200: 6 | G200: 5 | H200: 2
A201: 33.33333333 | B201: 1169606.197 | C201: 624470.4421 | D201: 636089.7583 | E201: -237785.9861 | F201: 6 | G201: 5 | H201: 2
A202: 44.44444444 | B202: 1578894.873 | C202: 802566.2454 | D202: 823516.0158 | E202: -238167.3009 | F202: 5 | G202: 4 | H202: 1
A203: 55.55555556 | B203: 1988183.549 | C203: 980662.0487 | D203: 1010942.273 | E203: -238548.6156 | F203: 5 | G203: 4 | H203: 1
A204: 66.66666667 | B204: 2397472.225 | C204: 1158757.852 | D204: 1198368.531 | E204: -238929.9304 | F204: 4 | G204: 3 | H204: 1
A205: 77.77777778 | B205: 2806760.901 | C205: 1336853.655 | D205: 1385794.788 | E205: -239311.2452 | F205: 4 | G205: 3 | H205: 1
A206: =A207-($A$207-$A$198)/9 -> 88.88888889 | B206: 3216049.578 | C206: 1514949.459 | D206: 1573221.046 | E206: -239692.5599 | F206: 4 | G206: 3 | H206: 1
A207: 100 | B207: 3256978.445 | C207: 1532759.039 | D207: 1591963.672 | E207: -239730.6914 | F207: 3 | G207: 3 | H207: 1
A209: Sensitivity Analysis #6C
B211: ='Private Sector Partner Inputs'!$A$32 -> Maximum retail revenue per customer per session for type 3 stations ($)
B212: NPV | F212: Payback
A213: ='Private Sector Partner Inputs'!$E$32 -> 25 | B213: ='Outputs Dashboard'!$B$4 -> Project | C213: ='Outputs Dashboard'!$B$10 -> Owner-Operator | D213: ='Outputs Dashboard'!$B$16 -> Private Sector Partner(s) | E213: ='Outputs Dashboard'!$B$23 -> Public Sector Partner | F213: ='Outputs Dashboard'!$B$4 -> Project | G213: ='Outputs Dashboard'!$B$10 -> Owner-Operator | H213: ='Outputs Dashboard'!$B$16 -> Private Sector Partner(s) | I213: ='Outputs Dashboard'!$B$23 -> Public Sector Partner
B214: ='Outputs Dashboard'!$C$6 -> 862639.6897 | C214: ='Outputs Dashboard'!$C$12 -> 490898.5896 | D214: ='Outputs Dashboard'!$C$19 -> 495520.0651 | E214: ='Outputs Dashboard'!$C$26 -> -237500 | F214: =IF('Outputs Dashboard'!$C$8="N/A",#N/A,'Outputs Dashboard'!$C$8) -> 6 | G214: =IF('Outputs Dashboard'!$C$14="N/A",#N/A,'Outputs Dashboard'!$C$14) -> 5 | H214: =IF('Outputs Dashboard'!$C$21="N/A",#N/A,'Outputs Dashboard'!$C$21) -> 2 | I214: =IF('Outputs Dashboard'!$C$28="N/A",#N/A,'Outputs Dashboard'!$C$28) -> 
A215: 0 | B215: 751444.7154 | C215: 442529.1326 | D215: 444616.2942 | E215: -237397.045 | F215: 6 | G215: 5 | H215: 2
A216: =A217-($A$224-$A$215)/9 -> 11.11111111 | B216: 800864.704 | C216: 464026.6691 | D216: 467240.1924 | E216: -237442.8028 | F216: 6 | G216: 5 | H216: 2
A217: 22.22222222 | B217: 850284.6926 | C217: 485524.2055 | D217: 489864.0906 | E217: -237488.5606 | F217: 6 | G217: 5 | H217: 2
A218: 33.33333333 | B218: 884878.6846 | C218: 500572.4811 | D218: 505700.8193 | E218: -237520.591 | F218: 6 | G218: 5 | H218: 2
A219: 44.44444444 | B219: 884878.6846 | C219: 500572.4811 | D219: 505700.8193 | E219: -237520.591 | F219: 6 | G219: 5 | H219: 2
A220: 55.55555556 | B220: 884878.6846 | C220: 500572.4811 | D220: 505700.8193 | E220: -237520.591 | F220: 6 | G220: 5 | H220: 2
A221: 66.66666667 | B221: 884878.6846 | C221: 500572.4811 | D221: 505700.8193 | E221: -237520.591 | F221: 6 | G221: 5 | H221: 2
A222: 77.77777778 | B222: 884878.6846 | C222: 500572.4811 | D222: 505700.8193 | E222: -237520.591 | F222: 6 | G222: 5 | H222: 2
A223: =A224-($A$224-$A$215)/9 -> 88.88888889 | B223: 884878.6846 | C223: 500572.4811 | D223: 505700.8193 | E223: -237520.591 | F223: 6 | G223: 5 | H223: 2
A224: 100 | B224: 884878.6846 | C224: 500572.4811 | D224: 505700.8193 | E224: -237520.591 | F224: 6 | G224: 5 | H224: 2

Sheet Lists_Hidden (hidden)
A1: ='Initial Settings'!C6 -> Washington EV - Business Model 3 - Walla Walla
A3: Lists
A5: Yes/No List
A6: Y
A7: N

Sheet Version
A1: Version | B1: Revisions
A2: 1.0 | B2: First launch
A3: 1.1 | B3: Added cumulative NPV and new discounted payback calculations (removed old average payback based on IRR) Fixed #N/As on sensitivity charts Added other contributions to outputs tab
A4: 1.5 | B4: • Streamlined the sensitivity analysis. Put the tables on a separate tab. Redid table formats • Rewired the sensitivity analysis so that it pulls inputs from the input tabs, not the other way around. • Major overhaul to more accurately reflect equipment lives other than 10 years. Examples: o Owner operator income streams now stop if equipment depreciates faster than 10 years o Terminal value function has been redone to consider equipment value if there is remaining equipment life at the end of the 10-year DCF • Consolidated some variables like equipment life, revenue per hour, etc. so that one variable feeds into all three station types. This removes some granularity of control, but makes sensitivity analysis easier. • Reversed the flow of the equation on the “Private Sector” tabs to derive revenue from NPV value instead of an NPV value from revenue (as requested by C2ES) • Moved sensitivity charts off output tab. Added additional charts.
A5: 1.6 | B5: Revised revenue sharing formulas
B6: Add capped (semi-subordinated) public equity option (functions like a loan that is repaid only if funds are available) Add blended discount rate for the project
A7: 1.7 | B7: Add ability to import/export all user inputs. Named each user input cell. Change private sector partner summary for charging equipment (allow for individual subsidies by station type). Added "Report" tab
A8: 1.8 | B8: Added final formatting, spell check, consistent title, label, and unit formats Digitally signed macros Fixed public sector equity cap equation
A10: Future:
A11: Lock non-input cells + add data validation
A12: Consider modeling private sector partner initial subsidy as time "0" non-shareholder capital investment, as opposed to year 1 revenue for the owner-operator
